﻿Department Family,Entity,Date,Expense Type,Expense Area,Supplier,Transaction Number,Amount,Item Description
BEIS,UKRI - AHRC,01/04/2022,Research Grant Expenditure,Infrastruture Roadmap,Research Libraries UK (RLUK),99385733,200000.00,Research Grant Expenditure
BEIS,UKRI - AHRC,04/04/2022,Research Grant Expenditure,Public Engagement,Unspecified,99391739,700.00,Research Grant Expenditure
BEIS,UKRI - AHRC,04/04/2022,Non-staff travel and subsistance,Skills Strategy,Unspecified,99392716,153.79,Non-staff travel and subsistance
BEIS,UKRI - AHRC,04/04/2022,Non-staff travel and subsistance,Skills Strategy,Unspecified,99392718,93.80,Non-staff travel and subsistance
BEIS,UKRI - AHRC,04/04/2022,Non-staff travel and subsistance,Skills Strategy,Unspecified,99392719,150.00,Non-staff travel and subsistance
BEIS,UKRI - AHRC,04/04/2022,Non-staff travel and subsistance,Skills Strategy,Unspecified,99392720,429.60,Non-staff travel and subsistance
BEIS,UKRI - AHRC,04/04/2022,Non-staff travel and subsistance,Skills Strategy,Unspecified,99392721,31.65,Non-staff travel and subsistance
BEIS,UKRI - AHRC,04/04/2022,Fees (Including College Members),Operations,Unspecified,99392722,230.00,Fees (Including College Members)
BEIS,UKRI - AHRC,04/04/2022,Non-staff travel and subsistance,Skills Strategy,Unspecified,99392723,17.40,Non-staff travel and subsistance
BEIS,UKRI - AHRC,04/04/2022,Non-staff travel and subsistance,Skills Strategy,Unspecified,99392724,194.15,Non-staff travel and subsistance
BEIS,UKRI - AHRC,04/04/2022,Non-staff travel and subsistance,Skills Strategy,Unspecified,99392725,119.20,Non-staff travel and subsistance
BEIS,UKRI - AHRC,04/04/2022,Non-staff travel and subsistance,Skills Strategy,Unspecified,99392726,239.73,Non-staff travel and subsistance
BEIS,UKRI - AHRC,04/04/2022,Non-staff travel and subsistance,Skills Strategy,Unspecified,99392727,88.50,Non-staff travel and subsistance
BEIS,UKRI - AHRC,04/04/2022,Non-staff travel and subsistance,Infrastruture Roadmap,Unspecified,99392728,97.25,Non-staff travel and subsistance
BEIS,UKRI - AHRC,04/04/2022,Non-staff travel and subsistance,Skills Strategy,Unspecified,99392729,169.96,Non-staff travel and subsistance
BEIS,UKRI - AHRC,04/04/2022,Non-staff travel and subsistance,Operations,Unspecified,99392730,109.15,Non-staff travel and subsistance
BEIS,UKRI - AHRC,04/04/2022,Fees (Including College Members),Operations,Unspecified,99392731,230.00,Fees (Including College Members)
BEIS,UKRI - AHRC,04/04/2022,Non-staff travel and subsistance,Skills Strategy,Unspecified,99392732,41.85,Non-staff travel and subsistance
BEIS,UKRI - AHRC,04/04/2022,Non-staff travel and subsistance,Skills Strategy,Unspecified,99392733,78.20,Non-staff travel and subsistance
BEIS,UKRI - AHRC,04/04/2022,Non-staff travel and subsistance,Skills Strategy,Unspecified,99392734,119.95,Non-staff travel and subsistance
BEIS,UKRI - AHRC,04/04/2022,Non-staff travel and subsistance,Skills Strategy,Unspecified,99392735,219.55,Non-staff travel and subsistance
BEIS,UKRI - AHRC,04/04/2022,Non-staff travel and subsistance,Operations,Unspecified,99392736,13.85,Non-staff travel and subsistance
BEIS,UKRI - AHRC,04/04/2022,Fees (Including College Members),Operations,Unspecified,99392737,230.00,Fees (Including College Members)
BEIS,UKRI - AHRC,04/04/2022,Non-staff travel and subsistance,Skills Strategy,Unspecified,99392738,99.85,Non-staff travel and subsistance
BEIS,UKRI - AHRC,04/04/2022,Non-staff travel and subsistance,Skills Strategy,Unspecified,99392739,34.25,Non-staff travel and subsistance
BEIS,UKRI - AHRC,04/04/2022,Non-staff travel and subsistance,Skills Strategy,Unspecified,99392740,95.25,Non-staff travel and subsistance
BEIS,UKRI - AHRC,04/04/2022,Unspecified,Infrastruture Roadmap,Alexander Mann Solutions Ltd,99393747,2772.24,Legal & Professional Services
BEIS,UKRI - AHRC,04/04/2022,T&S UK - Public Transport,Operations,Unspecified,99393902,7.40,T&S UK - Public Transport
BEIS,UKRI - AHRC,04/04/2022,T&S UK - Subsistence,Operations,Unspecified,99393902,43.86,T&S UK - Subsistence
BEIS,UKRI - AHRC,04/04/2022,T&S UK - Subsistence,Operations,Unspecified,99393902,22.99,T&S UK - Subsistence
BEIS,UKRI - AHRC,04/04/2022,T&S UK - Subsistence,Operations,Unspecified,99393902,25.00,T&S UK - Subsistence
BEIS,UKRI - AHRC,04/04/2022,T&S UK - Other Charges,Operations,Unspecified,99393903,10.00,T&S UK - Other Charges
BEIS,UKRI - AHRC,04/04/2022,T&S UK - Public Transport,Operations,Unspecified,99393903,10.00,T&S UK - Public Transport
BEIS,UKRI - AHRC,04/04/2022,T&S UK - Subsistence,Operations,Unspecified,99393903,23.00,T&S UK - Subsistence
BEIS,UKRI - AHRC,04/04/2022,T&S UK - Public Transport,Skills Strategy,Unspecified,99393904,8.80,T&S UK - Public Transport
BEIS,UKRI - AHRC,04/04/2022,T&S UK - Subsistence,Skills Strategy,Unspecified,99393904,6.65,T&S UK - Subsistence
BEIS,UKRI - AHRC,05/04/2022,Other Programme Costs,Commissioned Research,UKRI - Engineering & Physical Sciences Research Council,99363822,100000.00,Other Programme Costs
BEIS,UKRI - AHRC,05/04/2022,Research Grant Expenditure,International Partnership and Engagement,UKRI - Engineering & Physical Sciences Research Council,99363823,50000.00,Research Grant Expenditure
BEIS,UKRI - AHRC,05/04/2022,Other Staff Benefits,Health and Environmental Humanities,UKRI - Engineering & Physical Sciences Research Council,99380762,70.00,Other Staff Benefits
BEIS,UKRI - AHRC,05/04/2022,Other Staff Benefits,Operations,UKRI - Engineering & Physical Sciences Research Council,99380762,70.00,Other Staff Benefits
BEIS,UKRI - AHRC,05/04/2022,Other Staff Benefits,Operations,UKRI - Engineering & Physical Sciences Research Council,99380762,70.00,Other Staff Benefits
BEIS,UKRI - AHRC,05/04/2022,Corporate Events,FIC- China,UKRI - Engineering & Physical Sciences Research Council,99381717,11657.00,Corporate Events
BEIS,UKRI - AHRC,05/04/2022,Non-staff travel and subsistance,Skills Strategy,Unspecified,99394042,70.34,Non-staff travel and subsistance
BEIS,UKRI - AHRC,05/04/2022,Non-staff travel and subsistance,Skills Strategy,Unspecified,99394043,131.00,Non-staff travel and subsistance
BEIS,UKRI - AHRC,05/04/2022,Non-staff travel and subsistance,Operations,Unspecified,99394044,62.99,Non-staff travel and subsistance
BEIS,UKRI - AHRC,05/04/2022,Fees (Including College Members),Operations,Unspecified,99394045,230.00,Fees (Including College Members)
BEIS,UKRI - AHRC,05/04/2022,Non-staff travel and subsistance,Skills Strategy,Unspecified,99394046,165.90,Non-staff travel and subsistance
BEIS,UKRI - AHRC,05/04/2022,Non-staff travel and subsistance,Operations,Unspecified,99394047,155.20,Non-staff travel and subsistance
BEIS,UKRI - AHRC,05/04/2022,Fees (Including College Members),Operations,Unspecified,99394048,230.00,Fees (Including College Members)
BEIS,UKRI - AHRC,05/04/2022,Non-staff travel and subsistance,Skills Strategy,Unspecified,99394049,607.80,Non-staff travel and subsistance
BEIS,UKRI - AHRC,05/04/2022,Non-staff travel and subsistance,Skills Strategy,Unspecified,99394050,119.23,Non-staff travel and subsistance
BEIS,UKRI - AHRC,05/04/2022,Non-staff travel and subsistance,Operations,Unspecified,99394051,118.35,Non-staff travel and subsistance
BEIS,UKRI - AHRC,05/04/2022,Non-staff travel and subsistance,Operations,Unspecified,99394052,33.85,Non-staff travel and subsistance
BEIS,UKRI - AHRC,05/04/2022,Non-staff travel and subsistance,Operations,Unspecified,99394053,33.04,Non-staff travel and subsistance
BEIS,UKRI - AHRC,05/04/2022,Fees (Including College Members),Operations,Unspecified,99394054,230.00,Fees (Including College Members)
BEIS,UKRI - AHRC,05/04/2022,Conferences & Seminars,Skills Strategy,Institute for Government,99395915,36573.60,Conferences & Seminars
BEIS,UKRI - AHRC,05/04/2022,GPC Clearing - AHRC,Balance Sheet,Unspecified,99396756,-20.30,GPC Clearing - AHRC
BEIS,UKRI - AHRC,05/04/2022,T&S UK - Subsistence,Operations,Unspecified,99396756,10.20,T&S UK - Subsistence
BEIS,UKRI - AHRC,05/04/2022,T&S UK - Subsistence,Operations,Unspecified,99396756,35.10,T&S UK - Subsistence
BEIS,UKRI - AHRC,05/04/2022,T&S UK - Subsistence,Operations,Unspecified,99396756,10.00,T&S UK - Subsistence
BEIS,UKRI - AHRC,05/04/2022,T&S UK - Other Charges,Operations,Unspecified,99396757,149.97,T&S UK - Other Charges
BEIS,UKRI - AHRC,06/04/2022,Staff Training,Operations,Tableau International U.C,99347179,1062.63,Staff Training
BEIS,UKRI - AHRC,06/04/2022,Non-staff travel and subsistance,Operations,Unspecified,99398820,39.55,Non-staff travel and subsistance
BEIS,UKRI - AHRC,06/04/2022,Non-staff travel and subsistance,Skills Strategy,Unspecified,99398821,88.81,Non-staff travel and subsistance
BEIS,UKRI - AHRC,06/04/2022,Non-staff travel and subsistance,Skills Strategy,Unspecified,99398822,189.25,Non-staff travel and subsistance
BEIS,UKRI - AHRC,06/04/2022,Fees (Including College Members),Operations,Unspecified,99398823,230.00,Fees (Including College Members)
BEIS,UKRI - AHRC,06/04/2022,Fees (Including College Members),Operations,Unspecified,99398824,62.17,Fees (Including College Members)
BEIS,UKRI - AHRC,06/04/2022,Fees (Including College Members),Operations,Unspecified,99398826,99.00,Fees (Including College Members)
BEIS,UKRI - AHRC,06/04/2022,T&S UK - Public Transport,International Development and Area Studies,Unspecified,99400772,5.00,T&S UK - Public Transport
BEIS,UKRI - AHRC,06/04/2022,T&S UK - Subsistence,International Development and Area Studies,Unspecified,99400772,23.98,T&S UK - Subsistence
BEIS,UKRI - AHRC,07/04/2022,Research Grant Expenditure,Public Engagement,Cardiff University,99400956,6595.00,Research Grant Expenditure
BEIS,UKRI - AHRC,07/04/2022,Non-staff travel and subsistance,Operations,Unspecified,99401008,50.20,Non-staff travel and subsistance
BEIS,UKRI - AHRC,07/04/2022,Non-staff travel and subsistance,Operations,Unspecified,99401009,22.40,Non-staff travel and subsistance
BEIS,UKRI - AHRC,07/04/2022,Non-staff travel and subsistance,Operations,Unspecified,99401010,44.64,Non-staff travel and subsistance
BEIS,UKRI - AHRC,07/04/2022,Non-staff travel and subsistance,Operations,Unspecified,99401011,60.00,Non-staff travel and subsistance
BEIS,UKRI - AHRC,07/04/2022,Non-staff travel and subsistance,Operations,Unspecified,99401012,84.30,Non-staff travel and subsistance
BEIS,UKRI - AHRC,07/04/2022,Non-staff travel and subsistance,Operations,Unspecified,99401013,55.00,Non-staff travel and subsistance
BEIS,UKRI - AHRC,07/04/2022,Fees (Including College Members),Operations,Unspecified,99401014,230.00,Fees (Including College Members)
BEIS,UKRI - AHRC,07/04/2022,Non-staff travel and subsistance,Operations,Unspecified,99401015,41.60,Non-staff travel and subsistance
BEIS,UKRI - AHRC,07/04/2022,Non-staff travel and subsistance,Operations,Unspecified,99401016,230.00,Non-staff travel and subsistance
BEIS,UKRI - AHRC,07/04/2022,Non-staff travel and subsistance,Operations,Unspecified,99401017,17.65,Non-staff travel and subsistance
BEIS,UKRI - AHRC,07/04/2022,Non-staff travel and subsistance,Operations,Unspecified,99401018,25.40,Non-staff travel and subsistance
BEIS,UKRI - AHRC,07/04/2022,Non-staff travel and subsistance,Skills Strategy,Unspecified,99401019,57.00,Non-staff travel and subsistance
BEIS,UKRI - AHRC,07/04/2022,Non-staff travel and subsistance,Operations,Unspecified,99401020,44.00,Non-staff travel and subsistance
BEIS,UKRI - AHRC,07/04/2022,Non-staff travel and subsistance,Operations,Unspecified,99401021,21.81,Non-staff travel and subsistance
BEIS,UKRI - AHRC,07/04/2022,Non-staff travel and subsistance,Operations,Unspecified,99401022,24.70,Non-staff travel and subsistance
BEIS,UKRI - AHRC,08/04/2022,Staff Training,Artificial Intelligence,Partnership Media Group T/A GovNet Communications,99403079,390.00,Staff Training
BEIS,UKRI - AHRC,11/04/2022,T&S UK - Other Charges,"History, Heritage, Languages and Literature",Unspecified,99424724,400.20,T&S UK - Other Charges
BEIS,UKRI - AHRC,12/04/2022,International Subscriptions,Public and Stakeholder Engagement,UKRI - Engineering & Physical Sciences Research Council,98333537,3600.00,International Subscriptions
BEIS,UKRI - AHRC,12/04/2022,Conferences & Seminars,Skills Strategy,Unspecified,99371857,42.00,Conferences & Seminars
BEIS,UKRI - AHRC,12/04/2022,Unspecified,Balance Sheet,HM Revenue & Customs,99402768,63172.59,NI Payable Salaries
BEIS,UKRI - AHRC,12/04/2022,Unspecified,Balance Sheet,HM Revenue & Customs,99402769,45930.38,PAYE Payable Salaries
BEIS,UKRI - AHRC,12/04/2022,Unspecified,Balance Sheet,HM Revenue & Customs,99402770,5117.00,Student Loans
BEIS,UKRI - AHRC,12/04/2022,Unspecified,Corporate Services,HM Revenue & Customs,99402771,1648.00,Apprenticeship Levy
BEIS,UKRI - AHRC,12/04/2022,Non-staff travel and subsistance,Operations,Corporate Travel Management (North) Ltd,99432721,0.80,Non-staff travel and subsistance
BEIS,UKRI - AHRC,12/04/2022,Non-staff travel and subsistance,Operations,Corporate Travel Management (North) Ltd,99432721,87.40,Non-staff travel and subsistance
BEIS,UKRI - AHRC,12/04/2022,Non-staff travel and subsistance,Operations,Corporate Travel Management (North) Ltd,99432721,0.80,Non-staff travel and subsistance
BEIS,UKRI - AHRC,12/04/2022,Non-staff travel and subsistance,Operations,Corporate Travel Management (North) Ltd,99432721,87.40,Non-staff travel and subsistance
BEIS,UKRI - AHRC,12/04/2022,Non-staff travel and subsistance,Operations,Corporate Travel Management (North) Ltd,99432721,0.80,Non-staff travel and subsistance
BEIS,UKRI - AHRC,12/04/2022,Non-staff travel and subsistance,Operations,Corporate Travel Management (North) Ltd,99432721,164.00,Non-staff travel and subsistance
BEIS,UKRI - AHRC,12/04/2022,Non-staff travel and subsistance,Operations,Corporate Travel Management (North) Ltd,99432721,0.80,Non-staff travel and subsistance
BEIS,UKRI - AHRC,12/04/2022,Non-staff travel and subsistance,Operations,Corporate Travel Management (North) Ltd,99432721,87.40,Non-staff travel and subsistance
BEIS,UKRI - AHRC,12/04/2022,Non-staff travel and subsistance,Operations,Corporate Travel Management (North) Ltd,99432721,0.80,Non-staff travel and subsistance
BEIS,UKRI - AHRC,12/04/2022,Non-staff travel and subsistance,Operations,Corporate Travel Management (North) Ltd,99432721,91.20,Non-staff travel and subsistance
BEIS,UKRI - AHRC,12/04/2022,Non-staff travel and subsistance,Operations,Corporate Travel Management (North) Ltd,99432721,0.80,Non-staff travel and subsistance
BEIS,UKRI - AHRC,12/04/2022,Non-staff travel and subsistance,Operations,Corporate Travel Management (North) Ltd,99432721,91.20,Non-staff travel and subsistance
BEIS,UKRI - AHRC,12/04/2022,Non-staff travel and subsistance,Operations,Corporate Travel Management (North) Ltd,99432721,0.80,Non-staff travel and subsistance
BEIS,UKRI - AHRC,12/04/2022,Non-staff travel and subsistance,Operations,Corporate Travel Management (North) Ltd,99432721,65.05,Non-staff travel and subsistance
BEIS,UKRI - AHRC,12/04/2022,Non-staff travel and subsistance,Operations,Corporate Travel Management (North) Ltd,99432721,0.80,Non-staff travel and subsistance
BEIS,UKRI - AHRC,12/04/2022,Non-staff travel and subsistance,Operations,Corporate Travel Management (North) Ltd,99432721,65.05,Non-staff travel and subsistance
BEIS,UKRI - AHRC,12/04/2022,Non-staff travel and subsistance,Operations,Corporate Travel Management (North) Ltd,99432721,0.80,Non-staff travel and subsistance
BEIS,UKRI - AHRC,12/04/2022,Non-staff travel and subsistance,Operations,Corporate Travel Management (North) Ltd,99432721,79.80,Non-staff travel and subsistance
BEIS,UKRI - AHRC,12/04/2022,Non-staff travel and subsistance,Operations,Corporate Travel Management (North) Ltd,99432721,0.80,Non-staff travel and subsistance
BEIS,UKRI - AHRC,12/04/2022,Non-staff travel and subsistance,Operations,Corporate Travel Management (North) Ltd,99432721,130.10,Non-staff travel and subsistance
BEIS,UKRI - AHRC,12/04/2022,Non-staff travel and subsistance,Operations,Corporate Travel Management (North) Ltd,99432721,0.80,Non-staff travel and subsistance
BEIS,UKRI - AHRC,12/04/2022,Non-staff travel and subsistance,Operations,Corporate Travel Management (North) Ltd,99432721,65.05,Non-staff travel and subsistance
BEIS,UKRI - AHRC,12/04/2022,Non-staff travel and subsistance,Operations,Corporate Travel Management (North) Ltd,99432721,0.80,Non-staff travel and subsistance
BEIS,UKRI - AHRC,12/04/2022,Non-staff travel and subsistance,Operations,Corporate Travel Management (North) Ltd,99432721,115.20,Non-staff travel and subsistance
BEIS,UKRI - AHRC,12/04/2022,Non-staff travel and subsistance,Operations,Corporate Travel Management (North) Ltd,99432721,0.80,Non-staff travel and subsistance
BEIS,UKRI - AHRC,12/04/2022,Non-staff travel and subsistance,Operations,Corporate Travel Management (North) Ltd,99432721,105.70,Non-staff travel and subsistance
BEIS,UKRI - AHRC,12/04/2022,Non-staff travel and subsistance,Operations,Corporate Travel Management (North) Ltd,99432721,0.80,Non-staff travel and subsistance
BEIS,UKRI - AHRC,12/04/2022,Non-staff travel and subsistance,Operations,Corporate Travel Management (North) Ltd,99432721,105.70,Non-staff travel and subsistance
BEIS,UKRI - AHRC,12/04/2022,Non-staff travel and subsistance,Operations,Corporate Travel Management (North) Ltd,99432721,0.80,Non-staff travel and subsistance
BEIS,UKRI - AHRC,12/04/2022,Non-staff travel and subsistance,Operations,Corporate Travel Management (North) Ltd,99432721,155.10,Non-staff travel and subsistance
BEIS,UKRI - AHRC,12/04/2022,Non-staff travel and subsistance,Operations,Corporate Travel Management (North) Ltd,99432721,0.80,Non-staff travel and subsistance
BEIS,UKRI - AHRC,12/04/2022,Non-staff travel and subsistance,Operations,Corporate Travel Management (North) Ltd,99432721,155.10,Non-staff travel and subsistance
BEIS,UKRI - AHRC,12/04/2022,Non-staff travel and subsistance,Operations,Corporate Travel Management (North) Ltd,99432721,0.80,Non-staff travel and subsistance
BEIS,UKRI - AHRC,12/04/2022,Non-staff travel and subsistance,Operations,Corporate Travel Management (North) Ltd,99432721,155.10,Non-staff travel and subsistance
BEIS,UKRI - AHRC,12/04/2022,Non-staff travel and subsistance,Operations,Corporate Travel Management (North) Ltd,99432721,0.80,Non-staff travel and subsistance
BEIS,UKRI - AHRC,12/04/2022,Non-staff travel and subsistance,Operations,Corporate Travel Management (North) Ltd,99432721,167.00,Non-staff travel and subsistance
BEIS,UKRI - AHRC,12/04/2022,Non-staff travel and subsistance,Operations,Corporate Travel Management (North) Ltd,99432721,0.80,Non-staff travel and subsistance
BEIS,UKRI - AHRC,12/04/2022,Non-staff travel and subsistance,Operations,Corporate Travel Management (North) Ltd,99432721,167.00,Non-staff travel and subsistance
BEIS,UKRI - AHRC,12/04/2022,Non-staff travel and subsistance,Operations,Corporate Travel Management (North) Ltd,99432721,0.80,Non-staff travel and subsistance
BEIS,UKRI - AHRC,12/04/2022,Non-staff travel and subsistance,Operations,Corporate Travel Management (North) Ltd,99432721,46.88,Non-staff travel and subsistance
BEIS,UKRI - AHRC,12/04/2022,Non-staff travel and subsistance,Operations,Corporate Travel Management (North) Ltd,99432721,0.80,Non-staff travel and subsistance
BEIS,UKRI - AHRC,12/04/2022,Non-staff travel and subsistance,Operations,Corporate Travel Management (North) Ltd,99432721,46.88,Non-staff travel and subsistance
BEIS,UKRI - AHRC,12/04/2022,Non-staff travel and subsistance,Operations,Corporate Travel Management (North) Ltd,99432721,0.80,Non-staff travel and subsistance
BEIS,UKRI - AHRC,12/04/2022,Non-staff travel and subsistance,Operations,Corporate Travel Management (North) Ltd,99432721,93.76,Non-staff travel and subsistance
BEIS,UKRI - AHRC,12/04/2022,Non-staff travel and subsistance,Operations,Corporate Travel Management (North) Ltd,99432721,0.80,Non-staff travel and subsistance
BEIS,UKRI - AHRC,12/04/2022,Non-staff travel and subsistance,Operations,Corporate Travel Management (North) Ltd,99432721,3.68,Non-staff travel and subsistance
BEIS,UKRI - AHRC,12/04/2022,T&S UK - Accommodation,AI&Design,Corporate Travel Management (North) Ltd,99432721,0.80,T&S UK - Accommodation
BEIS,UKRI - AHRC,12/04/2022,T&S UK - Accommodation,AI&Design,Corporate Travel Management (North) Ltd,99432721,92.00,T&S UK - Accommodation
BEIS,UKRI - AHRC,12/04/2022,T&S UK - Accommodation,AI&Design,Corporate Travel Management (North) Ltd,99432721,0.80,T&S UK - Accommodation
BEIS,UKRI - AHRC,12/04/2022,T&S UK - Accommodation,AI&Design,Corporate Travel Management (North) Ltd,99432721,213.75,T&S UK - Accommodation
BEIS,UKRI - AHRC,12/04/2022,T&S UK - Accommodation,AI&Design,Corporate Travel Management (North) Ltd,99432721,0.32,T&S UK - Accommodation
BEIS,UKRI - AHRC,12/04/2022,T&S UK - Accommodation,Infrastruture Roadmap,Corporate Travel Management (North) Ltd,99432721,0.80,T&S UK - Accommodation
BEIS,UKRI - AHRC,12/04/2022,T&S UK - Accommodation,Infrastruture Roadmap,Corporate Travel Management (North) Ltd,99432721,115.20,T&S UK - Accommodation
BEIS,UKRI - AHRC,12/04/2022,T&S UK - Accommodation,Infrastruture Roadmap,Corporate Travel Management (North) Ltd,99432721,0.80,T&S UK - Accommodation
BEIS,UKRI - AHRC,12/04/2022,T&S UK - Accommodation,Infrastruture Roadmap,Corporate Travel Management (North) Ltd,99432721,108.00,T&S UK - Accommodation
BEIS,UKRI - AHRC,12/04/2022,T&S UK - Accommodation,Infrastruture Roadmap,Corporate Travel Management (North) Ltd,99432721,0.32,T&S UK - Accommodation
BEIS,UKRI - AHRC,12/04/2022,T&S UK - Accommodation,International Development and Area Studies,Corporate Travel Management (North) Ltd,99432721,0.80,T&S UK - Accommodation
BEIS,UKRI - AHRC,12/04/2022,T&S UK - Accommodation,International Development and Area Studies,Corporate Travel Management (North) Ltd,99432721,87.40,T&S UK - Accommodation
BEIS,UKRI - AHRC,12/04/2022,T&S UK - Accommodation,International Development and Area Studies,Corporate Travel Management (North) Ltd,99432721,0.80,T&S UK - Accommodation
BEIS,UKRI - AHRC,12/04/2022,T&S UK - Accommodation,International Development and Area Studies,Corporate Travel Management (North) Ltd,99432721,210.00,T&S UK - Accommodation
BEIS,UKRI - AHRC,12/04/2022,T&S UK - Accommodation,International Development and Area Studies,Corporate Travel Management (North) Ltd,99432721,0.80,T&S UK - Accommodation
BEIS,UKRI - AHRC,12/04/2022,T&S UK - Accommodation,International Development and Area Studies,Corporate Travel Management (North) Ltd,99432721,220.00,T&S UK - Accommodation
BEIS,UKRI - AHRC,12/04/2022,T&S UK - Accommodation,International Development and Area Studies,Corporate Travel Management (North) Ltd,99432721,0.48,T&S UK - Accommodation
BEIS,UKRI - AHRC,12/04/2022,T&S UK - Accommodation,Operations,Corporate Travel Management (North) Ltd,99432721,0.80,T&S UK - Accommodation
BEIS,UKRI - AHRC,12/04/2022,T&S UK - Accommodation,Operations,Corporate Travel Management (North) Ltd,99432721,95.95,T&S UK - Accommodation
BEIS,UKRI - AHRC,12/04/2022,T&S UK - Accommodation,Operations,Corporate Travel Management (North) Ltd,99432721,0.80,T&S UK - Accommodation
BEIS,UKRI - AHRC,12/04/2022,T&S UK - Accommodation,Operations,Corporate Travel Management (North) Ltd,99432721,88.00,T&S UK - Accommodation
BEIS,UKRI - AHRC,12/04/2022,T&S UK - Accommodation,Operations,Corporate Travel Management (North) Ltd,99432721,0.80,T&S UK - Accommodation
BEIS,UKRI - AHRC,12/04/2022,T&S UK - Accommodation,Operations,Corporate Travel Management (North) Ltd,99432721,88.00,T&S UK - Accommodation
BEIS,UKRI - AHRC,12/04/2022,T&S UK - Accommodation,Operations,Corporate Travel Management (North) Ltd,99432721,0.80,T&S UK - Accommodation
BEIS,UKRI - AHRC,12/04/2022,T&S UK - Accommodation,Operations,Corporate Travel Management (North) Ltd,99432721,88.00,T&S UK - Accommodation
BEIS,UKRI - AHRC,12/04/2022,T&S UK - Accommodation,Operations,Corporate Travel Management (North) Ltd,99432721,0.80,T&S UK - Accommodation
BEIS,UKRI - AHRC,12/04/2022,T&S UK - Accommodation,Operations,Corporate Travel Management (North) Ltd,99432721,88.00,T&S UK - Accommodation
BEIS,UKRI - AHRC,12/04/2022,T&S UK - Accommodation,Operations,Corporate Travel Management (North) Ltd,99432721,0.80,T&S UK - Accommodation
BEIS,UKRI - AHRC,12/04/2022,T&S UK - Accommodation,Operations,Corporate Travel Management (North) Ltd,99432721,87.40,T&S UK - Accommodation
BEIS,UKRI - AHRC,12/04/2022,T&S UK - Accommodation,Operations,Corporate Travel Management (North) Ltd,99432721,0.80,T&S UK - Accommodation
BEIS,UKRI - AHRC,12/04/2022,T&S UK - Accommodation,Operations,Corporate Travel Management (North) Ltd,99432721,65.05,T&S UK - Accommodation
BEIS,UKRI - AHRC,12/04/2022,T&S UK - Accommodation,Operations,Corporate Travel Management (North) Ltd,99432721,0.80,T&S UK - Accommodation
BEIS,UKRI - AHRC,12/04/2022,T&S UK - Accommodation,Operations,Corporate Travel Management (North) Ltd,99432721,130.10,T&S UK - Accommodation
BEIS,UKRI - AHRC,12/04/2022,T&S UK - Accommodation,Operations,Corporate Travel Management (North) Ltd,99432721,0.80,T&S UK - Accommodation
BEIS,UKRI - AHRC,12/04/2022,T&S UK - Accommodation,Operations,Corporate Travel Management (North) Ltd,99432721,130.10,T&S UK - Accommodation
BEIS,UKRI - AHRC,12/04/2022,T&S UK - Accommodation,Operations,Corporate Travel Management (North) Ltd,99432721,0.80,T&S UK - Accommodation
BEIS,UKRI - AHRC,12/04/2022,T&S UK - Accommodation,Operations,Corporate Travel Management (North) Ltd,99432721,130.10,T&S UK - Accommodation
BEIS,UKRI - AHRC,12/04/2022,T&S UK - Accommodation,Operations,Corporate Travel Management (North) Ltd,99432721,0.80,T&S UK - Accommodation
BEIS,UKRI - AHRC,12/04/2022,T&S UK - Accommodation,Operations,Corporate Travel Management (North) Ltd,99432721,130.10,T&S UK - Accommodation
BEIS,UKRI - AHRC,12/04/2022,T&S UK - Accommodation,Operations,Corporate Travel Management (North) Ltd,99432721,0.80,T&S UK - Accommodation
BEIS,UKRI - AHRC,12/04/2022,T&S UK - Accommodation,Operations,Corporate Travel Management (North) Ltd,99432721,130.10,T&S UK - Accommodation
BEIS,UKRI - AHRC,12/04/2022,T&S UK - Accommodation,Operations,Corporate Travel Management (North) Ltd,99432721,0.80,T&S UK - Accommodation
BEIS,UKRI - AHRC,12/04/2022,T&S UK - Accommodation,Operations,Corporate Travel Management (North) Ltd,99432721,0.80,T&S UK - Accommodation
BEIS,UKRI - AHRC,12/04/2022,T&S UK - Accommodation,Operations,Corporate Travel Management (North) Ltd,99432721,65.05,T&S UK - Accommodation
BEIS,UKRI - AHRC,12/04/2022,T&S UK - Accommodation,Operations,Corporate Travel Management (North) Ltd,99432721,0.80,T&S UK - Accommodation
BEIS,UKRI - AHRC,12/04/2022,T&S UK - Accommodation,Operations,Corporate Travel Management (North) Ltd,99432721,294.05,T&S UK - Accommodation
BEIS,UKRI - AHRC,12/04/2022,T&S UK - Accommodation,Operations,Corporate Travel Management (North) Ltd,99432721,0.80,T&S UK - Accommodation
BEIS,UKRI - AHRC,12/04/2022,T&S UK - Accommodation,Operations,Corporate Travel Management (North) Ltd,99432721,272.50,T&S UK - Accommodation
BEIS,UKRI - AHRC,12/04/2022,T&S UK - Accommodation,Operations,Corporate Travel Management (North) Ltd,99432721,0.80,T&S UK - Accommodation
BEIS,UKRI - AHRC,12/04/2022,T&S UK - Accommodation,Operations,Corporate Travel Management (North) Ltd,99432721,272.50,T&S UK - Accommodation
BEIS,UKRI - AHRC,12/04/2022,T&S UK - Accommodation,Operations,Corporate Travel Management (North) Ltd,99432721,0.80,T&S UK - Accommodation
BEIS,UKRI - AHRC,12/04/2022,T&S UK - Accommodation,Operations,Corporate Travel Management (North) Ltd,99432721,310.30,T&S UK - Accommodation
BEIS,UKRI - AHRC,12/04/2022,T&S UK - Accommodation,Operations,Corporate Travel Management (North) Ltd,99432721,0.80,T&S UK - Accommodation
BEIS,UKRI - AHRC,12/04/2022,T&S UK - Accommodation,Operations,Corporate Travel Management (North) Ltd,99432721,261.25,T&S UK - Accommodation
BEIS,UKRI - AHRC,12/04/2022,T&S UK - Accommodation,Operations,Corporate Travel Management (North) Ltd,99432721,0.80,T&S UK - Accommodation
BEIS,UKRI - AHRC,12/04/2022,T&S UK - Accommodation,Operations,Corporate Travel Management (North) Ltd,99432721,45.00,T&S UK - Accommodation
BEIS,UKRI - AHRC,12/04/2022,T&S UK - Accommodation,Operations,Corporate Travel Management (North) Ltd,99432721,0.80,T&S UK - Accommodation
BEIS,UKRI - AHRC,12/04/2022,T&S UK - Accommodation,Operations,Corporate Travel Management (North) Ltd,99432721,45.00,T&S UK - Accommodation
BEIS,UKRI - AHRC,12/04/2022,T&S UK - Accommodation,Operations,Corporate Travel Management (North) Ltd,99432721,0.80,T&S UK - Accommodation
BEIS,UKRI - AHRC,12/04/2022,T&S UK - Accommodation,Operations,Corporate Travel Management (North) Ltd,99432721,45.00,T&S UK - Accommodation
BEIS,UKRI - AHRC,12/04/2022,T&S UK - Accommodation,Operations,Corporate Travel Management (North) Ltd,99432721,0.80,T&S UK - Accommodation
BEIS,UKRI - AHRC,12/04/2022,T&S UK - Accommodation,Operations,Corporate Travel Management (North) Ltd,99432721,46.88,T&S UK - Accommodation
BEIS,UKRI - AHRC,12/04/2022,T&S UK - Accommodation,Operations,Corporate Travel Management (North) Ltd,99432721,0.80,T&S UK - Accommodation
BEIS,UKRI - AHRC,12/04/2022,T&S UK - Accommodation,Operations,Corporate Travel Management (North) Ltd,99432721,45.00,T&S UK - Accommodation
BEIS,UKRI - AHRC,12/04/2022,T&S UK - Accommodation,Operations,Corporate Travel Management (North) Ltd,99432721,3.84,T&S UK - Accommodation
BEIS,UKRI - AHRC,12/04/2022,T&S UK - Accommodation,SMT,Corporate Travel Management (North) Ltd,99432721,0.80,T&S UK - Accommodation
BEIS,UKRI - AHRC,12/04/2022,T&S UK - Accommodation,SMT,Corporate Travel Management (North) Ltd,99432721,75.00,T&S UK - Accommodation
BEIS,UKRI - AHRC,12/04/2022,T&S UK - Accommodation,SMT,Corporate Travel Management (North) Ltd,99432721,0.80,T&S UK - Accommodation
BEIS,UKRI - AHRC,12/04/2022,T&S UK - Accommodation,SMT,Corporate Travel Management (North) Ltd,99432721,89.00,T&S UK - Accommodation
BEIS,UKRI - AHRC,12/04/2022,T&S UK - Accommodation,SMT,Corporate Travel Management (North) Ltd,99432721,0.80,T&S UK - Accommodation
BEIS,UKRI - AHRC,12/04/2022,T&S UK - Accommodation,SMT,Corporate Travel Management (North) Ltd,99432721,81.00,T&S UK - Accommodation
BEIS,UKRI - AHRC,12/04/2022,T&S UK - Accommodation,SMT,Corporate Travel Management (North) Ltd,99432721,2.80,T&S UK - Accommodation
BEIS,UKRI - AHRC,12/04/2022,T&S UK - Accommodation,SMT,Corporate Travel Management (North) Ltd,99432721,130.10,T&S UK - Accommodation
BEIS,UKRI - AHRC,12/04/2022,T&S UK - Accommodation,SMT,Corporate Travel Management (North) Ltd,99432721,2.00,T&S UK - Accommodation
BEIS,UKRI - AHRC,12/04/2022,T&S UK - Accommodation,SMT,Corporate Travel Management (North) Ltd,99432721,143.44,T&S UK - Accommodation
BEIS,UKRI - AHRC,12/04/2022,T&S UK - Accommodation,SMT,Corporate Travel Management (North) Ltd,99432721,0.80,T&S UK - Accommodation
BEIS,UKRI - AHRC,12/04/2022,T&S UK - Accommodation,SMT,Corporate Travel Management (North) Ltd,99432721,49.50,T&S UK - Accommodation
BEIS,UKRI - AHRC,12/04/2022,T&S UK - Accommodation,SMT,Corporate Travel Management (North) Ltd,99432721,0.80,T&S UK - Accommodation
BEIS,UKRI - AHRC,12/04/2022,T&S UK - Accommodation,SMT,Corporate Travel Management (North) Ltd,99432721,1.76,T&S UK - Accommodation
BEIS,UKRI - AHRC,12/04/2022,T&S UK - Flights,SMT,Corporate Travel Management (North) Ltd,99432721,4.50,T&S UK - Flights
BEIS,UKRI - AHRC,12/04/2022,T&S UK - Flights,SMT,Corporate Travel Management (North) Ltd,99432721,205.65,T&S UK - Flights
BEIS,UKRI - AHRC,12/04/2022,T&S UK - Flights,SMT,Corporate Travel Management (North) Ltd,99432721,4.50,T&S UK - Flights
BEIS,UKRI - AHRC,12/04/2022,T&S UK - Flights,SMT,Corporate Travel Management (North) Ltd,99432721,265.10,T&S UK - Flights
BEIS,UKRI - AHRC,12/04/2022,T&S UK - Other Charges,Health and Environmental Humanities,Corporate Travel Management (North) Ltd,99432721,0.80,T&S UK - Other Charges
BEIS,UKRI - AHRC,12/04/2022,T&S UK - Other Charges,Health and Environmental Humanities,Corporate Travel Management (North) Ltd,99432721,114.00,T&S UK - Other Charges
BEIS,UKRI - AHRC,12/04/2022,T&S UK - Other Charges,Health and Environmental Humanities,Corporate Travel Management (North) Ltd,99432721,0.16,T&S UK - Other Charges
BEIS,UKRI - AHRC,12/04/2022,T&S UK - Public Transport,AI&Design,Corporate Travel Management (North) Ltd,99432721,0.25,T&S UK - Public Transport
BEIS,UKRI - AHRC,12/04/2022,T&S UK - Public Transport,AI&Design,Corporate Travel Management (North) Ltd,99432721,107.90,T&S UK - Public Transport
BEIS,UKRI - AHRC,12/04/2022,T&S UK - Public Transport,AI&Design,Corporate Travel Management (North) Ltd,99432721,0.25,T&S UK - Public Transport
BEIS,UKRI - AHRC,12/04/2022,T&S UK - Public Transport,AI&Design,Corporate Travel Management (North) Ltd,99432721,96.70,T&S UK - Public Transport
BEIS,UKRI - AHRC,12/04/2022,T&S UK - Public Transport,FIC- US,Corporate Travel Management (North) Ltd,99432721,0.25,T&S UK - Public Transport
BEIS,UKRI - AHRC,12/04/2022,T&S UK - Public Transport,FIC- US,Corporate Travel Management (North) Ltd,99432721,90.10,T&S UK - Public Transport
BEIS,UKRI - AHRC,12/04/2022,T&S UK - Public Transport,FIC- US,Corporate Travel Management (North) Ltd,99432721,0.25,T&S UK - Public Transport
BEIS,UKRI - AHRC,12/04/2022,T&S UK - Public Transport,FIC- US,Corporate Travel Management (North) Ltd,99432721,90.10,T&S UK - Public Transport
BEIS,UKRI - AHRC,12/04/2022,T&S UK - Public Transport,FIC- US,Corporate Travel Management (North) Ltd,99432721,0.25,T&S UK - Public Transport
BEIS,UKRI - AHRC,12/04/2022,T&S UK - Public Transport,FIC- US,Corporate Travel Management (North) Ltd,99432721,23.00,T&S UK - Public Transport
BEIS,UKRI - AHRC,12/04/2022,T&S UK - Public Transport,Industrial Strategy Challenge Fund (ISCF) - Creative Clusters,Corporate Travel Management (North) Ltd,99432721,0.25,T&S UK - Public Transport
BEIS,UKRI - AHRC,12/04/2022,T&S UK - Public Transport,Industrial Strategy Challenge Fund (ISCF) - Creative Clusters,Corporate Travel Management (North) Ltd,99432721,150.20,T&S UK - Public Transport
BEIS,UKRI - AHRC,12/04/2022,T&S UK - Public Transport,Industrial Strategy Challenge Fund (ISCF) - Creative Clusters,Corporate Travel Management (North) Ltd,99432721,0.25,T&S UK - Public Transport
BEIS,UKRI - AHRC,12/04/2022,T&S UK - Public Transport,Industrial Strategy Challenge Fund (ISCF) - Creative Clusters,Corporate Travel Management (North) Ltd,99432721,150.20,T&S UK - Public Transport
BEIS,UKRI - AHRC,12/04/2022,T&S UK - Public Transport,Industrial Strategy Challenge Fund (ISCF) - Creative Clusters,Corporate Travel Management (North) Ltd,99432721,0.25,T&S UK - Public Transport
BEIS,UKRI - AHRC,12/04/2022,T&S UK - Public Transport,Industrial Strategy Challenge Fund (ISCF) - Creative Clusters,Corporate Travel Management (North) Ltd,99432721,133.50,T&S UK - Public Transport
BEIS,UKRI - AHRC,12/04/2022,T&S UK - Public Transport,Industrial Strategy Challenge Fund (ISCF) - Creative Clusters,Corporate Travel Management (North) Ltd,99432721,0.50,T&S UK - Public Transport
BEIS,UKRI - AHRC,12/04/2022,T&S UK - Public Transport,Industrial Strategy Challenge Fund (ISCF) - Creative Clusters,Corporate Travel Management (North) Ltd,99432721,133.50,T&S UK - Public Transport
BEIS,UKRI - AHRC,12/04/2022,T&S UK - Public Transport,Industrial Strategy Challenge Fund (ISCF) - Creative Clusters,Corporate Travel Management (North) Ltd,99432721,14.10,T&S UK - Public Transport
BEIS,UKRI - AHRC,12/04/2022,T&S UK - Public Transport,Industrial Strategy Challenge Fund (ISCF) - Creative Clusters,Corporate Travel Management (North) Ltd,99432721,0.25,T&S UK - Public Transport
BEIS,UKRI - AHRC,12/04/2022,T&S UK - Public Transport,Industrial Strategy Challenge Fund (ISCF) - Creative Clusters,Corporate Travel Management (North) Ltd,99432721,161.00,T&S UK - Public Transport
BEIS,UKRI - AHRC,12/04/2022,T&S UK - Public Transport,Infrastruture Roadmap,Corporate Travel Management (North) Ltd,99432721,0.25,T&S UK - Public Transport
BEIS,UKRI - AHRC,12/04/2022,T&S UK - Public Transport,Infrastruture Roadmap,Corporate Travel Management (North) Ltd,99432721,72.00,T&S UK - Public Transport
BEIS,UKRI - AHRC,12/04/2022,T&S UK - Public Transport,Infrastruture Roadmap,Corporate Travel Management (North) Ltd,99432721,0.25,T&S UK - Public Transport
BEIS,UKRI - AHRC,12/04/2022,T&S UK - Public Transport,Infrastruture Roadmap,Corporate Travel Management (North) Ltd,99432721,30.00,T&S UK - Public Transport
BEIS,UKRI - AHRC,12/04/2022,T&S UK - Public Transport,Infrastruture Roadmap,Corporate Travel Management (North) Ltd,99432721,0.25,T&S UK - Public Transport
BEIS,UKRI - AHRC,12/04/2022,T&S UK - Public Transport,Infrastruture Roadmap,Corporate Travel Management (North) Ltd,99432721,73.00,T&S UK - Public Transport
BEIS,UKRI - AHRC,12/04/2022,T&S UK - Public Transport,Infrastruture Roadmap,Corporate Travel Management (North) Ltd,99432721,0.25,T&S UK - Public Transport
BEIS,UKRI - AHRC,12/04/2022,T&S UK - Public Transport,Infrastruture Roadmap,Corporate Travel Management (North) Ltd,99432721,193.80,T&S UK - Public Transport
BEIS,UKRI - AHRC,12/04/2022,T&S UK - Public Transport,Infrastruture Roadmap,Corporate Travel Management (North) Ltd,99432721,0.25,T&S UK - Public Transport
BEIS,UKRI - AHRC,12/04/2022,T&S UK - Public Transport,Infrastruture Roadmap,Corporate Travel Management (North) Ltd,99432721,125.90,T&S UK - Public Transport
BEIS,UKRI - AHRC,12/04/2022,T&S UK - Public Transport,International Development and Area Studies,Corporate Travel Management (North) Ltd,99432721,0.25,T&S UK - Public Transport
BEIS,UKRI - AHRC,12/04/2022,T&S UK - Public Transport,International Development and Area Studies,Corporate Travel Management (North) Ltd,99432721,50.55,T&S UK - Public Transport
BEIS,UKRI - AHRC,12/04/2022,T&S UK - Public Transport,International Development and Area Studies,Corporate Travel Management (North) Ltd,99432721,0.25,T&S UK - Public Transport
BEIS,UKRI - AHRC,12/04/2022,T&S UK - Public Transport,International Development and Area Studies,Corporate Travel Management (North) Ltd,99432721,113.20,T&S UK - Public Transport
BEIS,UKRI - AHRC,12/04/2022,T&S UK - Public Transport,International Development and Area Studies,Corporate Travel Management (North) Ltd,99432721,0.25,T&S UK - Public Transport
BEIS,UKRI - AHRC,12/04/2022,T&S UK - Public Transport,International Development and Area Studies,Corporate Travel Management (North) Ltd,99432721,44.35,T&S UK - Public Transport
BEIS,UKRI - AHRC,12/04/2022,T&S UK - Public Transport,International Development and Area Studies,Corporate Travel Management (North) Ltd,99432721,0.25,T&S UK - Public Transport
BEIS,UKRI - AHRC,12/04/2022,T&S UK - Public Transport,International Development and Area Studies,Corporate Travel Management (North) Ltd,99432721,18.10,T&S UK - Public Transport
BEIS,UKRI - AHRC,12/04/2022,T&S UK - Public Transport,International Partnership and Engagement,Corporate Travel Management (North) Ltd,99432721,0.25,T&S UK - Public Transport
BEIS,UKRI - AHRC,12/04/2022,T&S UK - Public Transport,International Partnership and Engagement,Corporate Travel Management (North) Ltd,99432721,38.50,T&S UK - Public Transport
BEIS,UKRI - AHRC,12/04/2022,T&S UK - Public Transport,Operations,Corporate Travel Management (North) Ltd,99432721,0.25,T&S UK - Public Transport
BEIS,UKRI - AHRC,12/04/2022,T&S UK - Public Transport,Operations,Corporate Travel Management (North) Ltd,99432721,12.65,T&S UK - Public Transport
BEIS,UKRI - AHRC,12/04/2022,T&S UK - Public Transport,Operations,Corporate Travel Management (North) Ltd,99432721,0.25,T&S UK - Public Transport
BEIS,UKRI - AHRC,12/04/2022,T&S UK - Public Transport,Operations,Corporate Travel Management (North) Ltd,99432721,101.60,T&S UK - Public Transport
BEIS,UKRI - AHRC,12/04/2022,T&S UK - Public Transport,Operations,Corporate Travel Management (North) Ltd,99432721,0.25,T&S UK - Public Transport
BEIS,UKRI - AHRC,12/04/2022,T&S UK - Public Transport,Operations,Corporate Travel Management (North) Ltd,99432721,101.60,T&S UK - Public Transport
BEIS,UKRI - AHRC,12/04/2022,T&S UK - Public Transport,Operations,Corporate Travel Management (North) Ltd,99432721,0.25,T&S UK - Public Transport
BEIS,UKRI - AHRC,12/04/2022,T&S UK - Public Transport,Operations,Corporate Travel Management (North) Ltd,99432721,101.60,T&S UK - Public Transport
BEIS,UKRI - AHRC,12/04/2022,T&S UK - Public Transport,Operations,Corporate Travel Management (North) Ltd,99432721,0.25,T&S UK - Public Transport
BEIS,UKRI - AHRC,12/04/2022,T&S UK - Public Transport,Operations,Corporate Travel Management (North) Ltd,99432721,101.60,T&S UK - Public Transport
BEIS,UKRI - AHRC,12/04/2022,T&S UK - Public Transport,Operations,Corporate Travel Management (North) Ltd,99432721,0.25,T&S UK - Public Transport
BEIS,UKRI - AHRC,12/04/2022,T&S UK - Public Transport,Operations,Corporate Travel Management (North) Ltd,99432721,81.00,T&S UK - Public Transport
BEIS,UKRI - AHRC,12/04/2022,T&S UK - Public Transport,Operations,Corporate Travel Management (North) Ltd,99432721,0.25,T&S UK - Public Transport
BEIS,UKRI - AHRC,12/04/2022,T&S UK - Public Transport,Operations,Corporate Travel Management (North) Ltd,99432721,140.90,T&S UK - Public Transport
BEIS,UKRI - AHRC,12/04/2022,T&S UK - Public Transport,Operations,Corporate Travel Management (North) Ltd,99432721,0.25,T&S UK - Public Transport
BEIS,UKRI - AHRC,12/04/2022,T&S UK - Public Transport,Operations,Corporate Travel Management (North) Ltd,99432721,135.65,T&S UK - Public Transport
BEIS,UKRI - AHRC,12/04/2022,T&S UK - Public Transport,Operations,Corporate Travel Management (North) Ltd,99432721,0.25,T&S UK - Public Transport
BEIS,UKRI - AHRC,12/04/2022,T&S UK - Public Transport,Operations,Corporate Travel Management (North) Ltd,99432721,234.30,T&S UK - Public Transport
BEIS,UKRI - AHRC,12/04/2022,T&S UK - Public Transport,Operations,Corporate Travel Management (North) Ltd,99432721,0.25,T&S UK - Public Transport
BEIS,UKRI - AHRC,12/04/2022,T&S UK - Public Transport,Operations,Corporate Travel Management (North) Ltd,99432721,223.70,T&S UK - Public Transport
BEIS,UKRI - AHRC,12/04/2022,T&S UK - Public Transport,Operations,Corporate Travel Management (North) Ltd,99432721,4.50,T&S UK - Public Transport
BEIS,UKRI - AHRC,12/04/2022,T&S UK - Public Transport,Operations,Corporate Travel Management (North) Ltd,99432721,241.46,T&S UK - Public Transport
BEIS,UKRI - AHRC,12/04/2022,T&S UK - Public Transport,Operations,Corporate Travel Management (North) Ltd,99432721,0.25,T&S UK - Public Transport
BEIS,UKRI - AHRC,12/04/2022,T&S UK - Public Transport,Operations,Corporate Travel Management (North) Ltd,99432721,37.10,T&S UK - Public Transport
BEIS,UKRI - AHRC,12/04/2022,T&S UK - Public Transport,Operations,Corporate Travel Management (North) Ltd,99432721,0.25,T&S UK - Public Transport
BEIS,UKRI - AHRC,12/04/2022,T&S UK - Public Transport,Operations,Corporate Travel Management (North) Ltd,99432721,140.90,T&S UK - Public Transport
BEIS,UKRI - AHRC,12/04/2022,T&S UK - Public Transport,Operations,Corporate Travel Management (North) Ltd,99432721,0.25,T&S UK - Public Transport
BEIS,UKRI - AHRC,12/04/2022,T&S UK - Public Transport,Operations,Corporate Travel Management (North) Ltd,99432721,97.00,T&S UK - Public Transport
BEIS,UKRI - AHRC,12/04/2022,T&S UK - Public Transport,Operations,Corporate Travel Management (North) Ltd,99432721,0.25,T&S UK - Public Transport
BEIS,UKRI - AHRC,12/04/2022,T&S UK - Public Transport,Operations,Corporate Travel Management (North) Ltd,99432721,99.75,T&S UK - Public Transport
BEIS,UKRI - AHRC,12/04/2022,T&S UK - Public Transport,Operations,Corporate Travel Management (North) Ltd,99432721,0.25,T&S UK - Public Transport
BEIS,UKRI - AHRC,12/04/2022,T&S UK - Public Transport,Operations,Corporate Travel Management (North) Ltd,99432721,157.20,T&S UK - Public Transport
BEIS,UKRI - AHRC,12/04/2022,T&S UK - Public Transport,Operations,Corporate Travel Management (North) Ltd,99432721,0.25,T&S UK - Public Transport
BEIS,UKRI - AHRC,12/04/2022,T&S UK - Public Transport,Operations,Corporate Travel Management (North) Ltd,99432721,151.20,T&S UK - Public Transport
BEIS,UKRI - AHRC,12/04/2022,T&S UK - Public Transport,Operations,Corporate Travel Management (North) Ltd,99432721,0.25,T&S UK - Public Transport
BEIS,UKRI - AHRC,12/04/2022,T&S UK - Public Transport,Operations,Corporate Travel Management (North) Ltd,99432721,96.50,T&S UK - Public Transport
BEIS,UKRI - AHRC,12/04/2022,T&S UK - Public Transport,Operations,Corporate Travel Management (North) Ltd,99432721,0.25,T&S UK - Public Transport
BEIS,UKRI - AHRC,12/04/2022,T&S UK - Public Transport,Operations,Corporate Travel Management (North) Ltd,99432721,72.00,T&S UK - Public Transport
BEIS,UKRI - AHRC,12/04/2022,T&S UK - Public Transport,Operations,Corporate Travel Management (North) Ltd,99432721,0.25,T&S UK - Public Transport
BEIS,UKRI - AHRC,12/04/2022,T&S UK - Public Transport,Operations,Corporate Travel Management (North) Ltd,99432721,157.20,T&S UK - Public Transport
BEIS,UKRI - AHRC,12/04/2022,T&S UK - Public Transport,Operations,Corporate Travel Management (North) Ltd,99432721,0.75,T&S UK - Public Transport
BEIS,UKRI - AHRC,12/04/2022,T&S UK - Public Transport,Operations,Corporate Travel Management (North) Ltd,99432721,6.30,T&S UK - Public Transport
BEIS,UKRI - AHRC,12/04/2022,T&S UK - Public Transport,Operations,Corporate Travel Management (North) Ltd,99432721,78.80,T&S UK - Public Transport
BEIS,UKRI - AHRC,12/04/2022,T&S UK - Public Transport,Operations,Corporate Travel Management (North) Ltd,99432721,6.30,T&S UK - Public Transport
BEIS,UKRI - AHRC,12/04/2022,T&S UK - Public Transport,Operations,Corporate Travel Management (North) Ltd,99432721,0.25,T&S UK - Public Transport
BEIS,UKRI - AHRC,12/04/2022,T&S UK - Public Transport,Operations,Corporate Travel Management (North) Ltd,99432721,157.20,T&S UK - Public Transport
BEIS,UKRI - AHRC,12/04/2022,T&S UK - Public Transport,Operations,Corporate Travel Management (North) Ltd,99432721,0.75,T&S UK - Public Transport
BEIS,UKRI - AHRC,12/04/2022,T&S UK - Public Transport,Operations,Corporate Travel Management (North) Ltd,99432721,6.30,T&S UK - Public Transport
BEIS,UKRI - AHRC,12/04/2022,T&S UK - Public Transport,Operations,Corporate Travel Management (North) Ltd,99432721,77.20,T&S UK - Public Transport
BEIS,UKRI - AHRC,12/04/2022,T&S UK - Public Transport,Operations,Corporate Travel Management (North) Ltd,99432721,6.30,T&S UK - Public Transport
BEIS,UKRI - AHRC,12/04/2022,T&S UK - Public Transport,Operations,Corporate Travel Management (North) Ltd,99432721,0.12,T&S UK - Public Transport
BEIS,UKRI - AHRC,12/04/2022,T&S UK - Public Transport,Operations,Corporate Travel Management (North) Ltd,99432721,26.20,T&S UK - Public Transport
BEIS,UKRI - AHRC,12/04/2022,T&S UK - Public Transport,Operations,Corporate Travel Management (North) Ltd,99432721,0.13,T&S UK - Public Transport
BEIS,UKRI - AHRC,12/04/2022,T&S UK - Public Transport,Operations,Corporate Travel Management (North) Ltd,99432721,26.20,T&S UK - Public Transport
BEIS,UKRI - AHRC,12/04/2022,T&S UK - Public Transport,Public Engagement,Corporate Travel Management (North) Ltd,99432721,0.25,T&S UK - Public Transport
BEIS,UKRI - AHRC,12/04/2022,T&S UK - Public Transport,Public Engagement,Corporate Travel Management (North) Ltd,99432721,13.10,T&S UK - Public Transport
BEIS,UKRI - AHRC,12/04/2022,T&S UK - Public Transport,Public and Stakeholder Engagement,Corporate Travel Management (North) Ltd,99432721,0.25,T&S UK - Public Transport
BEIS,UKRI - AHRC,12/04/2022,T&S UK - Public Transport,Public and Stakeholder Engagement,Corporate Travel Management (North) Ltd,99432721,10.00,T&S UK - Public Transport
BEIS,UKRI - AHRC,12/04/2022,T&S UK - Public Transport,SMT,Corporate Travel Management (North) Ltd,99432721,0.25,T&S UK - Public Transport
BEIS,UKRI - AHRC,12/04/2022,T&S UK - Public Transport,SMT,Corporate Travel Management (North) Ltd,99432721,57.20,T&S UK - Public Transport
BEIS,UKRI - AHRC,12/04/2022,T&S UK - Public Transport,SMT,Corporate Travel Management (North) Ltd,99432721,0.25,T&S UK - Public Transport
BEIS,UKRI - AHRC,12/04/2022,T&S UK - Public Transport,SMT,Corporate Travel Management (North) Ltd,99432721,20.60,T&S UK - Public Transport
BEIS,UKRI - AHRC,12/04/2022,T&S UK - Public Transport,SMT,Corporate Travel Management (North) Ltd,99432721,0.25,T&S UK - Public Transport
BEIS,UKRI - AHRC,12/04/2022,T&S UK - Public Transport,SMT,Corporate Travel Management (North) Ltd,99432721,17.50,T&S UK - Public Transport
BEIS,UKRI - AHRC,12/04/2022,T&S UK - Public Transport,SMT,Corporate Travel Management (North) Ltd,99432721,0.25,T&S UK - Public Transport
BEIS,UKRI - AHRC,12/04/2022,T&S UK - Public Transport,SMT,Corporate Travel Management (North) Ltd,99432721,118.80,T&S UK - Public Transport
BEIS,UKRI - AHRC,12/04/2022,T&S UK - Public Transport,SMT,Corporate Travel Management (North) Ltd,99432721,0.25,T&S UK - Public Transport
BEIS,UKRI - AHRC,12/04/2022,T&S UK - Public Transport,SMT,Corporate Travel Management (North) Ltd,99432721,84.90,T&S UK - Public Transport
BEIS,UKRI - AHRC,12/04/2022,T&S UK - Public Transport,SMT,Corporate Travel Management (North) Ltd,99432721,2.60,T&S UK - Public Transport
BEIS,UKRI - AHRC,12/04/2022,T&S UK - Public Transport,SMT,Corporate Travel Management (North) Ltd,99432721,31.60,T&S UK - Public Transport
BEIS,UKRI - AHRC,12/04/2022,T&S UK - Public Transport,SMT,Corporate Travel Management (North) Ltd,99432721,0.25,T&S UK - Public Transport
BEIS,UKRI - AHRC,12/04/2022,T&S UK - Public Transport,SMT,Corporate Travel Management (North) Ltd,99432721,25.90,T&S UK - Public Transport
BEIS,UKRI - AHRC,12/04/2022,T&S UK - Public Transport,SMT,Corporate Travel Management (North) Ltd,99432721,0.25,T&S UK - Public Transport
BEIS,UKRI - AHRC,12/04/2022,T&S UK - Public Transport,SMT,Corporate Travel Management (North) Ltd,99432721,32.20,T&S UK - Public Transport
BEIS,UKRI - AHRC,12/04/2022,T&S UK - Public Transport,SMT,Corporate Travel Management (North) Ltd,99432721,0.25,T&S UK - Public Transport
BEIS,UKRI - AHRC,12/04/2022,T&S UK - Public Transport,SMT,Corporate Travel Management (North) Ltd,99432721,32.20,T&S UK - Public Transport
BEIS,UKRI - AHRC,12/04/2022,T&S UK - Public Transport,SMT,Corporate Travel Management (North) Ltd,99432721,0.25,T&S UK - Public Transport
BEIS,UKRI - AHRC,12/04/2022,T&S UK - Public Transport,SMT,Corporate Travel Management (North) Ltd,99432721,57.20,T&S UK - Public Transport
BEIS,UKRI - AHRC,12/04/2022,T&S UK - Public Transport,SMT,Corporate Travel Management (North) Ltd,99432721,0.25,T&S UK - Public Transport
BEIS,UKRI - AHRC,12/04/2022,T&S UK - Public Transport,SMT,Corporate Travel Management (North) Ltd,99432721,26.30,T&S UK - Public Transport
BEIS,UKRI - AHRC,12/04/2022,T&S UK - Public Transport,SMT,Corporate Travel Management (North) Ltd,99432721,0.25,T&S UK - Public Transport
BEIS,UKRI - AHRC,12/04/2022,T&S UK - Public Transport,SMT,Corporate Travel Management (North) Ltd,99432721,57.20,T&S UK - Public Transport
BEIS,UKRI - AHRC,12/04/2022,T&S UK - Public Transport,SMT,Corporate Travel Management (North) Ltd,99432721,0.25,T&S UK - Public Transport
BEIS,UKRI - AHRC,12/04/2022,T&S UK - Public Transport,SMT,Corporate Travel Management (North) Ltd,99432721,12.40,T&S UK - Public Transport
BEIS,UKRI - AHRC,12/04/2022,T&S UK - Public Transport,SMT,Corporate Travel Management (North) Ltd,99432721,0.25,T&S UK - Public Transport
BEIS,UKRI - AHRC,12/04/2022,T&S UK - Public Transport,SMT,Corporate Travel Management (North) Ltd,99432721,151.20,T&S UK - Public Transport
BEIS,UKRI - AHRC,12/04/2022,T&S UK - Public Transport,SMT,Corporate Travel Management (North) Ltd,99432721,0.25,T&S UK - Public Transport
BEIS,UKRI - AHRC,12/04/2022,T&S UK - Public Transport,SMT,Corporate Travel Management (North) Ltd,99432721,18.20,T&S UK - Public Transport
BEIS,UKRI - AHRC,12/04/2022,T&S UK - Public Transport,SMT,Corporate Travel Management (North) Ltd,99432721,0.25,T&S UK - Public Transport
BEIS,UKRI - AHRC,12/04/2022,T&S UK - Public Transport,SMT,Corporate Travel Management (North) Ltd,99432721,151.20,T&S UK - Public Transport
BEIS,UKRI - AHRC,12/04/2022,T&S UK - Public Transport,SMT,Corporate Travel Management (North) Ltd,99432721,0.25,T&S UK - Public Transport
BEIS,UKRI - AHRC,12/04/2022,T&S UK - Public Transport,SMT,Corporate Travel Management (North) Ltd,99432721,32.40,T&S UK - Public Transport
BEIS,UKRI - AHRC,12/04/2022,T&S UK - Public Transport,SMT,Corporate Travel Management (North) Ltd,99432721,0.25,T&S UK - Public Transport
BEIS,UKRI - AHRC,12/04/2022,T&S UK - Public Transport,SMT,Corporate Travel Management (North) Ltd,99432721,173.60,T&S UK - Public Transport
BEIS,UKRI - AHRC,12/04/2022,T&S UK - Public Transport,SMT,Corporate Travel Management (North) Ltd,99432721,0.25,T&S UK - Public Transport
BEIS,UKRI - AHRC,12/04/2022,T&S UK - Public Transport,SMT,Corporate Travel Management (North) Ltd,99432721,173.60,T&S UK - Public Transport
BEIS,UKRI - AHRC,12/04/2022,T&S UK - Public Transport,SMT,Corporate Travel Management (North) Ltd,99432721,0.25,T&S UK - Public Transport
BEIS,UKRI - AHRC,12/04/2022,T&S UK - Public Transport,SMT,Corporate Travel Management (North) Ltd,99432721,133.30,T&S UK - Public Transport
BEIS,UKRI - AHRC,12/04/2022,T&S UK - Public Transport,SMT,Corporate Travel Management (North) Ltd,99432721,0.25,T&S UK - Public Transport
BEIS,UKRI - AHRC,12/04/2022,T&S UK - Public Transport,SMT,Corporate Travel Management (North) Ltd,99432721,57.20,T&S UK - Public Transport
BEIS,UKRI - AHRC,12/04/2022,T&S UK - Public Transport,SMT,Corporate Travel Management (North) Ltd,99432721,0.25,T&S UK - Public Transport
BEIS,UKRI - AHRC,12/04/2022,T&S UK - Public Transport,SMT,Corporate Travel Management (North) Ltd,99432721,235.60,T&S UK - Public Transport
BEIS,UKRI - AHRC,12/04/2022,T&S UK - Public Transport,SMT,Corporate Travel Management (North) Ltd,99432721,0.25,T&S UK - Public Transport
BEIS,UKRI - AHRC,12/04/2022,T&S UK - Public Transport,SMT,Corporate Travel Management (North) Ltd,99432721,32.20,T&S UK - Public Transport
BEIS,UKRI - AHRC,12/04/2022,T&S UK - Public Transport,Skills Strategy,Corporate Travel Management (North) Ltd,99432721,0.25,T&S UK - Public Transport
BEIS,UKRI - AHRC,12/04/2022,T&S UK - Public Transport,Skills Strategy,Corporate Travel Management (North) Ltd,99432721,158.50,T&S UK - Public Transport
BEIS,UKRI - AHRC,12/04/2022,T&S UK - Public Transport,Skills Strategy,Corporate Travel Management (North) Ltd,99432721,0.25,T&S UK - Public Transport
BEIS,UKRI - AHRC,12/04/2022,T&S UK - Public Transport,Skills Strategy,Corporate Travel Management (North) Ltd,99432721,131.40,T&S UK - Public Transport
BEIS,UKRI - AHRC,12/04/2022,Non-staff travel and subsistance,SMT,Unspecified,99432731,29.40,Non-staff travel and subsistance
BEIS,UKRI - AHRC,13/04/2022,Voluntary Deductions,Balance Sheet,Swindon Office Sports and Social Club,99402772,24.00,Voluntary Deductions
BEIS,UKRI - AHRC,13/04/2022,Union Deductions,Balance Sheet,PCS Union,99402773,58.67,Union Deductions
BEIS,UKRI - AHRC,13/04/2022,Unspecified,Balance Sheet,Unspecified,99402774,557.00,Ees Pension Deductions - JSS
BEIS,UKRI - AHRC,13/04/2022,Unspecified,Balance Sheet,Scottish Widows,99402775,193.37,Partnership Pension Deductions
BEIS,UKRI - AHRC,13/04/2022,Unspecified,Balance Sheet,Cabinet Office RM Shared Services,99402776,10304.83,Ees Pension Deductions - MyCSP
BEIS,UKRI - AHRC,13/04/2022,Unspecified,Balance Sheet,Cabinet Office RM Shared Services,99402777,52183.00,Ers Pension Deductions - MyCSP
BEIS,UKRI - AHRC,13/04/2022,Unspecified,Balance Sheet,Unspecified,99402778,173.51,Ees Pension Deductions - MRC
BEIS,UKRI - AHRC,13/04/2022,Unspecified,Balance Sheet,Unspecified,99402779,427.09,Ers Pension Deductions - MRC
BEIS,UKRI - AHRC,13/04/2022,Nursery Deductions,Balance Sheet,UKRI - Engineering & Physical Sciences Research Council,99402780,1013.00,Nursery Deductions
BEIS,UKRI - AHRC,13/04/2022,Unspecified,Infrastruture Roadmap,Alexander Mann Solutions Ltd,99416720,2772.24,Legal & Professional Services
BEIS,UKRI - AHRC,13/04/2022,Research Grant Expenditure,Public Engagement,Sophie Toumazis T/A TPR Media Consultants,99435995,4000.00,Research Grant Expenditure
BEIS,UKRI - AHRC,14/04/2022,Corporate Events,International Partnership and Engagement,Wellcome Trust Trading Ltd,99412813,5862.00,Corporate Events
BEIS,UKRI - AHRC,14/04/2022,Unspecified,SMT,University of St Andrews,99435731,20829.96,Secondments
BEIS,UKRI - AHRC,14/04/2022,Non-staff travel and subsistance,Operations,Unspecified,99443753,129.40,Non-staff travel and subsistance
BEIS,UKRI - AHRC,14/04/2022,Non-staff travel and subsistance,Operations,Unspecified,99443754,147.75,Non-staff travel and subsistance
BEIS,UKRI - AHRC,14/04/2022,Non-staff travel and subsistance,Operations,Unspecified,99443755,18.00,Non-staff travel and subsistance
BEIS,UKRI - AHRC,14/04/2022,Non-staff travel and subsistance,Operations,Unspecified,99443756,73.00,Non-staff travel and subsistance
BEIS,UKRI - AHRC,14/04/2022,Non-staff travel and subsistance,Operations,Unspecified,99443757,42.60,Non-staff travel and subsistance
BEIS,UKRI - AHRC,14/04/2022,Non-staff travel and subsistance,Operations,Unspecified,99443758,22.00,Non-staff travel and subsistance
BEIS,UKRI - AHRC,14/04/2022,Non-staff travel and subsistance,Operations,Unspecified,99443759,115.50,Non-staff travel and subsistance
BEIS,UKRI - AHRC,14/04/2022,Non-staff travel and subsistance,Operations,Unspecified,99443760,45.70,Non-staff travel and subsistance
BEIS,UKRI - AHRC,14/04/2022,Non-staff travel and subsistance,Operations,Unspecified,99443761,38.65,Non-staff travel and subsistance
BEIS,UKRI - AHRC,14/04/2022,Non-staff travel and subsistance,Operations,Unspecified,99443762,35.50,Non-staff travel and subsistance
BEIS,UKRI - AHRC,14/04/2022,Non-staff travel and subsistance,Operations,Unspecified,99443763,39.60,Non-staff travel and subsistance
BEIS,UKRI - AHRC,14/04/2022,Non-staff travel and subsistance,Operations,Unspecified,99443764,101.90,Non-staff travel and subsistance
BEIS,UKRI - AHRC,14/04/2022,Non-staff travel and subsistance,Operations,Unspecified,99443765,70.00,Non-staff travel and subsistance
BEIS,UKRI - AHRC,14/04/2022,Non-staff travel and subsistance,Operations,Unspecified,99443766,184.50,Non-staff travel and subsistance
BEIS,UKRI - AHRC,14/04/2022,Non-staff travel and subsistance,Operations,Unspecified,99443767,133.10,Non-staff travel and subsistance
BEIS,UKRI - AHRC,14/04/2022,Non-staff travel and subsistance,Operations,Unspecified,99443768,107.41,Non-staff travel and subsistance
BEIS,UKRI - AHRC,14/04/2022,Non-staff travel and subsistance,Operations,Unspecified,99443769,94.60,Non-staff travel and subsistance
BEIS,UKRI - AHRC,14/04/2022,Non-staff travel and subsistance,Operations,Unspecified,99443770,45.30,Non-staff travel and subsistance
BEIS,UKRI - AHRC,14/04/2022,Non-staff travel and subsistance,Operations,Unspecified,99443771,124.30,Non-staff travel and subsistance
BEIS,UKRI - AHRC,14/04/2022,Non-staff travel and subsistance,Operations,Unspecified,99443772,21.30,Non-staff travel and subsistance
BEIS,UKRI - AHRC,14/04/2022,Non-staff travel and subsistance,Operations,Unspecified,99443773,62.15,Non-staff travel and subsistance
BEIS,UKRI - AHRC,14/04/2022,Non-staff travel and subsistance,Operations,Unspecified,99443774,114.00,Non-staff travel and subsistance
BEIS,UKRI - AHRC,14/04/2022,Non-staff travel and subsistance,Operations,Unspecified,99443775,56.10,Non-staff travel and subsistance
BEIS,UKRI - AHRC,19/04/2022,Non-staff travel and subsistance,Operations,Unspecified,99460788,29.59,Non-staff travel and subsistance
BEIS,UKRI - AHRC,19/04/2022,Non-staff travel and subsistance,Operations,Unspecified,99460789,173.88,Non-staff travel and subsistance
BEIS,UKRI - AHRC,19/04/2022,Non-staff travel and subsistance,Operations,Unspecified,99460790,54.50,Non-staff travel and subsistance
BEIS,UKRI - AHRC,19/04/2022,Non-staff travel and subsistance,Operations,Unspecified,99460791,91.30,Non-staff travel and subsistance
BEIS,UKRI - AHRC,19/04/2022,Fees (Including College Members),Operations,Unspecified,99460792,230.00,Fees (Including College Members)
BEIS,UKRI - AHRC,19/04/2022,Non-staff travel and subsistance,Operations,Unspecified,99460793,58.75,Non-staff travel and subsistance
BEIS,UKRI - AHRC,19/04/2022,Fees (Including College Members),Operations,Unspecified,99460794,170.00,Fees (Including College Members)
BEIS,UKRI - AHRC,19/04/2022,Fees (Including College Members),Operations,Unspecified,99460795,230.00,Fees (Including College Members)
BEIS,UKRI - AHRC,19/04/2022,Fees (Including College Members),Operations,Unspecified,99460796,170.00,Fees (Including College Members)
BEIS,UKRI - AHRC,19/04/2022,Fees (Including College Members),Operations,Unspecified,99460797,170.00,Fees (Including College Members)
BEIS,UKRI - AHRC,19/04/2022,Fees (Including College Members),Operations,Unspecified,99460798,170.00,Fees (Including College Members)
BEIS,UKRI - AHRC,19/04/2022,Fees (Including College Members),Operations,Unspecified,99460799,170.00,Fees (Including College Members)
BEIS,UKRI - AHRC,19/04/2022,Fees (Including College Members),Infrastructure Fund - CoSTAR,Unspecified,99460800,170.00,Fees (Including College Members)
BEIS,UKRI - AHRC,19/04/2022,Health & Safety (inc. Medicals & Opticians),Operations,Unspecified,99464713,25.00,Health & Safety (inc. Medicals & Opticians)
BEIS,UKRI - AHRC,20/04/2022,Non-staff travel and subsistance,Operations,Unspecified,99478738,7.00,Non-staff travel and subsistance
BEIS,UKRI - AHRC,20/04/2022,Non-staff travel and subsistance,Operations,Unspecified,99478739,120.20,Non-staff travel and subsistance
BEIS,UKRI - AHRC,20/04/2022,Non-staff travel and subsistance,Operations,Unspecified,99478740,52.25,Non-staff travel and subsistance
BEIS,UKRI - AHRC,20/04/2022,Fees (Including College Members),Operations,Unspecified,99478741,170.00,Fees (Including College Members)
BEIS,UKRI - AHRC,20/04/2022,Non-staff travel and subsistance,Operations,Unspecified,99478742,460.00,Non-staff travel and subsistance
BEIS,UKRI - AHRC,20/04/2022,Non-staff travel and subsistance,Operations,Unspecified,99478743,108.95,Non-staff travel and subsistance
BEIS,UKRI - AHRC,20/04/2022,Non-staff travel and subsistance,Operations,Unspecified,99478744,93.55,Non-staff travel and subsistance
BEIS,UKRI - AHRC,20/04/2022,Non-staff travel and subsistance,Operations,Unspecified,99478745,108.48,Non-staff travel and subsistance
BEIS,UKRI - AHRC,20/04/2022,Non-staff travel and subsistance,Operations,Unspecified,99478746,107.50,Non-staff travel and subsistance
BEIS,UKRI - AHRC,20/04/2022,Fees (Including College Members),Operations,Unspecified,99478747,230.00,Fees (Including College Members)
BEIS,UKRI - AHRC,21/04/2022,Research Grant Expenditure,Skills Strategy,Clore Leadership Programme,99386810,49600.00,Research Grant Expenditure
BEIS,UKRI - AHRC,21/04/2022,Training Awards - Postgraduates,Collabrative Doctoral Grants - Block Payment,University of Sussex,99426712,5539.75,Training Awards - Postgraduates
BEIS,UKRI - AHRC,21/04/2022,Training Awards - Postgraduates,Collabrative Doctoral Grants - Block Payment,University of Southampton GRANT,99426713,5539.75,Training Awards - Postgraduates
BEIS,UKRI - AHRC,21/04/2022,Training Awards - Postgraduates,Collabrative Doctoral Grants - Block Payment,University of Cambridge,99426714,5539.75,Training Awards - Postgraduates
BEIS,UKRI - AHRC,21/04/2022,Training Awards - Postgraduates,Collabrative Doctoral Grants - Block Payment,Bournemouth University,99426715,5539.75,Training Awards - Postgraduates
BEIS,UKRI - AHRC,21/04/2022,Training Awards - Postgraduates,Collabrative Doctoral Grants - Block Payment,Bournemouth University,99426716,5539.75,Training Awards - Postgraduates
BEIS,UKRI - AHRC,21/04/2022,Training Awards - Postgraduates,Collabrative Doctoral Grants - Block Payment,Bournemouth University,99426716,5539.75,Training Awards - Postgraduates
BEIS,UKRI - AHRC,21/04/2022,Training Awards - Postgraduates,Collabrative Doctoral Grants - Block Payment,Birkbeck College,99426717,5789.75,Training Awards - Postgraduates
BEIS,UKRI - AHRC,21/04/2022,Training Awards - Postgraduates,Collabrative Doctoral Grants - Block Payment,King's College London,99426718,5789.75,Training Awards - Postgraduates
BEIS,UKRI - AHRC,21/04/2022,Training Awards - Postgraduates,Collabrative Doctoral Grants - Block Payment,University of Warwick,99426719,5539.75,Training Awards - Postgraduates
BEIS,UKRI - AHRC,21/04/2022,Training Awards - Postgraduates,Collabrative Doctoral Grants - Block Payment,University of York,99426720,5289.75,Training Awards - Postgraduates
BEIS,UKRI - AHRC,21/04/2022,Training Awards - Postgraduates,Collabrative Doctoral Grants - Block Payment,University of Oxford,99426721,5539.75,Training Awards - Postgraduates
BEIS,UKRI - AHRC,21/04/2022,Training Awards - Postgraduates,Collabrative Doctoral Grants - Block Payment,Birkbeck College,99426722,5789.75,Training Awards - Postgraduates
BEIS,UKRI - AHRC,21/04/2022,Training Awards - Postgraduates,Collabrative Doctoral Grants - Block Payment,University of Durham,99426723,5539.75,Training Awards - Postgraduates
BEIS,UKRI - AHRC,21/04/2022,Training Awards - Postgraduates,Collabrative Doctoral Grants - Block Payment,University of Edinburgh,99426724,5289.75,Training Awards - Postgraduates
BEIS,UKRI - AHRC,21/04/2022,Training Awards - Postgraduates,Collabrative Doctoral Grants - Block Payment,University College London,99426725,5789.75,Training Awards - Postgraduates
BEIS,UKRI - AHRC,21/04/2022,Training Awards - Postgraduates,Collabrative Doctoral Grants - Block Payment,Birkbeck College,99426726,5789.75,Training Awards - Postgraduates
BEIS,UKRI - AHRC,21/04/2022,Training Awards - Postgraduates,Collabrative Doctoral Grants - Block Payment,University of Southampton GRANT,99426727,5539.75,Training Awards - Postgraduates
BEIS,UKRI - AHRC,21/04/2022,Training Awards - Postgraduates,Collabrative Doctoral Grants - Block Payment,University of Southampton GRANT,99426727,5539.75,Training Awards - Postgraduates
BEIS,UKRI - AHRC,21/04/2022,Training Awards - Postgraduates,Collabrative Doctoral Grants - Block Payment,University of Leeds,99426728,5539.75,Training Awards - Postgraduates
BEIS,UKRI - AHRC,21/04/2022,Training Awards - Postgraduates,Collabrative Doctoral Grants - Block Payment,University College London,99426729,5789.75,Training Awards - Postgraduates
BEIS,UKRI - AHRC,21/04/2022,Training Awards - Postgraduates,Collabrative Doctoral Grants - Block Payment,University College London,99426730,5789.75,Training Awards - Postgraduates
BEIS,UKRI - AHRC,21/04/2022,Training Awards - Postgraduates,Collabrative Doctoral Grants - Block Payment,University of Edinburgh,99426731,5289.75,Training Awards - Postgraduates
BEIS,UKRI - AHRC,21/04/2022,Training Awards - Postgraduates,Collabrative Doctoral Grants - Block Payment,Courtauld Institute of Art,99426732,5789.75,Training Awards - Postgraduates
BEIS,UKRI - AHRC,21/04/2022,Training Awards - Postgraduates,Collabrative Doctoral Grants - Block Payment,University of Southampton GRANT,99426733,5539.75,Training Awards - Postgraduates
BEIS,UKRI - AHRC,21/04/2022,Training Awards - Postgraduates,Collabrative Doctoral Grants - Block Payment,University of Leeds,99426734,5289.75,Training Awards - Postgraduates
BEIS,UKRI - AHRC,21/04/2022,Training Awards - Postgraduates,Collabrative Doctoral Grants - Block Payment,University of Exeter,99426735,5539.75,Training Awards - Postgraduates
BEIS,UKRI - AHRC,21/04/2022,Training Awards - Postgraduates,Collabrative Doctoral Grants - Block Payment,University of Exeter,99426736,5539.75,Training Awards - Postgraduates
BEIS,UKRI - AHRC,21/04/2022,Training Awards - Postgraduates,Collabrative Doctoral Grants - Block Payment,University of Newcastle Upon Tyne,99426737,5539.75,Training Awards - Postgraduates
BEIS,UKRI - AHRC,21/04/2022,Training Awards - Postgraduates,Collabrative Doctoral Grants - Block Payment,"Royal Holloway, University of London",99426738,5789.75,Training Awards - Postgraduates
BEIS,UKRI - AHRC,21/04/2022,Training Awards - Postgraduates,Collabrative Doctoral Grants - Block Payment,University of Hull,99426739,5539.75,Training Awards - Postgraduates
BEIS,UKRI - AHRC,21/04/2022,Training Awards - Postgraduates,Collabrative Doctoral Grants - Block Payment,University of Exeter,99426740,5289.75,Training Awards - Postgraduates
BEIS,UKRI - AHRC,21/04/2022,Training Awards - Postgraduates,Collabrative Doctoral Grants - Block Payment,University of Essex,99426741,5539.75,Training Awards - Postgraduates
BEIS,UKRI - AHRC,21/04/2022,Training Awards - Postgraduates,Collabrative Doctoral Grants - Block Payment,Edge Hill University College,99426742,5539.75,Training Awards - Postgraduates
BEIS,UKRI - AHRC,21/04/2022,Training Awards - Postgraduates,Collabrative Doctoral Grants - Block Payment,Royal Northern College of Music,99426743,5539.75,Training Awards - Postgraduates
BEIS,UKRI - AHRC,21/04/2022,Training Awards - Postgraduates,Collabrative Doctoral Grants - Block Payment,University of East Anglia,99426744,5539.75,Training Awards - Postgraduates
BEIS,UKRI - AHRC,21/04/2022,Training Awards - Postgraduates,Collabrative Doctoral Grants - Block Payment,University of Edinburgh,99426745,5289.75,Training Awards - Postgraduates
BEIS,UKRI - AHRC,21/04/2022,Training Awards - Postgraduates,Collabrative Doctoral Grants - Block Payment,University of Leeds,99426746,5706.81,Training Awards - Postgraduates
BEIS,UKRI - AHRC,21/04/2022,Training Awards - Postgraduates,Collabrative Doctoral Grants - Block Payment,University of Brighton,99426747,5289.75,Training Awards - Postgraduates
BEIS,UKRI - AHRC,21/04/2022,Training Awards - Postgraduates,Collabrative Doctoral Grants - Block Payment,The University of Manchester,99426748,5539.75,Training Awards - Postgraduates
BEIS,UKRI - AHRC,21/04/2022,Training Awards - Postgraduates,Collabrative Doctoral Grants - Block Payment,University of York,99426749,5531.00,Training Awards - Postgraduates
BEIS,UKRI - AHRC,21/04/2022,Training Awards - Postgraduates,Collabrative Doctoral Grants - Block Payment,Cardiff University,99426750,5281.00,Training Awards - Postgraduates
BEIS,UKRI - AHRC,21/04/2022,Training Awards - Postgraduates,Collabrative Doctoral Grants - Block Payment,University of Sheffield,99426751,5531.00,Training Awards - Postgraduates
BEIS,UKRI - AHRC,21/04/2022,Training Awards - Postgraduates,Collabrative Doctoral Grants - Block Payment,Heriot Watt University,99426752,5281.00,Training Awards - Postgraduates
BEIS,UKRI - AHRC,21/04/2022,Training Awards - Postgraduates,Collabrative Doctoral Grants - Block Payment,University of Durham,99426753,5531.00,Training Awards - Postgraduates
BEIS,UKRI - AHRC,21/04/2022,Training Awards - Postgraduates,Collabrative Doctoral Grants - Block Payment,University of East Anglia,99426754,5281.00,Training Awards - Postgraduates
BEIS,UKRI - AHRC,21/04/2022,Training Awards - Postgraduates,Collabrative Doctoral Grants - Block Payment,University of East Anglia,99426755,5531.00,Training Awards - Postgraduates
BEIS,UKRI - AHRC,21/04/2022,Training Awards - Postgraduates,Collabrative Doctoral Grants - Block Payment,University of Reading,99426756,5281.00,Training Awards - Postgraduates
BEIS,UKRI - AHRC,21/04/2022,Training Awards - Postgraduates,Collabrative Doctoral Grants - Block Payment,University of Bristol GRANT,99426757,5531.00,Training Awards - Postgraduates
BEIS,UKRI - AHRC,21/04/2022,Training Awards - Postgraduates,Collabrative Doctoral Grants - Block Payment,Birkbeck College,99426758,5781.00,Training Awards - Postgraduates
BEIS,UKRI - AHRC,21/04/2022,Training Awards - Postgraduates,Collabrative Doctoral Grants - Block Payment,University of Lincoln,99426759,5531.00,Training Awards - Postgraduates
BEIS,UKRI - AHRC,21/04/2022,Training Awards - Postgraduates,Collabrative Doctoral Grants - Block Payment,"Royal Holloway, University of London",99426760,5781.00,Training Awards - Postgraduates
BEIS,UKRI - AHRC,21/04/2022,Training Awards - Postgraduates,Collabrative Doctoral Grants - Block Payment,University of Cambridge,99426761,5531.00,Training Awards - Postgraduates
BEIS,UKRI - AHRC,21/04/2022,Training Awards - Postgraduates,Collabrative Doctoral Grants - Block Payment,University of Sheffield,99426762,5281.00,Training Awards - Postgraduates
BEIS,UKRI - AHRC,21/04/2022,Training Awards - Postgraduates,Collabrative Doctoral Grants - Block Payment,University of Cambridge,99426763,5531.00,Training Awards - Postgraduates
BEIS,UKRI - AHRC,21/04/2022,Training Awards - Postgraduates,Collabrative Doctoral Grants - Block Payment,Queen Mary University of London,99426764,5781.00,Training Awards - Postgraduates
BEIS,UKRI - AHRC,21/04/2022,Training Awards - Postgraduates,Collabrative Doctoral Grants - Block Payment,Birkbeck College,99426765,5781.00,Training Awards - Postgraduates
BEIS,UKRI - AHRC,21/04/2022,Training Awards - Postgraduates,Collabrative Doctoral Grants - Block Payment,University of Reading,99426766,5531.00,Training Awards - Postgraduates
BEIS,UKRI - AHRC,21/04/2022,Training Awards - Postgraduates,Collabrative Doctoral Grants - Block Payment,Birkbeck College,99426767,5781.00,Training Awards - Postgraduates
BEIS,UKRI - AHRC,21/04/2022,Training Awards - Postgraduates,Collabrative Doctoral Grants - Block Payment,University of Bath,99426768,5281.00,Training Awards - Postgraduates
BEIS,UKRI - AHRC,21/04/2022,Training Awards - Postgraduates,Collabrative Doctoral Grants - Block Payment,Queen Mary University of London,99426769,5781.00,Training Awards - Postgraduates
BEIS,UKRI - AHRC,21/04/2022,Training Awards - Postgraduates,Collabrative Doctoral Grants - Block Payment,University of Leeds,99426770,5531.00,Training Awards - Postgraduates
BEIS,UKRI - AHRC,21/04/2022,Training Awards - Postgraduates,Collabrative Doctoral Grants - Block Payment,University of Durham,99426771,5531.00,Training Awards - Postgraduates
BEIS,UKRI - AHRC,21/04/2022,Training Awards - Postgraduates,Collabrative Doctoral Grants - Block Payment,Manchester Metropolitan University,99426772,5281.00,Training Awards - Postgraduates
BEIS,UKRI - AHRC,21/04/2022,Training Awards - Postgraduates,Collabrative Doctoral Grants - Block Payment,Birkbeck College,99426773,5781.00,Training Awards - Postgraduates
BEIS,UKRI - AHRC,21/04/2022,Training Awards - Postgraduates,Collabrative Doctoral Grants - Block Payment,Birkbeck College,99426774,5781.00,Training Awards - Postgraduates
BEIS,UKRI - AHRC,21/04/2022,Training Awards - Postgraduates,Collabrative Doctoral Grants - Block Payment,University of London,99426775,5781.00,Training Awards - Postgraduates
BEIS,UKRI - AHRC,21/04/2022,Training Awards - Postgraduates,Collabrative Doctoral Grants - Block Payment,University of London,99426776,5781.00,Training Awards - Postgraduates
BEIS,UKRI - AHRC,21/04/2022,Training Awards - Postgraduates,Collabrative Doctoral Grants - Block Payment,University of Portsmouth,99426777,5531.00,Training Awards - Postgraduates
BEIS,UKRI - AHRC,21/04/2022,Training Awards - Postgraduates,Collabrative Doctoral Grants - Block Payment,Northumbria University,99426778,5281.00,Training Awards - Postgraduates
BEIS,UKRI - AHRC,21/04/2022,Training Awards - Postgraduates,Collabrative Doctoral Grants - Block Payment,Northumbria University,99426778,5281.00,Training Awards - Postgraduates
BEIS,UKRI - AHRC,21/04/2022,Training Awards - Postgraduates,Collabrative Doctoral Grants - Block Payment,University of Winchester,99426779,5531.00,Training Awards - Postgraduates
BEIS,UKRI - AHRC,21/04/2022,Training Awards - Postgraduates,Collabrative Doctoral Grants - Block Payment,Birkbeck College,99426780,5781.00,Training Awards - Postgraduates
BEIS,UKRI - AHRC,21/04/2022,Training Awards - Postgraduates,Collabrative Doctoral Grants - Block Payment,Cardiff University,99426781,5531.00,Training Awards - Postgraduates
BEIS,UKRI - AHRC,21/04/2022,Training Awards - Postgraduates,Collabrative Doctoral Grants - Block Payment,Manchester Metropolitan University,99426782,5531.00,Training Awards - Postgraduates
BEIS,UKRI - AHRC,21/04/2022,Training Awards - Postgraduates,Collabrative Doctoral Grants - Block Payment,University of Reading,99426783,5531.00,Training Awards - Postgraduates
BEIS,UKRI - AHRC,21/04/2022,Training Awards - Postgraduates,Collabrative Doctoral Grants - Block Payment,Northumbria University,99426784,5435.50,Training Awards - Postgraduates
BEIS,UKRI - AHRC,21/04/2022,Training Awards - Postgraduates,Collabrative Doctoral Grants - Block Payment,Northumbria University,99426784,5435.50,Training Awards - Postgraduates
BEIS,UKRI - AHRC,21/04/2022,Training Awards - Postgraduates,Collabrative Doctoral Grants - Block Payment,Northumbria University,99426784,5435.50,Training Awards - Postgraduates
BEIS,UKRI - AHRC,21/04/2022,Training Awards - Postgraduates,Collabrative Doctoral Grants - Block Payment,London School of Economics and Political Science,99426785,5781.00,Training Awards - Postgraduates
BEIS,UKRI - AHRC,21/04/2022,Training Awards - Postgraduates,Collabrative Doctoral Grants - Block Payment,University of Exeter,99426786,10035.12,Training Awards - Postgraduates
BEIS,UKRI - AHRC,21/04/2022,Training Awards - Postgraduates,Collabrative Doctoral Grants - Block Payment,University of Warwick,99426787,5281.00,Training Awards - Postgraduates
BEIS,UKRI - AHRC,21/04/2022,Training Awards - Postgraduates,Collabrative Doctoral Grants - Block Payment,Canterbury Christ Church University GRANT,99426788,5531.00,Training Awards - Postgraduates
BEIS,UKRI - AHRC,21/04/2022,Training Awards - Postgraduates,Collabrative Doctoral Grants - Block Payment,University College London,99426789,5781.00,Training Awards - Postgraduates
BEIS,UKRI - AHRC,21/04/2022,Training Awards - Postgraduates,Collabrative Doctoral Grants - Block Payment,University of Bristol GRANT,99426790,5281.00,Training Awards - Postgraduates
BEIS,UKRI - AHRC,21/04/2022,Training Awards - Postgraduates,Collabrative Doctoral Grants - Block Payment,University of Glasgow,99426791,5281.00,Training Awards - Postgraduates
BEIS,UKRI - AHRC,21/04/2022,Training Awards - Postgraduates,Collabrative Doctoral Grants - Block Payment,University of York,99426792,5531.00,Training Awards - Postgraduates
BEIS,UKRI - AHRC,21/04/2022,Training Awards - Postgraduates,Collabrative Doctoral Grants - Block Payment,University of Exeter,99426793,5531.00,Training Awards - Postgraduates
BEIS,UKRI - AHRC,21/04/2022,Training Awards - Postgraduates,Collabrative Doctoral Grants - Block Payment,University of Edinburgh,99426794,5281.00,Training Awards - Postgraduates
BEIS,UKRI - AHRC,21/04/2022,Training Awards - Postgraduates,Collabrative Doctoral Grants - Block Payment,University of Glasgow,99426795,5281.00,Training Awards - Postgraduates
BEIS,UKRI - AHRC,21/04/2022,Training Awards - Postgraduates,Collabrative Doctoral Grants - Block Payment,University of Edinburgh,99426796,5281.00,Training Awards - Postgraduates
BEIS,UKRI - AHRC,21/04/2022,Training Awards - Postgraduates,International Placement Scheme,University College London,99426797,5370.00,Training Awards - Postgraduates
BEIS,UKRI - AHRC,21/04/2022,Training Awards - Postgraduates,International Placement Scheme,Birkbeck College,99426798,5370.00,Training Awards - Postgraduates
BEIS,UKRI - AHRC,21/04/2022,Training Awards - Postgraduates,International Placement Scheme,"Royal Holloway, University of London",99426799,6070.00,Training Awards - Postgraduates
BEIS,UKRI - AHRC,21/04/2022,Training Awards - Postgraduates,International Placement Scheme,"Royal Holloway, University of London",99426799,800.00,Training Awards - Postgraduates
BEIS,UKRI - AHRC,21/04/2022,Training Awards - Postgraduates,International Placement Scheme,King's College London,99426800,8370.00,Training Awards - Postgraduates
BEIS,UKRI - AHRC,21/04/2022,Training Awards - Postgraduates,Collabrative Doctoral Grants - Block Payment,"Royal Holloway, University of London",99426801,5781.00,Training Awards - Postgraduates
BEIS,UKRI - AHRC,21/04/2022,Training Awards - Postgraduates,International Placement Scheme,University of Stirling,99426802,5370.00,Training Awards - Postgraduates
BEIS,UKRI - AHRC,21/04/2022,Training Awards - Postgraduates,International Placement Scheme,University of Surrey,99426803,1500.00,Training Awards - Postgraduates
BEIS,UKRI - AHRC,21/04/2022,Training Awards - Postgraduates,Collabrative Doctoral Grants - Block Payment,University of Brighton,99426804,5187.25,Training Awards - Postgraduates
BEIS,UKRI - AHRC,21/04/2022,Training Awards - Postgraduates,Collabrative Doctoral Grants - Block Payment,Cardiff University,99426805,4487.55,Training Awards - Postgraduates
BEIS,UKRI - AHRC,21/04/2022,Training Awards - Postgraduates,Collabrative Doctoral Grants - Block Payment,University College London,99426806,5687.25,Training Awards - Postgraduates
BEIS,UKRI - AHRC,21/04/2022,Training Awards - Postgraduates,Collabrative Doctoral Grants - Block Payment,University of Leeds,99426807,5187.25,Training Awards - Postgraduates
BEIS,UKRI - AHRC,21/04/2022,Training Awards - Postgraduates,Collabrative Doctoral Grants - Block Payment,Birkbeck College,99426808,5687.25,Training Awards - Postgraduates
BEIS,UKRI - AHRC,21/04/2022,Training Awards - Postgraduates,Collabrative Doctoral Grants - Block Payment,University of Hertfordshire,99426809,4487.55,Training Awards - Postgraduates
BEIS,UKRI - AHRC,21/04/2022,Training Awards - Postgraduates,Collabrative Doctoral Grants - Block Payment,Goldsmiths College University of London,99426810,5687.25,Training Awards - Postgraduates
BEIS,UKRI - AHRC,21/04/2022,Training Awards - Postgraduates,Collabrative Doctoral Grants - Block Payment,University of Brighton,99426811,5187.25,Training Awards - Postgraduates
BEIS,UKRI - AHRC,21/04/2022,Training Awards - Postgraduates,Collabrative Doctoral Grants - Block Payment,The Open University,99426812,5187.25,Training Awards - Postgraduates
BEIS,UKRI - AHRC,21/04/2022,Training Awards - Postgraduates,Collabrative Doctoral Grants - Block Payment,University of Bristol GRANT,99426813,5187.25,Training Awards - Postgraduates
BEIS,UKRI - AHRC,21/04/2022,Training Awards - Postgraduates,Collabrative Doctoral Grants - Block Payment,University of Bristol GRANT,99426814,5187.25,Training Awards - Postgraduates
BEIS,UKRI - AHRC,21/04/2022,Training Awards - Postgraduates,Collabrative Doctoral Grants - Block Payment,University of Oxford,99426815,5187.25,Training Awards - Postgraduates
BEIS,UKRI - AHRC,21/04/2022,Training Awards - Postgraduates,Collabrative Doctoral Grants - Block Payment,De Montfort University,99426816,4487.52,Training Awards - Postgraduates
BEIS,UKRI - AHRC,21/04/2022,Training Awards - Postgraduates,Collabrative Doctoral Grants - Block Payment,University of Kent,99426817,5187.25,Training Awards - Postgraduates
BEIS,UKRI - AHRC,21/04/2022,Training Awards - Postgraduates,Collabrative Doctoral Grants - Block Payment,University of East Anglia,99426818,5187.25,Training Awards - Postgraduates
BEIS,UKRI - AHRC,21/04/2022,Training Awards - Postgraduates,Collabrative Doctoral Grants - Block Payment,University of East Anglia,99426819,5187.25,Training Awards - Postgraduates
BEIS,UKRI - AHRC,21/04/2022,Training Awards - Postgraduates,Collabrative Doctoral Grants - Block Payment,University of East Anglia,99426820,5187.25,Training Awards - Postgraduates
BEIS,UKRI - AHRC,21/04/2022,Training Awards - Postgraduates,Collabrative Doctoral Grants - Block Payment,University of Edinburgh,99426821,5187.25,Training Awards - Postgraduates
BEIS,UKRI - AHRC,21/04/2022,Training Awards - Postgraduates,Collabrative Doctoral Grants - Block Payment,University of Southampton GRANT,99426822,5187.25,Training Awards - Postgraduates
BEIS,UKRI - AHRC,21/04/2022,Training Awards - Postgraduates,Collabrative Doctoral Grants - Block Payment,University of London,99426823,5687.25,Training Awards - Postgraduates
BEIS,UKRI - AHRC,21/04/2022,Training Awards - Postgraduates,Collabrative Doctoral Grants - Block Payment,University of Edinburgh,99426824,5187.25,Training Awards - Postgraduates
BEIS,UKRI - AHRC,21/04/2022,Training Awards - Postgraduates,Collabrative Doctoral Grants - Block Payment,University of Nottingham,99426825,5187.25,Training Awards - Postgraduates
BEIS,UKRI - AHRC,21/04/2022,Training Awards - Postgraduates,Collabrative Doctoral Grants - Block Payment,University of Brighton,99426826,5187.25,Training Awards - Postgraduates
BEIS,UKRI - AHRC,21/04/2022,Training Awards - Postgraduates,Collabrative Doctoral Grants - Block Payment,Imperial College London,99426827,5687.25,Training Awards - Postgraduates
BEIS,UKRI - AHRC,21/04/2022,Training Awards - Postgraduates,Collabrative Doctoral Grants - Block Payment,Sheffield Hallam University,99426828,5187.25,Training Awards - Postgraduates
BEIS,UKRI - AHRC,21/04/2022,Training Awards - Postgraduates,Collabrative Doctoral Grants - Block Payment,University of Glasgow,99426829,5187.25,Training Awards - Postgraduates
BEIS,UKRI - AHRC,21/04/2022,Training Awards - Postgraduates,Collabrative Doctoral Grants - Block Payment,University College London,99426830,5687.25,Training Awards - Postgraduates
BEIS,UKRI - AHRC,21/04/2022,Training Awards - Postgraduates,Collabrative Doctoral Grants - Block Payment,University of Leeds,99426831,5187.25,Training Awards - Postgraduates
BEIS,UKRI - AHRC,21/04/2022,Training Awards - Postgraduates,Collabrative Doctoral Grants - Block Payment,King's College London,99426832,5687.25,Training Awards - Postgraduates
BEIS,UKRI - AHRC,21/04/2022,Training Awards - Postgraduates,Collabrative Doctoral Grants - Block Payment,King's College London,99426833,5687.25,Training Awards - Postgraduates
BEIS,UKRI - AHRC,21/04/2022,Training Awards - Postgraduates,Collabrative Doctoral Grants - Block Payment,University of Edinburgh,99426834,5187.25,Training Awards - Postgraduates
BEIS,UKRI - AHRC,21/04/2022,Training Awards - Postgraduates,Collabrative Doctoral Grants - Block Payment,University of Leeds,99426835,5187.25,Training Awards - Postgraduates
BEIS,UKRI - AHRC,21/04/2022,Training Awards - Postgraduates,Collabrative Doctoral Grants - Block Payment,University of York,99426836,5187.25,Training Awards - Postgraduates
BEIS,UKRI - AHRC,21/04/2022,Training Awards - Postgraduates,Collabrative Doctoral Grants - Block Payment,University of Durham,99426837,5187.25,Training Awards - Postgraduates
BEIS,UKRI - AHRC,21/04/2022,Training Awards - Postgraduates,Collabrative Doctoral Grants - Block Payment,University College London,99426838,4987.53,Training Awards - Postgraduates
BEIS,UKRI - AHRC,21/04/2022,Training Awards - Postgraduates,Collabrative Doctoral Grants - Block Payment,University of the Arts London,99426839,5687.25,Training Awards - Postgraduates
BEIS,UKRI - AHRC,21/04/2022,Training Awards - Postgraduates,Collabrative Doctoral Grants - Block Payment,University of the Arts London,99426840,5687.25,Training Awards - Postgraduates
BEIS,UKRI - AHRC,21/04/2022,Training Awards - Postgraduates,Collabrative Doctoral Grants - Block Payment,University of Warwick,99426841,5187.25,Training Awards - Postgraduates
BEIS,UKRI - AHRC,21/04/2022,Training Awards - Postgraduates,Collabrative Doctoral Grants - Block Payment,University of Strathclyde,99426842,5187.25,Training Awards - Postgraduates
BEIS,UKRI - AHRC,21/04/2022,Training Awards - Postgraduates,Collabrative Doctoral Grants - Block Payment,Goldsmiths College University of London,99426843,5687.25,Training Awards - Postgraduates
BEIS,UKRI - AHRC,21/04/2022,Training Awards - Postgraduates,Collabrative Doctoral Grants - Block Payment,University of St Andrews,99426844,5187.25,Training Awards - Postgraduates
BEIS,UKRI - AHRC,21/04/2022,Training Awards - Postgraduates,Collabrative Doctoral Grants - Block Payment,University College London,99426845,5687.25,Training Awards - Postgraduates
BEIS,UKRI - AHRC,21/04/2022,Training Awards - Postgraduates,Collabrative Doctoral Grants - Block Payment,University College London,99426846,5687.25,Training Awards - Postgraduates
BEIS,UKRI - AHRC,21/04/2022,Training Awards - Postgraduates,Collabrative Doctoral Grants - Block Payment,University of Hull,99426847,5187.25,Training Awards - Postgraduates
BEIS,UKRI - AHRC,21/04/2022,Training Awards - Postgraduates,Collabrative Doctoral Grants - Block Payment,"City, University of London",99426848,5687.25,Training Awards - Postgraduates
BEIS,UKRI - AHRC,21/04/2022,Training Awards - Postgraduates,Collabrative Doctoral Grants - Block Payment,Glasgow Caledonian University,99426849,5187.25,Training Awards - Postgraduates
BEIS,UKRI - AHRC,21/04/2022,Training Awards - Postgraduates,Collabrative Doctoral Grants - Block Payment,University of York,99426850,5187.25,Training Awards - Postgraduates
BEIS,UKRI - AHRC,21/04/2022,Training Awards - Postgraduates,Collabrative Doctoral Grants - Block Payment,Loughborough University,99426851,5187.25,Training Awards - Postgraduates
BEIS,UKRI - AHRC,21/04/2022,Training Awards - Postgraduates,Collabrative Doctoral Grants - Block Payment,University of Edinburgh,99426852,5187.25,Training Awards - Postgraduates
BEIS,UKRI - AHRC,21/04/2022,Training Awards - Postgraduates,International Placement Scheme,"Royal Holloway, University of London",99426853,4470.00,Training Awards - Postgraduates
BEIS,UKRI - AHRC,21/04/2022,Training Awards - Postgraduates,Industrial Strategy Challenge Fund (ISCF) - Skills,University of the West of England,99426854,19665.67,Training Awards - Postgraduates
BEIS,UKRI - AHRC,21/04/2022,Training Awards - Postgraduates,Industrial Strategy Challenge Fund (ISCF) - Skills,University of Nottingham,99426855,19474.20,Training Awards - Postgraduates
BEIS,UKRI - AHRC,21/04/2022,Training Awards - Postgraduates,Industrial Strategy Challenge Fund (ISCF) - Skills,"Royal Holloway, University of London",99426856,21379.09,Training Awards - Postgraduates
BEIS,UKRI - AHRC,21/04/2022,Training Awards - Postgraduates,Industrial Strategy Challenge Fund (ISCF) - Skills,The University of Manchester,99426857,19474.21,Training Awards - Postgraduates
BEIS,UKRI - AHRC,21/04/2022,Training Awards - Postgraduates,Industrial Strategy Challenge Fund (ISCF) - Skills,University of Glasgow,99426858,19474.20,Training Awards - Postgraduates
BEIS,UKRI - AHRC,21/04/2022,Training Awards - Postgraduates,Collabrative Doctoral Grants - Block Payment,The British Museum,99426859,16450.00,Training Awards - Postgraduates
BEIS,UKRI - AHRC,21/04/2022,Training Awards - Postgraduates,Collabrative Doctoral Grants - Block Payment,The National Archives,99426860,0.06,Training Awards - Postgraduates
BEIS,UKRI - AHRC,21/04/2022,Training Awards - Postgraduates,Collabrative Doctoral Grants - Block Payment,Sheffield Hallam University,99426861,2599.24,Training Awards - Postgraduates
BEIS,UKRI - AHRC,21/04/2022,Training Awards - Postgraduates,Collabrative Doctoral Grants - Block Payment,Queen Mary University of London,99426862,2849.26,Training Awards - Postgraduates
BEIS,UKRI - AHRC,21/04/2022,Training Awards - Postgraduates,Collabrative Doctoral Grants - Block Payment,De Montfort University,99426863,2599.24,Training Awards - Postgraduates
BEIS,UKRI - AHRC,21/04/2022,Training Awards - Postgraduates,Collabrative Doctoral Grants - Block Payment,Courtauld Institute of Art,99426864,2849.26,Training Awards - Postgraduates
BEIS,UKRI - AHRC,21/04/2022,Training Awards - Postgraduates,Collabrative Doctoral Grants - Block Payment,University of the Arts London,99426865,2849.26,Training Awards - Postgraduates
BEIS,UKRI - AHRC,21/04/2022,Training Awards - Postgraduates,Collabrative Doctoral Grants - Block Payment,University of Leeds,99426866,2599.26,Training Awards - Postgraduates
BEIS,UKRI - AHRC,21/04/2022,Training Awards - Postgraduates,Collabrative Doctoral Grants - Block Payment,University of Leeds,99426867,2599.26,Training Awards - Postgraduates
BEIS,UKRI - AHRC,21/04/2022,Training Awards - Postgraduates,Collabrative Doctoral Grants - Block Payment,University of Cambridge,99426868,2599.26,Training Awards - Postgraduates
BEIS,UKRI - AHRC,21/04/2022,Training Awards - Postgraduates,Collabrative Doctoral Grants - Block Payment,University of Cambridge,99426869,2599.26,Training Awards - Postgraduates
BEIS,UKRI - AHRC,21/04/2022,Training Awards - Postgraduates,Collabrative Doctoral Grants - Block Payment,University of Cambridge,99426870,2599.26,Training Awards - Postgraduates
BEIS,UKRI - AHRC,21/04/2022,Training Awards - Postgraduates,Collabrative Doctoral Grants - Block Payment,Keele University,99426871,2599.26,Training Awards - Postgraduates
BEIS,UKRI - AHRC,21/04/2022,Training Awards - Postgraduates,Collabrative Doctoral Grants - Block Payment,University of Strathclyde,99426872,2599.20,Training Awards - Postgraduates
BEIS,UKRI - AHRC,21/04/2022,Training Awards - Postgraduates,Collabrative Doctoral Grants - Block Payment,University of Kent,99426873,2599.26,Training Awards - Postgraduates
BEIS,UKRI - AHRC,21/04/2022,Training Awards - Postgraduates,Collabrative Doctoral Grants - Block Payment,University of Kent,99426874,2580.51,Training Awards - Postgraduates
BEIS,UKRI - AHRC,21/04/2022,Training Awards - Postgraduates,Collabrative Doctoral Grants - Block Payment,University College London,99426875,2849.24,Training Awards - Postgraduates
BEIS,UKRI - AHRC,21/04/2022,Training Awards - Postgraduates,Collabrative Doctoral Grants - Block Payment,University of Durham,99426876,2599.26,Training Awards - Postgraduates
BEIS,UKRI - AHRC,21/04/2022,Training Awards - Postgraduates,Collabrative Doctoral Grants - Block Payment,University of Oxford,99426877,2599.26,Training Awards - Postgraduates
BEIS,UKRI - AHRC,21/04/2022,Training Awards - Postgraduates,Collabrative Doctoral Grants - Block Payment,University of Aberdeen,99426878,2599.26,Training Awards - Postgraduates
BEIS,UKRI - AHRC,21/04/2022,Training Awards - Postgraduates,Collabrative Doctoral Grants - Block Payment,University of York,99426879,2599.26,Training Awards - Postgraduates
BEIS,UKRI - AHRC,21/04/2022,Training Awards - Postgraduates,Collabrative Doctoral Grants - Block Payment,University of Leeds,99426880,2599.26,Training Awards - Postgraduates
BEIS,UKRI - AHRC,21/04/2022,Training Awards - Postgraduates,Collabrative Doctoral Grants - Block Payment,University of Glasgow,99426881,2599.26,Training Awards - Postgraduates
BEIS,UKRI - AHRC,21/04/2022,Training Awards - Postgraduates,Collabrative Doctoral Grants - Block Payment,De Montfort University,99426882,2599.24,Training Awards - Postgraduates
BEIS,UKRI - AHRC,21/04/2022,Training Awards - Postgraduates,Collabrative Doctoral Grants - Block Payment,Birkbeck College,99426883,2848.94,Training Awards - Postgraduates
BEIS,UKRI - AHRC,21/04/2022,Training Awards - Postgraduates,Collabrative Doctoral Grants - Block Payment,University of Southampton GRANT,99426884,2599.26,Training Awards - Postgraduates
BEIS,UKRI - AHRC,21/04/2022,Training Awards - Postgraduates,Collabrative Doctoral Grants - Block Payment,University of Stirling,99426885,2599.26,Training Awards - Postgraduates
BEIS,UKRI - AHRC,21/04/2022,Training Awards - Postgraduates,Collabrative Doctoral Grants - Block Payment,King's College London,99426886,2849.26,Training Awards - Postgraduates
BEIS,UKRI - AHRC,21/04/2022,Training Awards - Postgraduates,Collabrative Doctoral Grants - Block Payment,University of Leeds,99426887,2599.24,Training Awards - Postgraduates
BEIS,UKRI - AHRC,21/04/2022,Training Awards - Postgraduates,Collabrative Doctoral Grants - Block Payment,University College London,99426888,2849.24,Training Awards - Postgraduates
BEIS,UKRI - AHRC,21/04/2022,Training Awards - Postgraduates,Collabrative Doctoral Grants - Block Payment,University College London,99426889,2849.26,Training Awards - Postgraduates
BEIS,UKRI - AHRC,21/04/2022,Training Awards - Postgraduates,Collabrative Doctoral Grants - Block Payment,"City, University of London",99426890,2849.24,Training Awards - Postgraduates
BEIS,UKRI - AHRC,21/04/2022,Training Awards - Postgraduates,Collabrative Doctoral Grants - Block Payment,University of Durham,99426891,2599.24,Training Awards - Postgraduates
BEIS,UKRI - AHRC,21/04/2022,Training Awards - Postgraduates,Collabrative Doctoral Grants - Block Payment,Goldsmiths College University of London,99426892,2849.24,Training Awards - Postgraduates
BEIS,UKRI - AHRC,21/04/2022,Training Awards - Postgraduates,Collabrative Doctoral Grants - Block Payment,Robert Gordon University,99426893,2599.19,Training Awards - Postgraduates
BEIS,UKRI - AHRC,21/04/2022,Training Awards - Postgraduates,Collabrative Doctoral Grants - Block Payment,University of Exeter,99426894,2599.20,Training Awards - Postgraduates
BEIS,UKRI - AHRC,21/04/2022,Training Awards - Postgraduates,Collabrative Doctoral Grants - Block Payment,King's College London,99426895,2849.26,Training Awards - Postgraduates
BEIS,UKRI - AHRC,21/04/2022,Training Awards - Postgraduates,Collabrative Doctoral Grants - Block Payment,University of Brighton,99426896,2599.22,Training Awards - Postgraduates
BEIS,UKRI - AHRC,21/04/2022,Training Awards - Postgraduates,Collabrative Doctoral Grants - Block Payment,Northumbria University,99426897,2599.22,Training Awards - Postgraduates
BEIS,UKRI - AHRC,21/04/2022,Training Awards - Postgraduates,Collabrative Doctoral Grants - Block Payment,Northumbria University,99426897,2599.26,Training Awards - Postgraduates
BEIS,UKRI - AHRC,21/04/2022,Training Awards - Postgraduates,Collabrative Doctoral Grants - Block Payment,"SOAS, University of London",99426898,2849.24,Training Awards - Postgraduates
BEIS,UKRI - AHRC,21/04/2022,Training Awards - Postgraduates,Collabrative Doctoral Grants - Block Payment,University of Stirling,99426899,2599.26,Training Awards - Postgraduates
BEIS,UKRI - AHRC,21/04/2022,Training Awards - Postgraduates,Collabrative Doctoral Grants - Block Payment,University College London,99426900,2847.01,Training Awards - Postgraduates
BEIS,UKRI - AHRC,21/04/2022,Training Awards - Postgraduates,Collabrative Doctoral Grants - Block Payment,University of Sheffield,99426901,2599.26,Training Awards - Postgraduates
BEIS,UKRI - AHRC,21/04/2022,Training Awards - Postgraduates,Collabrative Doctoral Grants - Block Payment,University of London,99426902,2849.26,Training Awards - Postgraduates
BEIS,UKRI - AHRC,21/04/2022,Training Awards - Postgraduates,Collabrative Doctoral Grants - Block Payment,University of Sheffield,99426903,2599.24,Training Awards - Postgraduates
BEIS,UKRI - AHRC,21/04/2022,Training Awards - Postgraduates,BGP Award,University of Sussex,99426904,629340.86,Training Awards - Postgraduates
BEIS,UKRI - AHRC,21/04/2022,Training Awards - Postgraduates,BGP Award,The University of Manchester,99426905,487950.75,Training Awards - Postgraduates
BEIS,UKRI - AHRC,21/04/2022,Training Awards - Postgraduates,BGP Award,University of Bristol GRANT,99426906,324434.26,Training Awards - Postgraduates
BEIS,UKRI - AHRC,21/04/2022,Training Awards - Postgraduates,BGP Award,"Royal Holloway, University of London",99426907,665950.95,Training Awards - Postgraduates
BEIS,UKRI - AHRC,21/04/2022,Training Awards - Postgraduates,BGP Award,University of York,99426908,519787.80,Training Awards - Postgraduates
BEIS,UKRI - AHRC,21/04/2022,Training Awards - Postgraduates,BGP Award,University of Nottingham,99426909,745680.76,Training Awards - Postgraduates
BEIS,UKRI - AHRC,21/04/2022,Training Awards - Postgraduates,BGP Award,University of Nottingham,99426909,13879.26,Training Awards - Postgraduates
BEIS,UKRI - AHRC,21/04/2022,Training Awards - Postgraduates,BGP Award,University of Glasgow,99426910,618070.94,Training Awards - Postgraduates
BEIS,UKRI - AHRC,21/04/2022,Training Awards - Postgraduates,BGP Award,University of Oxford,99426911,828411.81,Training Awards - Postgraduates
BEIS,UKRI - AHRC,21/04/2022,Training Awards - Postgraduates,BGP Award,University College London,99426912,800852.07,Training Awards - Postgraduates
BEIS,UKRI - AHRC,21/04/2022,Training Awards - Postgraduates,BGP Award,University College London,99426912,864.00,Training Awards - Postgraduates
BEIS,UKRI - AHRC,21/04/2022,Training Awards - Postgraduates,BGP Award,University of Newcastle Upon Tyne,99426913,618070.94,Training Awards - Postgraduates
BEIS,UKRI - AHRC,21/04/2022,Training Awards - Postgraduates,Collabrative Doctoral Grants - Block Payment,University of York,99426914,2194.60,Training Awards - Postgraduates
BEIS,UKRI - AHRC,21/04/2022,Training Awards - Postgraduates,BGP Award,"Royal Holloway, University of London",99426915,120810.36,Training Awards - Postgraduates
BEIS,UKRI - AHRC,21/04/2022,Training Awards - Postgraduates,BGP Award,"Royal Holloway, University of London",99426915,9402.96,Training Awards - Postgraduates
BEIS,UKRI - AHRC,21/04/2022,Training Awards - Postgraduates,BGP Award,University of Bristol GRANT,99426916,105708.75,Training Awards - Postgraduates
BEIS,UKRI - AHRC,21/04/2022,Training Awards - Postgraduates,BGP Award,University of Newcastle Upon Tyne,99426917,104913.14,Training Awards - Postgraduates
BEIS,UKRI - AHRC,21/04/2022,Training Awards - Postgraduates,BGP Award,University of Glasgow,99426918,105708.75,Training Awards - Postgraduates
BEIS,UKRI - AHRC,21/04/2022,Training Awards - Postgraduates,BGP Award,The University of Manchester,99426919,122845.01,Training Awards - Postgraduates
BEIS,UKRI - AHRC,21/04/2022,Training Awards - Postgraduates,BGP Award,The University of Manchester,99426919,1499.32,Training Awards - Postgraduates
BEIS,UKRI - AHRC,21/04/2022,Training Awards - Postgraduates,BGP Award,University of Cambridge,99426920,105708.75,Training Awards - Postgraduates
BEIS,UKRI - AHRC,21/04/2022,Training Awards - Postgraduates,BGP Award,University of Oxford,99426921,105708.75,Training Awards - Postgraduates
BEIS,UKRI - AHRC,21/04/2022,Training Awards - Postgraduates,BGP Award,University of Oxford,99426921,10398.70,Training Awards - Postgraduates
BEIS,UKRI - AHRC,21/04/2022,Training Awards - Postgraduates,BGP Award,University College London,99426922,163177.39,Training Awards - Postgraduates
BEIS,UKRI - AHRC,21/04/2022,Training Awards - Postgraduates,BGP Award,University of Sussex,99426923,150841.27,Training Awards - Postgraduates
BEIS,UKRI - AHRC,21/04/2022,Training Awards - Postgraduates,BGP Award,University of Sussex,99426923,6910.69,Training Awards - Postgraduates
BEIS,UKRI - AHRC,21/04/2022,Training Awards - Postgraduates,BGP Award,University of Nottingham,99426924,131584.11,Training Awards - Postgraduates
BEIS,UKRI - AHRC,21/04/2022,Training Awards - Postgraduates,BGP Award,University of York,99426925,161325.81,Training Awards - Postgraduates
BEIS,UKRI - AHRC,21/04/2022,Training Awards - Postgraduates,BGP Award,Northumbria University,99426926,7928.16,Training Awards - Postgraduates
BEIS,UKRI - AHRC,21/04/2022,Training Awards - Postgraduates,BGP Award,Northumbria University,99426926,7928.16,Training Awards - Postgraduates
BEIS,UKRI - AHRC,21/04/2022,Training Awards - Postgraduates,BGP Award,University College London,99426927,19113.29,Training Awards - Postgraduates
BEIS,UKRI - AHRC,21/04/2022,Training Awards - Postgraduates,BGP Award,University of Hull,99426928,13213.60,Training Awards - Postgraduates
BEIS,UKRI - AHRC,21/04/2022,Training Awards - Postgraduates,BGP Award,University of Glasgow,99426929,13213.60,Training Awards - Postgraduates
BEIS,UKRI - AHRC,21/04/2022,Training Awards - Postgraduates,BGP Award,University of the West of England,99426930,18499.04,Training Awards - Postgraduates
BEIS,UKRI - AHRC,21/04/2022,Training Awards - Postgraduates,BGP Award,University of Reading,99426931,16221.19,Training Awards - Postgraduates
BEIS,UKRI - AHRC,21/04/2022,Training Awards - Postgraduates,BGP Award,University of Reading,99426931,2418.83,Training Awards - Postgraduates
BEIS,UKRI - AHRC,21/04/2022,Training Awards - Postgraduates,Collabrative Doctoral Grants - Block Payment,University of Edinburgh,99426932,2599.24,Training Awards - Postgraduates
BEIS,UKRI - AHRC,21/04/2022,Training Awards - Postgraduates,International Placement Scheme,University of Cambridge,99426933,800.00,Training Awards - Postgraduates
BEIS,UKRI - AHRC,21/04/2022,Training Awards - Postgraduates,BGP Award,"Royal Holloway, University of London",99426934,-205434.61,Training Awards - Postgraduates
BEIS,UKRI - AHRC,21/04/2022,Training Awards - Postgraduates,Collabrative Doctoral Grants - Block Payment,The University of Manchester,99426935,-804.33,Training Awards - Postgraduates
BEIS,UKRI - AHRC,21/04/2022,Training Awards - Postgraduates,Collabrative Doctoral Grants - Block Payment,Birkbeck College,99426936,-1744.27,Training Awards - Postgraduates
BEIS,UKRI - AHRC,21/04/2022,Training Awards - Postgraduates,Collabrative Doctoral Grants - Block Payment,University of Reading,99426937,-5731.81,Training Awards - Postgraduates
BEIS,UKRI - AHRC,21/04/2022,Training Awards - Postgraduates,Collabrative Doctoral Grants - Block Payment,Birkbeck College,99426938,-1100.47,Training Awards - Postgraduates
BEIS,UKRI - AHRC,21/04/2022,Training Awards - Postgraduates,Collabrative Doctoral Grants - Block Payment,University of Edinburgh,99426939,-7060.56,Training Awards - Postgraduates
BEIS,UKRI - AHRC,21/04/2022,Training Awards - Postgraduates,Collabrative Doctoral Grants - Block Payment,University of Edinburgh,99426940,-12751.31,Training Awards - Postgraduates
BEIS,UKRI - AHRC,21/04/2022,Training Awards - Postgraduates,Collabrative Doctoral Grants - Block Payment,University of Edinburgh,99426941,-3835.06,Training Awards - Postgraduates
BEIS,UKRI - AHRC,21/04/2022,Training Awards - Postgraduates,Collabrative Doctoral Grants - Block Payment,Birkbeck College,99426942,-1100.47,Training Awards - Postgraduates
BEIS,UKRI - AHRC,21/04/2022,Training Awards - Postgraduates,Collabrative Doctoral Grants - Block Payment,"Royal Holloway, University of London",99426943,-1102.00,Training Awards - Postgraduates
BEIS,UKRI - AHRC,21/04/2022,Training Awards - Postgraduates,Collabrative Doctoral Grants - Block Payment,University of London,99426944,-11947.95,Training Awards - Postgraduates
BEIS,UKRI - AHRC,21/04/2022,Training Awards - Postgraduates,Collabrative Doctoral Grants - Block Payment,University of Edinburgh,99426945,-4797.29,Training Awards - Postgraduates
BEIS,UKRI - AHRC,21/04/2022,Training Awards - Postgraduates,Collabrative Doctoral Grants - Block Payment,Bath Spa University,99426946,-7702.00,Training Awards - Postgraduates
BEIS,UKRI - AHRC,21/04/2022,Training Awards - Postgraduates,Collabrative Doctoral Grants - Block Payment,University of the Highlands and Islands,99426947,3188.52,Training Awards - Postgraduates
BEIS,UKRI - AHRC,21/04/2022,Training Awards - Postgraduates,Collabrative Doctoral Grants - Block Payment,Historic Environment Scotland (GRANT),99426948,1.00,Training Awards - Postgraduates
BEIS,UKRI - AHRC,21/04/2022,Training Awards - Postgraduates,International Placement Scheme,University of London,99426949,-1074.00,Training Awards - Postgraduates
BEIS,UKRI - AHRC,21/04/2022,Training Awards - Postgraduates,International Placement Scheme,The University of Manchester,99426950,4465.00,Training Awards - Postgraduates
BEIS,UKRI - AHRC,21/04/2022,Training Awards - Postgraduates,Collabrative Doctoral Grants - Block Payment,The University of Manchester,99426951,-69969.00,Training Awards - Postgraduates
BEIS,UKRI - AHRC,21/04/2022,Training Awards - Postgraduates,Collabrative Doctoral Grants - Block Payment,Bath Spa University,99426952,68648.00,Training Awards - Postgraduates
BEIS,UKRI - AHRC,21/04/2022,Training Awards - Postgraduates,Industrial Strategy Challenge Fund (ISCF) - Skills,University of Newcastle Upon Tyne,99426954,19474.17,Training Awards - Postgraduates
BEIS,UKRI - AHRC,21/04/2022,Training Awards - Postgraduates,Collabrative Doctoral Grants - Block Payment,University of Newcastle Upon Tyne,99426955,2599.26,Training Awards - Postgraduates
BEIS,UKRI - AHRC,21/04/2022,Non-staff travel and subsistance,Operations,Unspecified,99483729,40.20,Non-staff travel and subsistance
BEIS,UKRI - AHRC,21/04/2022,Fees (Including College Members),Operations,Unspecified,99483730,230.00,Fees (Including College Members)
BEIS,UKRI - AHRC,21/04/2022,Non-staff travel and subsistance,Operations,Unspecified,99483731,123.50,Non-staff travel and subsistance
BEIS,UKRI - AHRC,21/04/2022,Non-staff travel and subsistance,Operations,Unspecified,99483732,28.40,Non-staff travel and subsistance
BEIS,UKRI - AHRC,21/04/2022,Fees (Including College Members),Operations,Unspecified,99483733,230.00,Fees (Including College Members)
BEIS,UKRI - AHRC,21/04/2022,Fees (Including College Members),Operations,Unspecified,99483734,230.00,Fees (Including College Members)
BEIS,UKRI - AHRC,21/04/2022,Fees (Including College Members),Operations,Unspecified,99483735,230.00,Fees (Including College Members)
BEIS,UKRI - AHRC,21/04/2022,Non-staff travel and subsistance,Operations,Unspecified,99483736,80.30,Non-staff travel and subsistance
BEIS,UKRI - AHRC,21/04/2022,Non-staff travel and subsistance,Operations,Unspecified,99483737,19.90,Non-staff travel and subsistance
BEIS,UKRI - AHRC,21/04/2022,Non-staff travel and subsistance,Operations,Unspecified,99483738,87.00,Non-staff travel and subsistance
BEIS,UKRI - AHRC,21/04/2022,Non-staff travel and subsistance,Operations,Unspecified,99483739,30.30,Non-staff travel and subsistance
BEIS,UKRI - AHRC,21/04/2022,Non-staff travel and subsistance,Operations,Unspecified,99483740,105.00,Non-staff travel and subsistance
BEIS,UKRI - AHRC,21/04/2022,Non-staff travel and subsistance,Operations,Unspecified,99483741,113.80,Non-staff travel and subsistance
BEIS,UKRI - AHRC,21/04/2022,Non-staff travel and subsistance,Operations,Unspecified,99483742,38.15,Non-staff travel and subsistance
BEIS,UKRI - AHRC,21/04/2022,Non-staff travel and subsistance,Operations,Unspecified,99483744,124.17,Non-staff travel and subsistance
BEIS,UKRI - AHRC,21/04/2022,Non-staff travel and subsistance,Operations,Unspecified,99483745,56.05,Non-staff travel and subsistance
BEIS,UKRI - AHRC,21/04/2022,Non-staff travel and subsistance,Operations,Unspecified,99483746,6.50,Non-staff travel and subsistance
BEIS,UKRI - AHRC,21/04/2022,Non-staff travel and subsistance,Operations,Unspecified,99483747,113.21,Non-staff travel and subsistance
BEIS,UKRI - AHRC,21/04/2022,Non-staff travel and subsistance,Operations,Unspecified,99483748,33.00,Non-staff travel and subsistance
BEIS,UKRI - AHRC,21/04/2022,Non-staff travel and subsistance,Operations,Unspecified,99483749,80.30,Non-staff travel and subsistance
BEIS,UKRI - AHRC,21/04/2022,Other Programme Costs,Public Engagement,Watershed Arts Trust Ltd,99493724,378.00,Other Programme Costs
BEIS,UKRI - AHRC,21/04/2022,Other Programme Costs,Public Engagement,Watershed Arts Trust Ltd,99493725,6600.00,Other Programme Costs
BEIS,UKRI - AHRC,22/04/2022,Unspecified,Infrastruture Roadmap,Falmouth University,99488753,-37828.42,Secondments
BEIS,UKRI - AHRC,22/04/2022,Unspecified,Infrastruture Roadmap,Falmouth University,99494744,45394.10,Secondments
BEIS,UKRI - AHRC,22/04/2022,Fees (Including College Members),Infrastructure Fund - CoSTAR,Unspecified,99497885,680.00,Fees (Including College Members)
BEIS,UKRI - AHRC,22/04/2022,Non-staff travel and subsistance,Operations,Unspecified,99497886,88.20,Non-staff travel and subsistance
BEIS,UKRI - AHRC,22/04/2022,Non-staff travel and subsistance,Operations,Unspecified,99497887,184.60,Non-staff travel and subsistance
BEIS,UKRI - AHRC,22/04/2022,Non-staff travel and subsistance,Operations,Unspecified,99497888,229.70,Non-staff travel and subsistance
BEIS,UKRI - AHRC,22/04/2022,Fees (Including College Members),Operations,Unspecified,99497889,230.00,Fees (Including College Members)
BEIS,UKRI - AHRC,22/04/2022,Non-staff travel and subsistance,Operations,Unspecified,99497890,119.90,Non-staff travel and subsistance
BEIS,UKRI - AHRC,22/04/2022,Fees (Including College Members),Operations,Unspecified,99497891,170.00,Fees (Including College Members)
BEIS,UKRI - AHRC,22/04/2022,Fees (Including College Members),Operations,Unspecified,99499710,170.00,Fees (Including College Members)
BEIS,UKRI - AHRC,26/04/2022,Unspecified,Infrastruture Roadmap,ICF Consulting Services Ltd,99272477,12090.00,Legal & Professional Services
BEIS,UKRI - AHRC,26/04/2022,Unspecified,Infrastruture Roadmap,ICF Consulting Services Ltd,99272477,22680.00,Legal & Professional Services
BEIS,UKRI - AHRC,26/04/2022,T&S UK - Other Charges,International Partnership and Engagement,Unspecified,99536717,8.98,T&S UK - Other Charges
BEIS,UKRI - AHRC,27/04/2022,Non-staff travel and subsistance,Operations,Unspecified,99541719,107.10,Non-staff travel and subsistance
BEIS,UKRI - AHRC,27/04/2022,Non-staff travel and subsistance,Operations,Unspecified,99541720,76.98,Non-staff travel and subsistance
BEIS,UKRI - AHRC,27/04/2022,Fees (Including College Members),Operations,Unspecified,99541721,690.00,Fees (Including College Members)
BEIS,UKRI - AHRC,27/04/2022,Fees (Including College Members),Operations,Unspecified,99541722,230.00,Fees (Including College Members)
BEIS,UKRI - AHRC,27/04/2022,Fees (Including College Members),Operations,Unspecified,99541723,230.00,Fees (Including College Members)
BEIS,UKRI - AHRC,27/04/2022,Non-staff travel and subsistance,Operations,Unspecified,99541724,62.03,Non-staff travel and subsistance
BEIS,UKRI - AHRC,27/04/2022,Non-staff travel and subsistance,Operations,Unspecified,99541725,71.49,Non-staff travel and subsistance
BEIS,UKRI - AHRC,27/04/2022,Fees (Including College Members),Infrastruture Roadmap,Unspecified,99541726,230.00,Fees (Including College Members)
BEIS,UKRI - AHRC,27/04/2022,Non-staff travel and subsistance,Operations,Unspecified,99548710,10.00,Non-staff travel and subsistance
BEIS,UKRI - AHRC,27/04/2022,Non-staff travel and subsistance,Operations,Unspecified,99548711,75.00,Non-staff travel and subsistance
BEIS,UKRI - AHRC,27/04/2022,Non-staff travel and subsistance,Operations,Unspecified,99548712,95.60,Non-staff travel and subsistance
BEIS,UKRI - AHRC,27/04/2022,Non-staff travel and subsistance,Operations,Unspecified,99548713,56.30,Non-staff travel and subsistance
BEIS,UKRI - AHRC,27/04/2022,Fees (Including College Members),Infrastruture Roadmap,Unspecified,99548714,170.00,Fees (Including College Members)
BEIS,UKRI - AHRC,27/04/2022,Non-staff travel and subsistance,Operations,Unspecified,99548715,31.70,Non-staff travel and subsistance
BEIS,UKRI - AHRC,27/04/2022,Non-staff travel and subsistance,Operations,Unspecified,99548716,27.70,Non-staff travel and subsistance
BEIS,UKRI - AHRC,27/04/2022,Non-staff travel and subsistance,Operations,Unspecified,99548717,92.85,Non-staff travel and subsistance
BEIS,UKRI - AHRC,27/04/2022,Non-staff travel and subsistance,Operations,Unspecified,99548718,155.04,Non-staff travel and subsistance
BEIS,UKRI - AHRC,28/04/2022,T&S UK - Other Charges,Executive Office,Unspecified,99570730,23.95,T&S UK - Other Charges
BEIS,UKRI - AHRC,28/04/2022,T&S UK - Subsistence,Executive Office,Unspecified,99570730,84.38,T&S UK - Subsistence
BEIS,UKRI - AHRC,29/04/2022,Non-staff travel and subsistance,Skills Strategy,Unspecified,99572718,65.00,Non-staff travel and subsistance
BEIS,UKRI - AHRC,29/04/2022,Non-staff travel and subsistance,Operations,Unspecified,99572719,125.00,Non-staff travel and subsistance
BEIS,UKRI - AHRC,29/04/2022,Non-staff travel and subsistance,Operations,Unspecified,99572720,101.19,Non-staff travel and subsistance
BEIS,UKRI - AHRC,29/04/2022,Fees (Including College Members),Operations,Unspecified,99572721,170.00,Fees (Including College Members)
BEIS,UKRI - AHRC,29/04/2022,Research Grant Expenditure,Public Engagement,BRITISH BROADCASTING CORPORATION,99572759,3000.00,Research Grant Expenditure
BEIS,UKRI - AHRC,29/04/2022,Research Grant Expenditure,Public Engagement,BRITISH BROADCASTING CORPORATION,99574856,1666.66,Research Grant Expenditure
BEIS,UKRI - AHRC,29/04/2022,Other Programme Costs,Public Engagement,BRITISH BROADCASTING CORPORATION,99574859,1000.00,Other Programme Costs
BEIS,UKRI - AHRC,29/04/2022,T&S UK - Subsistence,FIC- US,Unspecified,99585716,3.20,T&S UK - Subsistence
BEIS,UKRI - AHRC,29/04/2022,T&S UK - Subsistence,International Partnership and Engagement,Unspecified,99585716,8.45,T&S UK - Subsistence
BEIS,UKRI - BBSRC,01/04/2022,T&S UK - Accommodation,Science Group,Unspecified,99345772,156.38,T&S UK - Accommodation
BEIS,UKRI - BBSRC,01/04/2022,T&S UK - Other Charges,Innovation and Skills Group,Unspecified,99347961,20.00,T&S UK - Other Charges
BEIS,UKRI - BBSRC,01/04/2022,T&S UK - Subsistence,Innovation and Skills Group,Unspecified,99347962,24.98,T&S UK - Subsistence
BEIS,UKRI - BBSRC,01/04/2022,T&S UK - Other Charges,Science Group,Unspecified,99357722,88.98,T&S UK - Other Charges
BEIS,UKRI - BBSRC,01/04/2022,Fees (Including College Members),Science Group – Admin Function,Unspecified,99381718,170.00,Fees (Including College Members)
BEIS,UKRI - BBSRC,01/04/2022,Fees (Including College Members),Science Group – Admin Function,Unspecified,99381719,170.00,Fees (Including College Members)
BEIS,UKRI - BBSRC,01/04/2022,Fees (Including College Members),Science Group – Admin Function,Unspecified,99381720,170.00,Fees (Including College Members)
BEIS,UKRI - BBSRC,01/04/2022,Fees (Including College Members),Science Group – Admin Function,Unspecified,99381721,170.00,Fees (Including College Members)
BEIS,UKRI - BBSRC,01/04/2022,Fees (Including College Members),Science Group – Admin Function,Unspecified,99381722,170.00,Fees (Including College Members)
BEIS,UKRI - BBSRC,01/04/2022,Fees (Including College Members),Science Group – Admin Function,Unspecified,99381723,170.00,Fees (Including College Members)
BEIS,UKRI - BBSRC,01/04/2022,Fees (Including College Members),Science Group – Admin Function,Unspecified,99381724,170.00,Fees (Including College Members)
BEIS,UKRI - BBSRC,01/04/2022,Fees (Including College Members),Science Group – Admin Function,Unspecified,99381725,170.00,Fees (Including College Members)
BEIS,UKRI - BBSRC,01/04/2022,Fees (Including College Members),Science Group – Admin Function,Unspecified,99381726,170.00,Fees (Including College Members)
BEIS,UKRI - BBSRC,01/04/2022,Fees (Including College Members),Science Group – Admin Function,Unspecified,99381727,170.00,Fees (Including College Members)
BEIS,UKRI - BBSRC,01/04/2022,Fees (Including College Members),Science Group – Admin Function,Unspecified,99381728,170.00,Fees (Including College Members)
BEIS,UKRI - BBSRC,01/04/2022,Fees (Including College Members),Science Group – Admin Function,Unspecified,99381729,170.00,Fees (Including College Members)
BEIS,UKRI - BBSRC,01/04/2022,Research Institutes - Capital Grants: Minor Works,Pirbright,The Pirbright Institute,99382927,62468.20,Research Institutes - Capital Grants: Minor Works
BEIS,UKRI - BBSRC,01/04/2022,Research Institutes - Capital Grants: Minor Works,Pirbright,The Pirbright Institute,99382932,21678.76,Research Institutes - Capital Grants: Minor Works
BEIS,UKRI - BBSRC,01/04/2022,Research Institutes - Capital Grants: Minor Works,JIC,John Innes Centre,99382935,13199.80,Research Institutes - Capital Grants: Minor Works
BEIS,UKRI - BBSRC,01/04/2022,Research Institutes - Capital Grants: Major Works,Pirbright,The Pirbright Institute,99382936,21128.51,Research Institutes - Capital Grants: Major Works
BEIS,UKRI - BBSRC,01/04/2022,Research Institutes - Capital Grants: Minor Works,JIC,John Innes Centre,99382937,7631.77,Research Institutes - Capital Grants: Minor Works
BEIS,UKRI - BBSRC,01/04/2022,Research Institutes - Capital Grants: Minor Works,Pirbright,The Pirbright Institute,99382939,15203.47,Research Institutes - Capital Grants: Minor Works
BEIS,UKRI - BBSRC,01/04/2022,Research Institutes - Capital Grants: Minor Works,IFR,Quadram Institute Bioscience,99382958,17455.50,Research Institutes - Capital Grants: Minor Works
BEIS,UKRI - BBSRC,01/04/2022,Research Institutes - Capital Grants: Minor Works,Pirbright,The Pirbright Institute,99384723,13691.39,Research Institutes - Capital Grants: Minor Works
BEIS,UKRI - BBSRC,01/04/2022,Research Institutes - Capital Grants: Minor Works,Pirbright,The Pirbright Institute,99384725,303.60,Research Institutes - Capital Grants: Minor Works
BEIS,UKRI - BBSRC,01/04/2022,Research Institutes - Capital Grants: Minor Works,Pirbright,The Pirbright Institute,99384727,24677.00,Research Institutes - Capital Grants: Minor Works
BEIS,UKRI - BBSRC,01/04/2022,Research Institutes - Capital Grants: Minor Works,Pirbright,The Pirbright Institute,99386730,24901.44,Research Institutes - Capital Grants: Minor Works
BEIS,UKRI - BBSRC,01/04/2022,Research Institutes - Capital Grants: Minor Works,Estates - Projects,Rothamsted Enterprises Ltd,99386766,86400.00,Research Institutes - Capital Grants: Minor Works
BEIS,UKRI - BBSRC,01/04/2022,Research Institutes - Capital Grants: Minor Works,Rothamsted Research,Rothamsted Research Ltd,99386804,6417.46,Research Institutes - Capital Grants: Minor Works
BEIS,UKRI - BBSRC,01/04/2022,Research Institutes - Capital Grants: Minor Works,Estates - Projects,Rothamsted Enterprises Ltd,99386823,72000.00,Research Institutes - Capital Grants: Minor Works
BEIS,UKRI - BBSRC,01/04/2022,Other Programme Costs,Strategic Priorities Fund,Bright Harbour Research Ltd,99386826,5947.00,Other Programme Costs
BEIS,UKRI - BBSRC,01/04/2022,Research Institutes - Capital Grants: Minor Works,Rothamsted Research,Rothamsted Research Ltd,99386854,102948.60,Research Institutes - Capital Grants: Minor Works
BEIS,UKRI - BBSRC,01/04/2022,Research Institutes - Capital Grants: Minor Works,Rothamsted Research,Rothamsted Research Ltd,99386859,28817.77,Research Institutes - Capital Grants: Minor Works
BEIS,UKRI - BBSRC,01/04/2022,Research Institutes - Capital Grants: Minor Works,Rothamsted Research,Rothamsted Research Ltd,99386868,5394.67,Research Institutes - Capital Grants: Minor Works
BEIS,UKRI - BBSRC,01/04/2022,Research Institutes - Capital Grants: Minor Works,Estates - Projects,Rothamsted Enterprises Ltd,99386874,-86400.00,Research Institutes - Capital Grants: Minor Works
BEIS,UKRI - BBSRC,01/04/2022,Research Institutes - Capital Grants: Minor Works,JIC,John Innes Centre,99386906,16559.69,Research Institutes - Capital Grants: Minor Works
BEIS,UKRI - BBSRC,01/04/2022,T&S UK - Other Charges,Science Group,Unspecified,99386909,100.00,T&S UK - Other Charges
BEIS,UKRI - BBSRC,04/04/2022,Unspecified,FG - Estates,Womble Bond Dickinson LLP,99390745,497.95,Legal & Professional Services
BEIS,UKRI - BBSRC,04/04/2022,Research Grant Expenditure,SPF W1 EMBL EBI,EMBL (European Molecular Biology Laboratory),99391742,63323.22,Research Grant Expenditure
BEIS,UKRI - BBSRC,04/04/2022,Research Institutes - Capital Grants: Minor Works,JIC,John Innes Centre,99392741,25268.19,Research Institutes - Capital Grants: Minor Works
BEIS,UKRI - BBSRC,04/04/2022,Fees (Including College Members),Science Group - Delivery Function,Unspecified,99392748,170.00,Fees (Including College Members)
BEIS,UKRI - BBSRC,04/04/2022,Fees (Including College Members),Science Group – Admin Function,Unspecified,99392749,170.00,Fees (Including College Members)
BEIS,UKRI - BBSRC,04/04/2022,Fees (Including College Members),Science Group – Admin Function,Unspecified,99392750,170.00,Fees (Including College Members)
BEIS,UKRI - BBSRC,04/04/2022,Fees (Including College Members),Science Group – Admin Function,Unspecified,99392751,170.00,Fees (Including College Members)
BEIS,UKRI - BBSRC,04/04/2022,Fees (Including College Members),Science Group – Admin Function,Unspecified,99392752,340.00,Fees (Including College Members)
BEIS,UKRI - BBSRC,04/04/2022,Fees (Including College Members),Science Group - Delivery Function,Unspecified,99392753,230.00,Fees (Including College Members)
BEIS,UKRI - BBSRC,04/04/2022,Fees (Including College Members),Science Group – Admin Function,Unspecified,99392754,170.00,Fees (Including College Members)
BEIS,UKRI - BBSRC,04/04/2022,Fees (Including College Members),Science Group – Admin Function,Unspecified,99392755,170.00,Fees (Including College Members)
BEIS,UKRI - BBSRC,04/04/2022,Fees (Including College Members),Science Group – Admin Function,Unspecified,99392756,170.00,Fees (Including College Members)
BEIS,UKRI - BBSRC,04/04/2022,Fees (Including College Members),Science Group – Admin Function,Unspecified,99392757,170.00,Fees (Including College Members)
BEIS,UKRI - BBSRC,04/04/2022,Fees (Including College Members),Science Group – Admin Function,Unspecified,99392758,170.00,Fees (Including College Members)
BEIS,UKRI - BBSRC,04/04/2022,Fees (Including College Members),Science Group – Admin Function,Unspecified,99392759,170.00,Fees (Including College Members)
BEIS,UKRI - BBSRC,04/04/2022,Fees (Including College Members),Science Group – Admin Function,Unspecified,99392760,170.00,Fees (Including College Members)
BEIS,UKRI - BBSRC,04/04/2022,Fees (Including College Members),Science Group - Delivery Function,Unspecified,99392761,170.00,Fees (Including College Members)
BEIS,UKRI - BBSRC,04/04/2022,Research Grant Expenditure,Impact & Knowledge Exchange,Agriculture And Horticulture Development Board (AHDB),99393742,490173.87,Research Grant Expenditure
BEIS,UKRI - BBSRC,04/04/2022,Research Institutes - Capital Grants: Minor Works,JIC,John Innes Centre,99393885,10241.71,Research Institutes - Capital Grants: Minor Works
BEIS,UKRI - BBSRC,04/04/2022,Research Institutes - Capital Grants: Minor Works,JIC,John Innes Centre,99394785,4147.32,Research Institutes - Capital Grants: Minor Works
BEIS,UKRI - BBSRC,04/04/2022,Research Institutes - Capital Grants: Minor Works,TGAC,Earlham Institute,99394808,195578.22,Research Institutes - Capital Grants: Minor Works
BEIS,UKRI - BBSRC,05/04/2022,Fees (Including College Members),Science Group – Admin Function,Unspecified,99394057,170.00,Fees (Including College Members)
BEIS,UKRI - BBSRC,05/04/2022,Fees (Including College Members),Science Group – Admin Function,Unspecified,99394058,170.00,Fees (Including College Members)
BEIS,UKRI - BBSRC,05/04/2022,Fees (Including College Members),Science Group – Admin Function,Unspecified,99394059,170.00,Fees (Including College Members)
BEIS,UKRI - BBSRC,05/04/2022,Fees (Including College Members),Science Group – Admin Function,Unspecified,99394060,170.00,Fees (Including College Members)
BEIS,UKRI - BBSRC,05/04/2022,Research Grant Expenditure,SPF W1 EMBL EBI,EMBL (European Molecular Biology Laboratory),99394300,9750.00,Research Grant Expenditure
BEIS,UKRI - BBSRC,05/04/2022,Research Institutes - Capital Grants: Minor Works,TGAC,Earlham Institute,99395739,209271.38,Research Institutes - Capital Grants: Minor Works
BEIS,UKRI - BBSRC,05/04/2022,Research Institutes - Capital Grants: Minor Works,IFR,Quadram Institute Bioscience,99395765,125556.77,Research Institutes - Capital Grants: Minor Works
BEIS,UKRI - BBSRC,05/04/2022,Research Institutes - Capital Grants: Minor Works,Pirbright,The Pirbright Institute,99395881,2804.68,Research Institutes - Capital Grants: Minor Works
BEIS,UKRI - BBSRC,05/04/2022,Research Institutes - Capital Grants: Minor Works,Pirbright,The Pirbright Institute,99395883,1410.00,Research Institutes - Capital Grants: Minor Works
BEIS,UKRI - BBSRC,05/04/2022,Research Institutes - Capital Grants: Minor Works,Estates - Projects,EMBL (European Molecular Biology Laboratory),99395918,4366.50,Research Institutes - Capital Grants: Minor Works
BEIS,UKRI - BBSRC,05/04/2022,Research Grant Expenditure,SPF W1 EMBL EBI,EMBL (European Molecular Biology Laboratory),99395920,4800.00,Research Grant Expenditure
BEIS,UKRI - BBSRC,06/04/2022,Research Grant Expenditure,SPF W1 EMBL EBI,EMBL (European Molecular Biology Laboratory),99396856,3900.00,Research Grant Expenditure
BEIS,UKRI - BBSRC,06/04/2022,Fees (Including College Members),Science Group – Admin Function,Unspecified,99398836,170.00,Fees (Including College Members)
BEIS,UKRI - BBSRC,06/04/2022,Fees (Including College Members),Science Group – Admin Function,Unspecified,99398837,170.00,Fees (Including College Members)
BEIS,UKRI - BBSRC,06/04/2022,Fees (Including College Members),Science Group – Admin Function,Unspecified,99398838,170.00,Fees (Including College Members)
BEIS,UKRI - BBSRC,06/04/2022,Fees (Including College Members),Science Group – Admin Function,Unspecified,99398839,170.00,Fees (Including College Members)
BEIS,UKRI - BBSRC,06/04/2022,Fees (Including College Members),Science Group – Admin Function,Unspecified,99398840,170.00,Fees (Including College Members)
BEIS,UKRI - BBSRC,06/04/2022,Fees (Including College Members),Science Group – Admin Function,Unspecified,99398841,170.00,Fees (Including College Members)
BEIS,UKRI - BBSRC,06/04/2022,Fees (Including College Members),Science Group – Admin Function,Unspecified,99398842,170.00,Fees (Including College Members)
BEIS,UKRI - BBSRC,06/04/2022,Fees (Including College Members),Science Group – Admin Function,Unspecified,99398843,340.00,Fees (Including College Members)
BEIS,UKRI - BBSRC,06/04/2022,Fees (Including College Members),Science Group – Admin Function,Unspecified,99398844,170.00,Fees (Including College Members)
BEIS,UKRI - BBSRC,06/04/2022,Fees (Including College Members),Science Group – Admin Function,Unspecified,99398845,170.00,Fees (Including College Members)
BEIS,UKRI - BBSRC,06/04/2022,Fees (Including College Members),Science Group – Admin Function,Unspecified,99398846,170.00,Fees (Including College Members)
BEIS,UKRI - BBSRC,06/04/2022,Fees (Including College Members),Science Group – Admin Function,Unspecified,99398847,230.00,Fees (Including College Members)
BEIS,UKRI - BBSRC,06/04/2022,Fees (Including College Members),Science Group – Admin Function,Unspecified,99398848,460.00,Fees (Including College Members)
BEIS,UKRI - BBSRC,06/04/2022,Fees (Including College Members),Science Group – Admin Function,Unspecified,99398849,170.00,Fees (Including College Members)
BEIS,UKRI - BBSRC,06/04/2022,Fees (Including College Members),Science Group – Admin Function,Unspecified,99398850,170.00,Fees (Including College Members)
BEIS,UKRI - BBSRC,06/04/2022,Fees (Including College Members),Science Group – Admin Function,Unspecified,99398851,340.00,Fees (Including College Members)
BEIS,UKRI - BBSRC,06/04/2022,Non-staff travel and subsistance,OpEx SPF W1 UK Animal & Plant Health,Unspecified,99398853,241.63,Non-staff travel and subsistance
BEIS,UKRI - BBSRC,06/04/2022,Non-staff travel and subsistance,OpEx SPF W1 UK Animal & Plant Health,Unspecified,99398854,80.50,Non-staff travel and subsistance
BEIS,UKRI - BBSRC,07/04/2022,Non-staff travel and subsistance,OpEx SPF W1 UK Animal & Plant Health,Unspecified,99400560,121.50,Non-staff travel and subsistance
BEIS,UKRI - BBSRC,07/04/2022,Non-staff travel and subsistance,OpEx SPF W1 UK Animal & Plant Health,Unspecified,99400561,59.20,Non-staff travel and subsistance
BEIS,UKRI - BBSRC,07/04/2022,Fees (Including College Members),Science Group - Delivery Function,Unspecified,99400562,460.00,Fees (Including College Members)
BEIS,UKRI - BBSRC,07/04/2022,Research Grant Expenditure,SPF W1 EMBL EBI,EMBL (European Molecular Biology Laboratory),99401712,14016.57,Research Grant Expenditure
BEIS,UKRI - BBSRC,07/04/2022,Conferences & Seminars,Innovation and Skills Group,The Francis Crick Institute,99401718,1606.26,Conferences & Seminars
BEIS,UKRI - BBSRC,08/04/2022,Research Institutes - Capital Grants: Minor Works,Rothamsted Research,Rothamsted Research Ltd,99403114,42961.51,Research Institutes - Capital Grants: Minor Works
BEIS,UKRI - BBSRC,08/04/2022,Research Institutes - Capital Grants: Minor Works,JIC,John Innes Centre,99403131,154986.64,Research Institutes - Capital Grants: Minor Works
BEIS,UKRI - BBSRC,08/04/2022,Research Institutes - Capital Grants: Minor Works,Estates - Projects,EMBL (European Molecular Biology Laboratory),99403191,176819.96,Research Institutes - Capital Grants: Minor Works
BEIS,UKRI - BBSRC,08/04/2022,Staff Training,PDG - Director,The Colour Works International Limited,99410712,95.04,Staff Training
BEIS,UKRI - BBSRC,08/04/2022,T&S UK - Public Transport,Innovation and Skills Group,Unspecified,99410721,19.00,T&S UK - Public Transport
BEIS,UKRI - BBSRC,08/04/2022,T&S UK - Public Transport,Innovation and Skills Group,Unspecified,99410721,5.00,T&S UK - Public Transport
BEIS,UKRI - BBSRC,08/04/2022,T&S UK - Subsistence,Innovation and Skills Group,Unspecified,99410721,5.29,T&S UK - Subsistence
BEIS,UKRI - BBSRC,08/04/2022,Health & Safety (inc. Medicals & Opticians),CE - IRU,Unspecified,99410722,100.00,Health & Safety (inc. Medicals & Opticians)
BEIS,UKRI - BBSRC,08/04/2022,T&S UK - Subsistence,PDG - Director,Unspecified,99410723,6.61,T&S UK - Subsistence
BEIS,UKRI - BBSRC,11/04/2022,Research Institutes - Capital Grants: Minor Works,Rothamsted Research,Rothamsted Research Ltd,99386846,6549.29,Research Institutes - Capital Grants: Minor Works
BEIS,UKRI - BBSRC,11/04/2022,Unspecified,Innovation and Skills Group,Shift Insight Ltd,99386895,2987.14,Legal & Professional Services
BEIS,UKRI - BBSRC,11/04/2022,Research Institutes - Capital Grants: Minor Works,TGAC,Earlham Institute,99394790,22880.00,Research Institutes - Capital Grants: Minor Works
BEIS,UKRI - BBSRC,11/04/2022,T&S Overseas - Accommodation,Science Group,HM Treasury Group,99394828,3600.00,T&S Overseas - Accommodation
BEIS,UKRI - BBSRC,11/04/2022,Research Grant Expenditure,SPF W1 EMBL EBI,EMBL (European Molecular Biology Laboratory),99417742,8400.00,Research Grant Expenditure
BEIS,UKRI - BBSRC,11/04/2022,Research Grant Expenditure,Impact & Knowledge Exchange,Technology Strategy Board (Innovate UK),99419712,400000.00,Research Grant Expenditure
BEIS,UKRI - BBSRC,11/04/2022,T&S UK - Subsistence,Science Group,Unspecified,99425724,24.50,T&S UK - Subsistence
BEIS,UKRI - BBSRC,11/04/2022,T&S UK - Subsistence,Science Group,Unspecified,99425724,23.56,T&S UK - Subsistence
BEIS,UKRI - BBSRC,11/04/2022,T&S UK - Subsistence,Science Group,Unspecified,99425724,8.07,T&S UK - Subsistence
BEIS,UKRI - BBSRC,12/04/2022,Conferences & Seminars,Innovation and Skills Group,Studio 108 Design Partnership,99400571,8700.00,Conferences & Seminars
BEIS,UKRI - BBSRC,12/04/2022,Unspecified,Balance Sheet,HM Revenue & Customs,99401052,2313.10,PAYE Payable Salaries
BEIS,UKRI - BBSRC,12/04/2022,Unspecified,FG - Accounts & Business Planning,HM Revenue & Customs,99401053,35.00,Apprenticeship Levy
BEIS,UKRI - BBSRC,12/04/2022,Unspecified,Balance Sheet,HM Revenue & Customs,99401719,82178.38,PAYE Payable Salaries
BEIS,UKRI - BBSRC,12/04/2022,Unspecified,Balance Sheet,HM Revenue & Customs,99401720,7785.00,Student Loans
BEIS,UKRI - BBSRC,12/04/2022,Unspecified,Balance Sheet,HM Revenue & Customs,99401721,107606.08,NI Payable Salaries
BEIS,UKRI - BBSRC,12/04/2022,Unspecified,FG - Accounts & Business Planning,HM Revenue & Customs,99401722,2859.00,Apprenticeship Levy
BEIS,UKRI - BBSRC,12/04/2022,T&S Overseas - Flights,Science Group – Admin Function,Corporate Travel Management (North) Ltd,99430785,47.90,T&S Overseas - Flights
BEIS,UKRI - BBSRC,12/04/2022,T&S UK - Accommodation,CE - Chief Executive,Corporate Travel Management (North) Ltd,99430785,0.80,T&S UK - Accommodation
BEIS,UKRI - BBSRC,12/04/2022,T&S UK - Accommodation,CE - Chief Executive,Corporate Travel Management (North) Ltd,99430785,67.76,T&S UK - Accommodation
BEIS,UKRI - BBSRC,12/04/2022,T&S UK - Accommodation,CE - Chief Executive,Corporate Travel Management (North) Ltd,99430785,0.80,T&S UK - Accommodation
BEIS,UKRI - BBSRC,12/04/2022,T&S UK - Accommodation,CE - Chief Executive,Corporate Travel Management (North) Ltd,99430785,143.50,T&S UK - Accommodation
BEIS,UKRI - BBSRC,12/04/2022,T&S UK - Accommodation,CE - Chief Executive,Corporate Travel Management (North) Ltd,99430785,0.32,T&S UK - Accommodation
BEIS,UKRI - BBSRC,12/04/2022,T&S UK - Accommodation,FG - Estates,Corporate Travel Management (North) Ltd,99430785,0.80,T&S UK - Accommodation
BEIS,UKRI - BBSRC,12/04/2022,T&S UK - Accommodation,FG - Estates,Corporate Travel Management (North) Ltd,99430785,85.00,T&S UK - Accommodation
BEIS,UKRI - BBSRC,12/04/2022,T&S UK - Accommodation,FG - Estates,Corporate Travel Management (North) Ltd,99430785,0.16,T&S UK - Accommodation
BEIS,UKRI - BBSRC,12/04/2022,T&S UK - Accommodation,Innovation and Skills Group,Corporate Travel Management (North) Ltd,99430785,0.80,T&S UK - Accommodation
BEIS,UKRI - BBSRC,12/04/2022,T&S UK - Accommodation,Innovation and Skills Group,Corporate Travel Management (North) Ltd,99430785,142.20,T&S UK - Accommodation
BEIS,UKRI - BBSRC,12/04/2022,T&S UK - Accommodation,Innovation and Skills Group,Corporate Travel Management (North) Ltd,99430785,0.80,T&S UK - Accommodation
BEIS,UKRI - BBSRC,12/04/2022,T&S UK - Accommodation,Innovation and Skills Group,Corporate Travel Management (North) Ltd,99430785,133.00,T&S UK - Accommodation
BEIS,UKRI - BBSRC,12/04/2022,T&S UK - Accommodation,Innovation and Skills Group,Corporate Travel Management (North) Ltd,99430785,0.80,T&S UK - Accommodation
BEIS,UKRI - BBSRC,12/04/2022,T&S UK - Accommodation,Innovation and Skills Group,Corporate Travel Management (North) Ltd,99430785,86.25,T&S UK - Accommodation
BEIS,UKRI - BBSRC,12/04/2022,T&S UK - Accommodation,Innovation and Skills Group,Corporate Travel Management (North) Ltd,99430785,0.80,T&S UK - Accommodation
BEIS,UKRI - BBSRC,12/04/2022,T&S UK - Accommodation,Innovation and Skills Group,Corporate Travel Management (North) Ltd,99430785,87.45,T&S UK - Accommodation
BEIS,UKRI - BBSRC,12/04/2022,T&S UK - Accommodation,Innovation and Skills Group,Corporate Travel Management (North) Ltd,99430785,0.32,T&S UK - Accommodation
BEIS,UKRI - BBSRC,12/04/2022,T&S UK - Accommodation,Innovation and Skills Group,Corporate Travel Management (North) Ltd,99430785,0.32,T&S UK - Accommodation
BEIS,UKRI - BBSRC,12/04/2022,T&S UK - Accommodation,Science Group,Corporate Travel Management (North) Ltd,99430785,0.80,T&S UK - Accommodation
BEIS,UKRI - BBSRC,12/04/2022,T&S UK - Accommodation,Science Group,Corporate Travel Management (North) Ltd,99430785,72.00,T&S UK - Accommodation
BEIS,UKRI - BBSRC,12/04/2022,T&S UK - Accommodation,Science Group,Corporate Travel Management (North) Ltd,99430785,0.80,T&S UK - Accommodation
BEIS,UKRI - BBSRC,12/04/2022,T&S UK - Accommodation,Science Group,Corporate Travel Management (North) Ltd,99430785,150.00,T&S UK - Accommodation
BEIS,UKRI - BBSRC,12/04/2022,T&S UK - Accommodation,Science Group,Corporate Travel Management (North) Ltd,99430785,0.80,T&S UK - Accommodation
BEIS,UKRI - BBSRC,12/04/2022,T&S UK - Accommodation,Science Group,Corporate Travel Management (North) Ltd,99430785,150.00,T&S UK - Accommodation
BEIS,UKRI - BBSRC,12/04/2022,T&S UK - Accommodation,Science Group,Corporate Travel Management (North) Ltd,99430785,0.80,T&S UK - Accommodation
BEIS,UKRI - BBSRC,12/04/2022,T&S UK - Accommodation,Science Group,Corporate Travel Management (North) Ltd,99430785,150.00,T&S UK - Accommodation
BEIS,UKRI - BBSRC,12/04/2022,T&S UK - Accommodation,Science Group,Corporate Travel Management (North) Ltd,99430785,0.80,T&S UK - Accommodation
BEIS,UKRI - BBSRC,12/04/2022,T&S UK - Accommodation,Science Group,Corporate Travel Management (North) Ltd,99430785,0.80,T&S UK - Accommodation
BEIS,UKRI - BBSRC,12/04/2022,T&S UK - Flights,CE - Chief Executive,Corporate Travel Management (North) Ltd,99430785,2.50,T&S UK - Flights
BEIS,UKRI - BBSRC,12/04/2022,T&S UK - Flights,CE - Chief Executive,Corporate Travel Management (North) Ltd,99430785,83.48,T&S UK - Flights
BEIS,UKRI - BBSRC,12/04/2022,T&S UK - Flights,Science Group,Corporate Travel Management (North) Ltd,99430785,2.50,T&S UK - Flights
BEIS,UKRI - BBSRC,12/04/2022,T&S UK - Flights,Science Group,Corporate Travel Management (North) Ltd,99430785,165.27,T&S UK - Flights
BEIS,UKRI - BBSRC,12/04/2022,T&S UK - Public Transport,CE - CPS,Corporate Travel Management (North) Ltd,99430785,0.25,T&S UK - Public Transport
BEIS,UKRI - BBSRC,12/04/2022,T&S UK - Public Transport,CE - CPS,Corporate Travel Management (North) Ltd,99430785,123.90,T&S UK - Public Transport
BEIS,UKRI - BBSRC,12/04/2022,T&S UK - Public Transport,CE - CPS,Corporate Travel Management (North) Ltd,99430785,0.25,T&S UK - Public Transport
BEIS,UKRI - BBSRC,12/04/2022,T&S UK - Public Transport,CE - CPS,Corporate Travel Management (North) Ltd,99430785,85.10,T&S UK - Public Transport
BEIS,UKRI - BBSRC,12/04/2022,T&S UK - Public Transport,CE - CPS,Corporate Travel Management (North) Ltd,99430785,0.25,T&S UK - Public Transport
BEIS,UKRI - BBSRC,12/04/2022,T&S UK - Public Transport,CE - CPS,Corporate Travel Management (North) Ltd,99430785,111.00,T&S UK - Public Transport
BEIS,UKRI - BBSRC,12/04/2022,T&S UK - Public Transport,CE - CPS,Corporate Travel Management (North) Ltd,99430785,0.25,T&S UK - Public Transport
BEIS,UKRI - BBSRC,12/04/2022,T&S UK - Public Transport,CE - CPS,Corporate Travel Management (North) Ltd,99430785,163.60,T&S UK - Public Transport
BEIS,UKRI - BBSRC,12/04/2022,T&S UK - Public Transport,CE - Chief Executive,Corporate Travel Management (North) Ltd,99430785,0.25,T&S UK - Public Transport
BEIS,UKRI - BBSRC,12/04/2022,T&S UK - Public Transport,CE - Chief Executive,Corporate Travel Management (North) Ltd,99430785,124.80,T&S UK - Public Transport
BEIS,UKRI - BBSRC,12/04/2022,T&S UK - Public Transport,CE - Chief Executive,Corporate Travel Management (North) Ltd,99430785,0.25,T&S UK - Public Transport
BEIS,UKRI - BBSRC,12/04/2022,T&S UK - Public Transport,CE - Chief Executive,Corporate Travel Management (North) Ltd,99430785,195.00,T&S UK - Public Transport
BEIS,UKRI - BBSRC,12/04/2022,T&S UK - Public Transport,CE - Chief Executive,Corporate Travel Management (North) Ltd,99430785,0.25,T&S UK - Public Transport
BEIS,UKRI - BBSRC,12/04/2022,T&S UK - Public Transport,CE - Chief Executive,Corporate Travel Management (North) Ltd,99430785,124.80,T&S UK - Public Transport
BEIS,UKRI - BBSRC,12/04/2022,T&S UK - Public Transport,CE - Chief Executive,Corporate Travel Management (North) Ltd,99430785,0.25,T&S UK - Public Transport
BEIS,UKRI - BBSRC,12/04/2022,T&S UK - Public Transport,CE - Chief Executive,Corporate Travel Management (North) Ltd,99430785,97.50,T&S UK - Public Transport
BEIS,UKRI - BBSRC,12/04/2022,T&S UK - Public Transport,CE - Chief Executive,Corporate Travel Management (North) Ltd,99430785,0.25,T&S UK - Public Transport
BEIS,UKRI - BBSRC,12/04/2022,T&S UK - Public Transport,CE - Chief Executive,Corporate Travel Management (North) Ltd,99430785,63.90,T&S UK - Public Transport
BEIS,UKRI - BBSRC,12/04/2022,T&S UK - Public Transport,CE - Chief Executive,Corporate Travel Management (North) Ltd,99430785,0.25,T&S UK - Public Transport
BEIS,UKRI - BBSRC,12/04/2022,T&S UK - Public Transport,CE - Chief Executive,Corporate Travel Management (North) Ltd,99430785,78.30,T&S UK - Public Transport
BEIS,UKRI - BBSRC,12/04/2022,T&S UK - Public Transport,CE - Chief Executive,Corporate Travel Management (North) Ltd,99430785,0.25,T&S UK - Public Transport
BEIS,UKRI - BBSRC,12/04/2022,T&S UK - Public Transport,CE - Chief Executive,Corporate Travel Management (North) Ltd,99430785,78.30,T&S UK - Public Transport
BEIS,UKRI - BBSRC,12/04/2022,T&S UK - Public Transport,CE - Chief Executive,Corporate Travel Management (North) Ltd,99430785,0.25,T&S UK - Public Transport
BEIS,UKRI - BBSRC,12/04/2022,T&S UK - Public Transport,CE - Chief Executive,Corporate Travel Management (North) Ltd,99430785,159.50,T&S UK - Public Transport
BEIS,UKRI - BBSRC,12/04/2022,T&S UK - Public Transport,CE - Chief Executive,Corporate Travel Management (North) Ltd,99430785,0.25,T&S UK - Public Transport
BEIS,UKRI - BBSRC,12/04/2022,T&S UK - Public Transport,CE - Chief Executive,Corporate Travel Management (North) Ltd,99430785,12.10,T&S UK - Public Transport
BEIS,UKRI - BBSRC,12/04/2022,T&S UK - Public Transport,CE - Chief Executive,Corporate Travel Management (North) Ltd,99430785,0.25,T&S UK - Public Transport
BEIS,UKRI - BBSRC,12/04/2022,T&S UK - Public Transport,CE - Chief Executive,Corporate Travel Management (North) Ltd,99430785,82.20,T&S UK - Public Transport
BEIS,UKRI - BBSRC,12/04/2022,T&S UK - Public Transport,CE - Chief Executive,Corporate Travel Management (North) Ltd,99430785,0.25,T&S UK - Public Transport
BEIS,UKRI - BBSRC,12/04/2022,T&S UK - Public Transport,CE - Chief Executive,Corporate Travel Management (North) Ltd,99430785,97.50,T&S UK - Public Transport
BEIS,UKRI - BBSRC,12/04/2022,T&S UK - Public Transport,CE - IRU,Corporate Travel Management (North) Ltd,99430785,0.25,T&S UK - Public Transport
BEIS,UKRI - BBSRC,12/04/2022,T&S UK - Public Transport,CE - IRU,Corporate Travel Management (North) Ltd,99430785,157.60,T&S UK - Public Transport
BEIS,UKRI - BBSRC,12/04/2022,T&S UK - Public Transport,CIMG - Director,Corporate Travel Management (North) Ltd,99430785,0.25,T&S UK - Public Transport
BEIS,UKRI - BBSRC,12/04/2022,T&S UK - Public Transport,CIMG - Director,Corporate Travel Management (North) Ltd,99430785,71.30,T&S UK - Public Transport
BEIS,UKRI - BBSRC,12/04/2022,T&S UK - Public Transport,CIMG - Director,Corporate Travel Management (North) Ltd,99430785,0.25,T&S UK - Public Transport
BEIS,UKRI - BBSRC,12/04/2022,T&S UK - Public Transport,CIMG - Director,Corporate Travel Management (North) Ltd,99430785,112.70,T&S UK - Public Transport
BEIS,UKRI - BBSRC,12/04/2022,T&S UK - Public Transport,Innovation and Skills Group,Corporate Travel Management (North) Ltd,99430785,0.25,T&S UK - Public Transport
BEIS,UKRI - BBSRC,12/04/2022,T&S UK - Public Transport,Innovation and Skills Group,Corporate Travel Management (North) Ltd,99430785,173.60,T&S UK - Public Transport
BEIS,UKRI - BBSRC,12/04/2022,T&S UK - Public Transport,Innovation and Skills Group,Corporate Travel Management (North) Ltd,99430785,0.25,T&S UK - Public Transport
BEIS,UKRI - BBSRC,12/04/2022,T&S UK - Public Transport,Innovation and Skills Group,Corporate Travel Management (North) Ltd,99430785,59.40,T&S UK - Public Transport
BEIS,UKRI - BBSRC,12/04/2022,T&S UK - Public Transport,Innovation and Skills Group,Corporate Travel Management (North) Ltd,99430785,0.25,T&S UK - Public Transport
BEIS,UKRI - BBSRC,12/04/2022,T&S UK - Public Transport,Innovation and Skills Group,Corporate Travel Management (North) Ltd,99430785,174.90,T&S UK - Public Transport
BEIS,UKRI - BBSRC,12/04/2022,T&S UK - Public Transport,Innovation and Skills Group,Corporate Travel Management (North) Ltd,99430785,0.25,T&S UK - Public Transport
BEIS,UKRI - BBSRC,12/04/2022,T&S UK - Public Transport,Innovation and Skills Group,Corporate Travel Management (North) Ltd,99430785,174.90,T&S UK - Public Transport
BEIS,UKRI - BBSRC,12/04/2022,T&S UK - Public Transport,Innovation and Skills Group,Corporate Travel Management (North) Ltd,99430785,0.25,T&S UK - Public Transport
BEIS,UKRI - BBSRC,12/04/2022,T&S UK - Public Transport,Innovation and Skills Group,Corporate Travel Management (North) Ltd,99430785,173.60,T&S UK - Public Transport
BEIS,UKRI - BBSRC,12/04/2022,T&S UK - Public Transport,Innovation and Skills Group,Corporate Travel Management (North) Ltd,99430785,0.25,T&S UK - Public Transport
BEIS,UKRI - BBSRC,12/04/2022,T&S UK - Public Transport,Innovation and Skills Group,Corporate Travel Management (North) Ltd,99430785,59.40,T&S UK - Public Transport
BEIS,UKRI - BBSRC,12/04/2022,T&S UK - Public Transport,Innovation and Skills Group,Corporate Travel Management (North) Ltd,99430785,0.25,T&S UK - Public Transport
BEIS,UKRI - BBSRC,12/04/2022,T&S UK - Public Transport,Innovation and Skills Group,Corporate Travel Management (North) Ltd,99430785,101.80,T&S UK - Public Transport
BEIS,UKRI - BBSRC,12/04/2022,T&S UK - Public Transport,Innovation and Skills Group,Corporate Travel Management (North) Ltd,99430785,0.25,T&S UK - Public Transport
BEIS,UKRI - BBSRC,12/04/2022,T&S UK - Public Transport,Innovation and Skills Group,Corporate Travel Management (North) Ltd,99430785,157.20,T&S UK - Public Transport
BEIS,UKRI - BBSRC,12/04/2022,T&S UK - Public Transport,Innovation and Skills Group,Corporate Travel Management (North) Ltd,99430785,0.25,T&S UK - Public Transport
BEIS,UKRI - BBSRC,12/04/2022,T&S UK - Public Transport,Innovation and Skills Group,Corporate Travel Management (North) Ltd,99430785,72.20,T&S UK - Public Transport
BEIS,UKRI - BBSRC,12/04/2022,T&S UK - Public Transport,Innovation and Skills Group,Corporate Travel Management (North) Ltd,99430785,0.25,T&S UK - Public Transport
BEIS,UKRI - BBSRC,12/04/2022,T&S UK - Public Transport,Innovation and Skills Group,Corporate Travel Management (North) Ltd,99430785,158.50,T&S UK - Public Transport
BEIS,UKRI - BBSRC,12/04/2022,T&S UK - Public Transport,Innovation and Skills Group,Corporate Travel Management (North) Ltd,99430785,0.25,T&S UK - Public Transport
BEIS,UKRI - BBSRC,12/04/2022,T&S UK - Public Transport,Innovation and Skills Group,Corporate Travel Management (North) Ltd,99430785,113.20,T&S UK - Public Transport
BEIS,UKRI - BBSRC,12/04/2022,T&S UK - Public Transport,Science Group,Corporate Travel Management (North) Ltd,99430785,0.25,T&S UK - Public Transport
BEIS,UKRI - BBSRC,12/04/2022,T&S UK - Public Transport,Science Group,Corporate Travel Management (North) Ltd,99430785,282.00,T&S UK - Public Transport
BEIS,UKRI - BBSRC,12/04/2022,T&S UK - Public Transport,Science Group,Corporate Travel Management (North) Ltd,99430785,0.25,T&S UK - Public Transport
BEIS,UKRI - BBSRC,12/04/2022,T&S UK - Public Transport,Science Group,Corporate Travel Management (North) Ltd,99430785,281.20,T&S UK - Public Transport
BEIS,UKRI - BBSRC,12/04/2022,T&S UK - Public Transport,Science Group,Corporate Travel Management (North) Ltd,99430785,0.25,T&S UK - Public Transport
BEIS,UKRI - BBSRC,12/04/2022,T&S UK - Public Transport,Science Group,Corporate Travel Management (North) Ltd,99430785,201.00,T&S UK - Public Transport
BEIS,UKRI - BBSRC,12/04/2022,T&S UK - Public Transport,Science Group,Corporate Travel Management (North) Ltd,99430785,0.25,T&S UK - Public Transport
BEIS,UKRI - BBSRC,12/04/2022,T&S UK - Public Transport,Science Group,Corporate Travel Management (North) Ltd,99430785,157.20,T&S UK - Public Transport
BEIS,UKRI - BBSRC,12/04/2022,T&S UK - Public Transport,Science Group,Corporate Travel Management (North) Ltd,99430785,0.25,T&S UK - Public Transport
BEIS,UKRI - BBSRC,12/04/2022,T&S UK - Public Transport,Science Group,Corporate Travel Management (North) Ltd,99430785,39.30,T&S UK - Public Transport
BEIS,UKRI - BBSRC,12/04/2022,T&S UK - Public Transport,Science Group,Corporate Travel Management (North) Ltd,99430785,0.25,T&S UK - Public Transport
BEIS,UKRI - BBSRC,12/04/2022,T&S UK - Public Transport,Science Group,Corporate Travel Management (North) Ltd,99430785,124.80,T&S UK - Public Transport
BEIS,UKRI - BBSRC,12/04/2022,T&S UK - Public Transport,Science Group,Corporate Travel Management (North) Ltd,99430785,0.25,T&S UK - Public Transport
BEIS,UKRI - BBSRC,12/04/2022,T&S UK - Public Transport,Science Group,Corporate Travel Management (North) Ltd,99430785,157.60,T&S UK - Public Transport
BEIS,UKRI - BBSRC,12/04/2022,T&S UK - Public Transport,Science Group,Corporate Travel Management (North) Ltd,99430785,0.25,T&S UK - Public Transport
BEIS,UKRI - BBSRC,12/04/2022,T&S UK - Public Transport,Science Group,Corporate Travel Management (North) Ltd,99430785,28.00,T&S UK - Public Transport
BEIS,UKRI - BBSRC,12/04/2022,T&S UK - Public Transport,Science Group,Corporate Travel Management (North) Ltd,99430785,0.25,T&S UK - Public Transport
BEIS,UKRI - BBSRC,12/04/2022,T&S UK - Public Transport,Science Group,Corporate Travel Management (North) Ltd,99430785,72.10,T&S UK - Public Transport
BEIS,UKRI - BBSRC,12/04/2022,T&S UK - Public Transport,Science Group,Corporate Travel Management (North) Ltd,99430785,0.25,T&S UK - Public Transport
BEIS,UKRI - BBSRC,12/04/2022,T&S UK - Public Transport,Science Group,Corporate Travel Management (North) Ltd,99430785,242.80,T&S UK - Public Transport
BEIS,UKRI - BBSRC,12/04/2022,T&S UK - Public Transport,Science Group,Corporate Travel Management (North) Ltd,99430785,0.25,T&S UK - Public Transport
BEIS,UKRI - BBSRC,12/04/2022,T&S UK - Public Transport,Science Group,Corporate Travel Management (North) Ltd,99430785,111.60,T&S UK - Public Transport
BEIS,UKRI - BBSRC,12/04/2022,T&S UK - Public Transport,Science Group,Corporate Travel Management (North) Ltd,99430785,0.25,T&S UK - Public Transport
BEIS,UKRI - BBSRC,12/04/2022,T&S UK - Public Transport,Science Group,Corporate Travel Management (North) Ltd,99430785,77.70,T&S UK - Public Transport
BEIS,UKRI - BBSRC,12/04/2022,T&S UK - Public Transport,Science Group,Corporate Travel Management (North) Ltd,99430785,0.25,T&S UK - Public Transport
BEIS,UKRI - BBSRC,12/04/2022,T&S UK - Public Transport,Science Group,Corporate Travel Management (North) Ltd,99430785,124.80,T&S UK - Public Transport
BEIS,UKRI - BBSRC,12/04/2022,T&S UK - Public Transport,Science Group,Corporate Travel Management (North) Ltd,99430785,0.25,T&S UK - Public Transport
BEIS,UKRI - BBSRC,12/04/2022,T&S UK - Public Transport,Science Group,Corporate Travel Management (North) Ltd,99430785,63.20,T&S UK - Public Transport
BEIS,UKRI - BBSRC,12/04/2022,T&S UK - Public Transport,Science Group,Corporate Travel Management (North) Ltd,99430785,0.25,T&S UK - Public Transport
BEIS,UKRI - BBSRC,12/04/2022,T&S UK - Public Transport,Science Group,Corporate Travel Management (North) Ltd,99430785,157.20,T&S UK - Public Transport
BEIS,UKRI - BBSRC,12/04/2022,T&S UK - Public Transport,Science Group,Corporate Travel Management (North) Ltd,99430785,0.50,T&S UK - Public Transport
BEIS,UKRI - BBSRC,12/04/2022,T&S UK - Public Transport,Science Group,Corporate Travel Management (North) Ltd,99430785,37.70,T&S UK - Public Transport
BEIS,UKRI - BBSRC,12/04/2022,T&S UK - Public Transport,Science Group,Corporate Travel Management (North) Ltd,99430785,124.00,T&S UK - Public Transport
BEIS,UKRI - BBSRC,12/04/2022,T&S UK - Public Transport,Science Group,Corporate Travel Management (North) Ltd,99430785,0.25,T&S UK - Public Transport
BEIS,UKRI - BBSRC,12/04/2022,T&S UK - Public Transport,Science Group,Corporate Travel Management (North) Ltd,99430785,259.00,T&S UK - Public Transport
BEIS,UKRI - BBSRC,12/04/2022,T&S UK - Public Transport,Science Group,Corporate Travel Management (North) Ltd,99430785,0.25,T&S UK - Public Transport
BEIS,UKRI - BBSRC,12/04/2022,T&S UK - Public Transport,Science Group,Corporate Travel Management (North) Ltd,99430785,157.20,T&S UK - Public Transport
BEIS,UKRI - BBSRC,12/04/2022,T&S UK - Public Transport,Science Group,Corporate Travel Management (North) Ltd,99430785,0.25,T&S UK - Public Transport
BEIS,UKRI - BBSRC,12/04/2022,T&S UK - Public Transport,Science Group,Corporate Travel Management (North) Ltd,99430785,180.70,T&S UK - Public Transport
BEIS,UKRI - BBSRC,12/04/2022,T&S UK - Public Transport,Science Group,Corporate Travel Management (North) Ltd,99430785,0.25,T&S UK - Public Transport
BEIS,UKRI - BBSRC,12/04/2022,T&S UK - Public Transport,Science Group,Corporate Travel Management (North) Ltd,99430785,108.25,T&S UK - Public Transport
BEIS,UKRI - BBSRC,12/04/2022,T&S UK - Public Transport,Science Group,Corporate Travel Management (North) Ltd,99430785,0.25,T&S UK - Public Transport
BEIS,UKRI - BBSRC,12/04/2022,T&S UK - Public Transport,Science Group,Corporate Travel Management (North) Ltd,99430785,223.40,T&S UK - Public Transport
BEIS,UKRI - BBSRC,12/04/2022,T&S UK - Public Transport,Science Group,Corporate Travel Management (North) Ltd,99430785,0.25,T&S UK - Public Transport
BEIS,UKRI - BBSRC,12/04/2022,T&S UK - Public Transport,Science Group,Corporate Travel Management (North) Ltd,99430785,84.20,T&S UK - Public Transport
BEIS,UKRI - BBSRC,12/04/2022,T&S UK - Public Transport,Science Group – Admin Function,Corporate Travel Management (North) Ltd,99430785,0.50,T&S UK - Public Transport
BEIS,UKRI - BBSRC,12/04/2022,T&S UK - Public Transport,Science Group – Admin Function,Corporate Travel Management (North) Ltd,99430785,30.50,T&S UK - Public Transport
BEIS,UKRI - BBSRC,12/04/2022,T&S UK - Public Transport,Science Group – Admin Function,Corporate Travel Management (North) Ltd,99430785,96.90,T&S UK - Public Transport
BEIS,UKRI - BBSRC,12/04/2022,T&S UK - Public Transport,Science Group – Admin Function,Corporate Travel Management (North) Ltd,99430785,0.25,T&S UK - Public Transport
BEIS,UKRI - BBSRC,12/04/2022,T&S UK - Public Transport,Science Group – Admin Function,Corporate Travel Management (North) Ltd,99430785,78.60,T&S UK - Public Transport
BEIS,UKRI - BBSRC,12/04/2022,T&S UK - Public Transport,Science Group – Admin Function,Corporate Travel Management (North) Ltd,99430785,0.25,T&S UK - Public Transport
BEIS,UKRI - BBSRC,12/04/2022,T&S UK - Public Transport,Science Group – Admin Function,Corporate Travel Management (North) Ltd,99430785,157.60,T&S UK - Public Transport
BEIS,UKRI - BBSRC,13/04/2022,Union Deductions,Balance Sheet,PCS Union,99401723,45.21,Union Deductions
BEIS,UKRI - BBSRC,13/04/2022,Voluntary Deductions,Balance Sheet,Swindon Office Sports and Social Club,99401724,46.00,Voluntary Deductions
BEIS,UKRI - BBSRC,13/04/2022,Unspecified,Balance Sheet,Unspecified,99401725,116.22,Ees Pension Deductions - JSS
BEIS,UKRI - BBSRC,13/04/2022,Unspecified,Balance Sheet,Unspecified,99401726,402.07,Ers Pension Deductions - JSS
BEIS,UKRI - BBSRC,13/04/2022,Unspecified,Balance Sheet,Scottish Widows Life Assurance,99401727,1298.21,Partnership Pension Deductions
BEIS,UKRI - BBSRC,13/04/2022,Unspecified,Balance Sheet,Scottish Widows Life Assurance,99401728,10.00,Other Pension Deductions
BEIS,UKRI - BBSRC,13/04/2022,Unspecified,Balance Sheet,Cabinet Office RM Shared Services,99401729,21.42,Ers Pension Deductions - JSS
BEIS,UKRI - BBSRC,13/04/2022,Unspecified,Balance Sheet,Cabinet Office RM Shared Services,99401730,13472.97,Ees Pension Deductions - MyCSP
BEIS,UKRI - BBSRC,13/04/2022,Unspecified,Balance Sheet,Cabinet Office RM Shared Services,99401731,68889.29,Ers Pension Deductions - MyCSP
BEIS,UKRI - BBSRC,13/04/2022,Nursery Deductions,Balance Sheet,UKRI - Engineering & Physical Sciences Research Council,99401732,1390.00,Nursery Deductions
BEIS,UKRI - BBSRC,13/04/2022,Unspecified,Balance Sheet,Unspecified,99401733,388.26,Ees Pension Deductions - MRC
BEIS,UKRI - BBSRC,13/04/2022,Unspecified,Balance Sheet,Unspecified,99401734,955.72,Ers Pension Deductions - MRC
BEIS,UKRI - BBSRC,13/04/2022,Fees (Including College Members),Science Group – Admin Function,Unspecified,99434838,230.00,Fees (Including College Members)
BEIS,UKRI - BBSRC,13/04/2022,Fees (Including College Members),Science Group – Admin Function,Unspecified,99434839,170.00,Fees (Including College Members)
BEIS,UKRI - BBSRC,13/04/2022,Non-staff travel and subsistance,Science Group - Delivery Function,Unspecified,99434840,253.90,Non-staff travel and subsistance
BEIS,UKRI - BBSRC,13/04/2022,Fees (Including College Members),Science Group - Delivery Function,Unspecified,99434841,170.00,Fees (Including College Members)
BEIS,UKRI - BBSRC,13/04/2022,Non-staff travel and subsistance,Science Group - Delivery Function,Unspecified,99434842,401.95,Non-staff travel and subsistance
BEIS,UKRI - BBSRC,13/04/2022,T&S UK - Vehicle Hire,Science Group - Delivery Function,Enterprise Rent-A-Car UK Ltd,99439714,82.50,T&S UK - Vehicle Hire
BEIS,UKRI - BBSRC,14/04/2022,Research Grant Expenditure,SPF W1 EMBL EBI,EMBL (European Molecular Biology Laboratory),99453713,11804.24,Research Grant Expenditure
BEIS,UKRI - BBSRC,19/04/2022,Fees (Including College Members),Science Group – Admin Function,Unspecified,99454711,340.00,Fees (Including College Members)
BEIS,UKRI - BBSRC,19/04/2022,Fees (Including College Members),Science Group – Admin Function,Unspecified,99454712,340.00,Fees (Including College Members)
BEIS,UKRI - BBSRC,19/04/2022,Unspecified,Balance Sheet,Scottish Widows Life Assurance,99461717,7831.35,Partnership Pension Deductions
BEIS,UKRI - BBSRC,19/04/2022,T&S UK - Other Charges,Innovation and Skills Group,Unspecified,99464710,1000.00,T&S UK - Other Charges
BEIS,UKRI - BBSRC,20/04/2022,Books Professional Journals & Guides,CE - CPS,John Innes Centre,99359811,300.00,Books Professional Journals & Guides
BEIS,UKRI - BBSRC,20/04/2022,International Subscriptions,CE - CPS,John Innes Centre,99359811,682.13,International Subscriptions
BEIS,UKRI - BBSRC,20/04/2022,Unspecified,CE - CPS,Pye Tait Ltd T/A Pye Tait Consulting,99394713,23040.00,Legal & Professional Services
BEIS,UKRI - BBSRC,20/04/2022,Research Institutes - Competitive Strategic Grant,Research: Strategic National Capability,Babraham Institute,99400786,352459.91,Research Institutes - Competitive Strategic Grant
BEIS,UKRI - BBSRC,20/04/2022,Research Institutes - Competitive Strategic Grant,Research: Strategic National Capability,Babraham Institute,99400786,48750.01,Research Institutes - Competitive Strategic Grant
BEIS,UKRI - BBSRC,20/04/2022,Research Institutes - Competitive Strategic Grant,Research: Strategic National Capability,Babraham Institute,99400786,395666.75,Research Institutes - Competitive Strategic Grant
BEIS,UKRI - BBSRC,20/04/2022,Research Institutes - Competitive Strategic Grant,Research: Strategic National Capability,Babraham Institute,99400786,5833.33,Research Institutes - Competitive Strategic Grant
BEIS,UKRI - BBSRC,20/04/2022,Research Institutes - Competitive Strategic Grant,Research: Strategic National Capability,Quadram Institute Bioscience,99401744,23624.51,Research Institutes - Competitive Strategic Grant
BEIS,UKRI - BBSRC,20/04/2022,Research Institutes - Competitive Strategic Grant,Research: Strategic National Capability,Quadram Institute Bioscience,99401744,347921.89,Research Institutes - Competitive Strategic Grant
BEIS,UKRI - BBSRC,20/04/2022,Research Institutes - Competitive Strategic Grant,Research: Strategic National Capability,Quadram Institute Bioscience,99401744,46083.52,Research Institutes - Competitive Strategic Grant
BEIS,UKRI - BBSRC,20/04/2022,Research Institutes - Competitive Strategic Grant,Research: Strategic National Capability,Quadram Institute Bioscience,99401744,261522.72,Research Institutes - Competitive Strategic Grant
BEIS,UKRI - BBSRC,20/04/2022,Research Institutes - Competitive Strategic Grant,Research: Strategic National Capability,Quadram Institute Bioscience,99401744,5833.36,Research Institutes - Competitive Strategic Grant
BEIS,UKRI - BBSRC,20/04/2022,Research Institutes - Competitive Strategic Grant,Research: Strategic National Capability,John Innes Centre,99401745,22000.07,Research Institutes - Competitive Strategic Grant
BEIS,UKRI - BBSRC,20/04/2022,Research Institutes - Competitive Strategic Grant,Research: Strategic National Capability,John Innes Centre,99401745,511418.36,Research Institutes - Competitive Strategic Grant
BEIS,UKRI - BBSRC,20/04/2022,Research Institutes - Competitive Strategic Grant,Research: Strategic National Capability,John Innes Centre,99401745,65333.55,Research Institutes - Competitive Strategic Grant
BEIS,UKRI - BBSRC,20/04/2022,Research Institutes - Competitive Strategic Grant,Research: Strategic National Capability,John Innes Centre,99401745,501251.66,Research Institutes - Competitive Strategic Grant
BEIS,UKRI - BBSRC,20/04/2022,Research Institutes - Competitive Strategic Grant,Research: Strategic National Capability,John Innes Centre,99401745,7083.36,Research Institutes - Competitive Strategic Grant
BEIS,UKRI - BBSRC,20/04/2022,Research Institutes - Competitive Strategic Grant,Research: Strategic National Capability,Earlham Institute,99401746,163170.56,Research Institutes - Competitive Strategic Grant
BEIS,UKRI - BBSRC,20/04/2022,Research Institutes - Competitive Strategic Grant,Research: Strategic National Capability,Earlham Institute,99401746,81238.75,Research Institutes - Competitive Strategic Grant
BEIS,UKRI - BBSRC,20/04/2022,Research Institutes - Competitive Strategic Grant,Research: Strategic National Capability,Earlham Institute,99401746,42166.32,Research Institutes - Competitive Strategic Grant
BEIS,UKRI - BBSRC,20/04/2022,Research Institutes - Competitive Strategic Grant,Research: Strategic National Capability,Earlham Institute,99401746,33333.06,Research Institutes - Competitive Strategic Grant
BEIS,UKRI - BBSRC,20/04/2022,Research Institutes - Competitive Strategic Grant,Research: Strategic National Capability,Earlham Institute,99401746,121087.67,Research Institutes - Competitive Strategic Grant
BEIS,UKRI - BBSRC,20/04/2022,Research Institutes - Competitive Strategic Grant,Research: Strategic National Capability,Earlham Institute,99401746,2916.64,Research Institutes - Competitive Strategic Grant
BEIS,UKRI - BBSRC,20/04/2022,Research Institutes - Competitive Strategic Grant,Research: Strategic National Capability,Aberystwyth University,99402813,86360.99,Research Institutes - Competitive Strategic Grant
BEIS,UKRI - BBSRC,20/04/2022,Research Institutes - Competitive Strategic Grant,Research: Strategic National Capability,Aberystwyth University,99402813,46980.67,Research Institutes - Competitive Strategic Grant
BEIS,UKRI - BBSRC,20/04/2022,Research Institutes - Competitive Strategic Grant,Research: Strategic National Capability,Aberystwyth University,99402813,2916.67,Research Institutes - Competitive Strategic Grant
BEIS,UKRI - BBSRC,20/04/2022,Research Institutes - Competitive Strategic Grant,Research: Strategic National Capability,Rothamsted Research Ltd,99407743,111253.33,Research Institutes - Competitive Strategic Grant
BEIS,UKRI - BBSRC,20/04/2022,Research Institutes - Competitive Strategic Grant,Research: Strategic National Capability,Rothamsted Research Ltd,99407743,418416.67,Research Institutes - Competitive Strategic Grant
BEIS,UKRI - BBSRC,20/04/2022,Research Institutes - Competitive Strategic Grant,Research: Strategic National Capability,Rothamsted Research Ltd,99407743,64666.67,Research Institutes - Competitive Strategic Grant
BEIS,UKRI - BBSRC,20/04/2022,Research Institutes - Competitive Strategic Grant,Research: Strategic National Capability,Rothamsted Research Ltd,99407743,197000.00,Research Institutes - Competitive Strategic Grant
BEIS,UKRI - BBSRC,20/04/2022,Research Institutes - Competitive Strategic Grant,Research: Strategic National Capability,Rothamsted Research Ltd,99407743,7083.33,Research Institutes - Competitive Strategic Grant
BEIS,UKRI - BBSRC,20/04/2022,Training Awards - Postgraduates,FG - Accounts & Business Planning,National Institute For Agricultural Botany (NIAB),99415718,6495.56,Training Awards - Postgraduates
BEIS,UKRI - BBSRC,20/04/2022,Training Awards - Postgraduates,FG - Accounts & Business Planning,The University of Manchester,99415719,6495.56,Training Awards - Postgraduates
BEIS,UKRI - BBSRC,20/04/2022,Training Awards - Postgraduates,FG - Accounts & Business Planning,National Institute For Agricultural Botany (NIAB),99415720,6495.56,Training Awards - Postgraduates
BEIS,UKRI - BBSRC,20/04/2022,Training Awards - Postgraduates,FG - Accounts & Business Planning,National Institute For Agricultural Botany (NIAB),99415721,6495.56,Training Awards - Postgraduates
BEIS,UKRI - BBSRC,20/04/2022,Training Awards - Postgraduates,FG - Accounts & Business Planning,National Institute For Agricultural Botany (NIAB),99415722,6495.56,Training Awards - Postgraduates
BEIS,UKRI - BBSRC,20/04/2022,Training Awards - Postgraduates,FG - Accounts & Business Planning,National Institute For Agricultural Botany (NIAB),99415723,6495.56,Training Awards - Postgraduates
BEIS,UKRI - BBSRC,20/04/2022,Training Awards - Postgraduates,FG - Accounts & Business Planning,National Institute For Agricultural Botany (NIAB),99415724,6495.56,Training Awards - Postgraduates
BEIS,UKRI - BBSRC,20/04/2022,Training Awards - Postgraduates,FG - Accounts & Business Planning,National Institute For Agricultural Botany (NIAB),99415725,6495.56,Training Awards - Postgraduates
BEIS,UKRI - BBSRC,20/04/2022,Training Awards - Postgraduates,FG - Accounts & Business Planning,National Institute For Agricultural Botany (NIAB),99415726,6495.56,Training Awards - Postgraduates
BEIS,UKRI - BBSRC,20/04/2022,Training Awards - Postgraduates,FG - Accounts & Business Planning,Queen Mary University of London,99415727,6876.63,Training Awards - Postgraduates
BEIS,UKRI - BBSRC,20/04/2022,Training Awards - Postgraduates,FG - Accounts & Business Planning,The University of Manchester,99415728,6495.56,Training Awards - Postgraduates
BEIS,UKRI - BBSRC,20/04/2022,Training Awards - Postgraduates,FG - Accounts & Business Planning,University of York,99415729,6495.56,Training Awards - Postgraduates
BEIS,UKRI - BBSRC,20/04/2022,Training Awards - Postgraduates,FG - Accounts & Business Planning,University of Warwick,99415730,6495.56,Training Awards - Postgraduates
BEIS,UKRI - BBSRC,20/04/2022,Training Awards - Postgraduates,FG - Accounts & Business Planning,University of Nottingham,99415731,6495.56,Training Awards - Postgraduates
BEIS,UKRI - BBSRC,20/04/2022,Training Awards - Postgraduates,FG - Accounts & Business Planning,University of Liverpool,99415732,6495.56,Training Awards - Postgraduates
BEIS,UKRI - BBSRC,20/04/2022,Training Awards - Postgraduates,FG - Accounts & Business Planning,University of Liverpool,99415733,6495.56,Training Awards - Postgraduates
BEIS,UKRI - BBSRC,20/04/2022,Training Awards - Postgraduates,FG - Accounts & Business Planning,University of Exeter,99415734,6495.56,Training Awards - Postgraduates
BEIS,UKRI - BBSRC,20/04/2022,Training Awards - Postgraduates,FG - Accounts & Business Planning,University of Exeter,99415734,6495.59,Training Awards - Postgraduates
BEIS,UKRI - BBSRC,20/04/2022,Training Awards - Postgraduates,FG - Accounts & Business Planning,Teesside University,99415735,6495.59,Training Awards - Postgraduates
BEIS,UKRI - BBSRC,20/04/2022,Training Awards - Postgraduates,FG - Accounts & Business Planning,Queen Mary University of London,99415736,6995.56,Training Awards - Postgraduates
BEIS,UKRI - BBSRC,20/04/2022,Training Awards - Postgraduates,FG - Accounts & Business Planning,University of Cambridge,99415737,6495.56,Training Awards - Postgraduates
BEIS,UKRI - BBSRC,20/04/2022,Training Awards - Postgraduates,FG - Accounts & Business Planning,University of York,99415738,6495.56,Training Awards - Postgraduates
BEIS,UKRI - BBSRC,20/04/2022,Training Awards - Postgraduates,FG - Accounts & Business Planning,Robert Gordon University,99415739,6495.56,Training Awards - Postgraduates
BEIS,UKRI - BBSRC,20/04/2022,Training Awards - Postgraduates,FG - Accounts & Business Planning,Robert Gordon University,99415740,6495.56,Training Awards - Postgraduates
BEIS,UKRI - BBSRC,20/04/2022,Training Awards - Postgraduates,FG - Accounts & Business Planning,The University of Manchester,99415741,6495.56,Training Awards - Postgraduates
BEIS,UKRI - BBSRC,20/04/2022,Training Awards - Postgraduates,FG - Accounts & Business Planning,University of Edinburgh,99415742,6495.56,Training Awards - Postgraduates
BEIS,UKRI - BBSRC,20/04/2022,Training Awards - Postgraduates,FG - Accounts & Business Planning,University of Edinburgh,99415743,6495.56,Training Awards - Postgraduates
BEIS,UKRI - BBSRC,20/04/2022,Training Awards - Postgraduates,FG - Accounts & Business Planning,University of Edinburgh,99415744,6495.56,Training Awards - Postgraduates
BEIS,UKRI - BBSRC,20/04/2022,Training Awards - Postgraduates,FG - Accounts & Business Planning,University of Edinburgh,99415745,6495.56,Training Awards - Postgraduates
BEIS,UKRI - BBSRC,20/04/2022,Training Awards - Postgraduates,FG - Accounts & Business Planning,University of Edinburgh,99415745,6495.59,Training Awards - Postgraduates
BEIS,UKRI - BBSRC,20/04/2022,Training Awards - Postgraduates,FG - Accounts & Business Planning,University of Edinburgh,99415745,6495.56,Training Awards - Postgraduates
BEIS,UKRI - BBSRC,20/04/2022,Training Awards - Postgraduates,FG - Accounts & Business Planning,University of York,99415746,6495.59,Training Awards - Postgraduates
BEIS,UKRI - BBSRC,20/04/2022,Training Awards - Postgraduates,FG - Accounts & Business Planning,Heriot Watt University,99415747,6495.56,Training Awards - Postgraduates
BEIS,UKRI - BBSRC,20/04/2022,Training Awards - Postgraduates,FG - Accounts & Business Planning,Kingston University,99415748,6995.56,Training Awards - Postgraduates
BEIS,UKRI - BBSRC,20/04/2022,Training Awards - Postgraduates,FG - Accounts & Business Planning,King's College London,99415749,6995.56,Training Awards - Postgraduates
BEIS,UKRI - BBSRC,20/04/2022,Training Awards - Postgraduates,FG - Accounts & Business Planning,Imperial College London,99415750,6995.56,Training Awards - Postgraduates
BEIS,UKRI - BBSRC,20/04/2022,Training Awards - Postgraduates,FG - Accounts & Business Planning,University of Nottingham,99415751,6495.56,Training Awards - Postgraduates
BEIS,UKRI - BBSRC,20/04/2022,Training Awards - Postgraduates,FG - Accounts & Business Planning,University of Liverpool,99415752,6495.56,Training Awards - Postgraduates
BEIS,UKRI - BBSRC,20/04/2022,Training Awards - Postgraduates,FG - Accounts & Business Planning,University of Leeds,99415753,6495.56,Training Awards - Postgraduates
BEIS,UKRI - BBSRC,20/04/2022,Training Awards - Postgraduates,FG - Accounts & Business Planning,University of Glasgow,99415754,6495.56,Training Awards - Postgraduates
BEIS,UKRI - BBSRC,20/04/2022,Training Awards - Postgraduates,FG - Accounts & Business Planning,Babraham Institute,99415755,6495.56,Training Awards - Postgraduates
BEIS,UKRI - BBSRC,20/04/2022,Training Awards - Postgraduates,FG - Accounts & Business Planning,University of Sheffield,99415756,6495.56,Training Awards - Postgraduates
BEIS,UKRI - BBSRC,20/04/2022,Training Awards - Postgraduates,FG - Accounts & Business Planning,University of Nottingham,99415757,6495.56,Training Awards - Postgraduates
BEIS,UKRI - BBSRC,20/04/2022,Training Awards - Postgraduates,FG - Accounts & Business Planning,University of Birmingham GRANT,99415758,6495.56,Training Awards - Postgraduates
BEIS,UKRI - BBSRC,20/04/2022,Training Awards - Postgraduates,FG - Accounts & Business Planning,University College London,99415759,6995.56,Training Awards - Postgraduates
BEIS,UKRI - BBSRC,20/04/2022,Training Awards - Postgraduates,FG - Accounts & Business Planning,University College London,99415760,6995.56,Training Awards - Postgraduates
BEIS,UKRI - BBSRC,20/04/2022,Training Awards - Postgraduates,FG - Accounts & Business Planning,University College London,99415761,6995.56,Training Awards - Postgraduates
BEIS,UKRI - BBSRC,20/04/2022,Training Awards - Postgraduates,FG - Accounts & Business Planning,Institute of Cancer Research,99415762,6995.56,Training Awards - Postgraduates
BEIS,UKRI - BBSRC,20/04/2022,Training Awards - Postgraduates,FG - Accounts & Business Planning,Brunel University London,99415763,6995.56,Training Awards - Postgraduates
BEIS,UKRI - BBSRC,20/04/2022,Training Awards - Postgraduates,FG - Accounts & Business Planning,Queen Mary University of London,99415764,6995.56,Training Awards - Postgraduates
BEIS,UKRI - BBSRC,20/04/2022,Training Awards - Postgraduates,FG - Accounts & Business Planning,Imperial College London,99415765,6995.56,Training Awards - Postgraduates
BEIS,UKRI - BBSRC,20/04/2022,Training Awards - Postgraduates,FG - Accounts & Business Planning,Imperial College London,99415766,6995.56,Training Awards - Postgraduates
BEIS,UKRI - BBSRC,20/04/2022,Training Awards - Postgraduates,FG - Accounts & Business Planning,University of Sheffield,99415767,6495.56,Training Awards - Postgraduates
BEIS,UKRI - BBSRC,20/04/2022,Training Awards - Postgraduates,FG - Accounts & Business Planning,The University of Manchester,99415768,6495.56,Training Awards - Postgraduates
BEIS,UKRI - BBSRC,20/04/2022,Training Awards - Postgraduates,FG - Accounts & Business Planning,University of Cambridge,99415769,6495.56,Training Awards - Postgraduates
BEIS,UKRI - BBSRC,20/04/2022,Training Awards - Postgraduates,FG - Accounts & Business Planning,University of Cambridge,99415769,6495.59,Training Awards - Postgraduates
BEIS,UKRI - BBSRC,20/04/2022,Training Awards - Postgraduates,FG - Accounts & Business Planning,University of Cambridge,99415769,6495.56,Training Awards - Postgraduates
BEIS,UKRI - BBSRC,20/04/2022,Training Awards - Postgraduates,FG - Accounts & Business Planning,University of Newcastle Upon Tyne,99415770,6376.63,Training Awards - Postgraduates
BEIS,UKRI - BBSRC,20/04/2022,Training Awards - Postgraduates,FG - Accounts & Business Planning,University of Aberdeen,99415771,6376.63,Training Awards - Postgraduates
BEIS,UKRI - BBSRC,20/04/2022,Training Awards - Postgraduates,FG - Accounts & Business Planning,University of Cambridge,99415772,6376.62,Training Awards - Postgraduates
BEIS,UKRI - BBSRC,20/04/2022,Training Awards - Postgraduates,FG - Accounts & Business Planning,The University of Manchester,99415773,6376.62,Training Awards - Postgraduates
BEIS,UKRI - BBSRC,20/04/2022,Training Awards - Postgraduates,FG - Accounts & Business Planning,Queen Mary University of London,99415774,6876.62,Training Awards - Postgraduates
BEIS,UKRI - BBSRC,20/04/2022,Training Awards - Postgraduates,FG - Accounts & Business Planning,King's College London,99415775,6876.62,Training Awards - Postgraduates
BEIS,UKRI - BBSRC,20/04/2022,Training Awards - Postgraduates,FG - Accounts & Business Planning,University of Southampton GRANT,99415776,6376.62,Training Awards - Postgraduates
BEIS,UKRI - BBSRC,20/04/2022,Training Awards - Postgraduates,FG - Accounts & Business Planning,University of Southampton GRANT,99415777,6376.62,Training Awards - Postgraduates
BEIS,UKRI - BBSRC,20/04/2022,Training Awards - Postgraduates,FG - Accounts & Business Planning,National Institute For Agricultural Botany (NIAB),99415778,6376.62,Training Awards - Postgraduates
BEIS,UKRI - BBSRC,20/04/2022,Training Awards - Postgraduates,FG - Accounts & Business Planning,National Institute For Agricultural Botany (NIAB),99415779,6376.62,Training Awards - Postgraduates
BEIS,UKRI - BBSRC,20/04/2022,Training Awards - Postgraduates,FG - Accounts & Business Planning,National Institute For Agricultural Botany (NIAB),99415780,6376.62,Training Awards - Postgraduates
BEIS,UKRI - BBSRC,20/04/2022,Training Awards - Postgraduates,FG - Accounts & Business Planning,National Institute For Agricultural Botany (NIAB),99415781,6376.62,Training Awards - Postgraduates
BEIS,UKRI - BBSRC,20/04/2022,Training Awards - Postgraduates,FG - Accounts & Business Planning,National Institute For Agricultural Botany (NIAB),99415782,6376.62,Training Awards - Postgraduates
BEIS,UKRI - BBSRC,20/04/2022,Training Awards - Postgraduates,FG - Accounts & Business Planning,National Institute For Agricultural Botany (NIAB),99415783,6376.62,Training Awards - Postgraduates
BEIS,UKRI - BBSRC,20/04/2022,Training Awards - Postgraduates,FG - Accounts & Business Planning,University of Reading,99415784,6376.62,Training Awards - Postgraduates
BEIS,UKRI - BBSRC,20/04/2022,Training Awards - Postgraduates,FG - Accounts & Business Planning,University of Reading,99415785,6376.62,Training Awards - Postgraduates
BEIS,UKRI - BBSRC,20/04/2022,Training Awards - Postgraduates,FG - Accounts & Business Planning,University of Reading,99415786,6376.62,Training Awards - Postgraduates
BEIS,UKRI - BBSRC,20/04/2022,Training Awards - Postgraduates,FG - Accounts & Business Planning,Lancaster University,99415787,6376.62,Training Awards - Postgraduates
BEIS,UKRI - BBSRC,20/04/2022,Training Awards - Postgraduates,FG - Accounts & Business Planning,Lancaster University,99415788,6376.62,Training Awards - Postgraduates
BEIS,UKRI - BBSRC,20/04/2022,Training Awards - Postgraduates,FG - Accounts & Business Planning,Lancaster University,99415789,6376.62,Training Awards - Postgraduates
BEIS,UKRI - BBSRC,20/04/2022,Training Awards - Postgraduates,FG - Accounts & Business Planning,University of Oxford,99415790,6376.62,Training Awards - Postgraduates
BEIS,UKRI - BBSRC,20/04/2022,Training Awards - Postgraduates,FG - Accounts & Business Planning,University of Warwick,99415791,6376.62,Training Awards - Postgraduates
BEIS,UKRI - BBSRC,20/04/2022,Training Awards - Postgraduates,FG - Accounts & Business Planning,Queen Mary University of London,99415792,6876.62,Training Awards - Postgraduates
BEIS,UKRI - BBSRC,20/04/2022,Training Awards - Postgraduates,FG - Accounts & Business Planning,King's College London,99415793,6876.62,Training Awards - Postgraduates
BEIS,UKRI - BBSRC,20/04/2022,Training Awards - Postgraduates,FG - Accounts & Business Planning,King's College London,99415794,6876.62,Training Awards - Postgraduates
BEIS,UKRI - BBSRC,20/04/2022,Training Awards - Postgraduates,FG - Accounts & Business Planning,King's College London,99415795,6876.62,Training Awards - Postgraduates
BEIS,UKRI - BBSRC,20/04/2022,Training Awards - Postgraduates,FG - Accounts & Business Planning,Imperial College London,99415796,6876.62,Training Awards - Postgraduates
BEIS,UKRI - BBSRC,20/04/2022,Training Awards - Postgraduates,FG - Accounts & Business Planning,Imperial College London,99415797,6876.62,Training Awards - Postgraduates
BEIS,UKRI - BBSRC,20/04/2022,Training Awards - Postgraduates,FG - Accounts & Business Planning,University College London,99415798,6876.62,Training Awards - Postgraduates
BEIS,UKRI - BBSRC,20/04/2022,Training Awards - Postgraduates,FG - Accounts & Business Planning,University College London,99415799,6876.62,Training Awards - Postgraduates
BEIS,UKRI - BBSRC,20/04/2022,Training Awards - Postgraduates,FG - Accounts & Business Planning,Imperial College London,99415800,6876.62,Training Awards - Postgraduates
BEIS,UKRI - BBSRC,20/04/2022,Training Awards - Postgraduates,FG - Accounts & Business Planning,University of Reading,99415801,2584.00,Training Awards - Postgraduates
BEIS,UKRI - BBSRC,20/04/2022,Training Awards - Postgraduates,FG - Accounts & Business Planning,University of Sheffield,99415802,6376.62,Training Awards - Postgraduates
BEIS,UKRI - BBSRC,20/04/2022,Training Awards - Postgraduates,FG - Accounts & Business Planning,University of Nottingham,99415803,6376.62,Training Awards - Postgraduates
BEIS,UKRI - BBSRC,20/04/2022,Training Awards - Postgraduates,FG - Accounts & Business Planning,University of Glasgow,99415804,6376.62,Training Awards - Postgraduates
BEIS,UKRI - BBSRC,20/04/2022,Training Awards - Postgraduates,FG - Accounts & Business Planning,University of Leeds,99415805,6376.62,Training Awards - Postgraduates
BEIS,UKRI - BBSRC,20/04/2022,Training Awards - Postgraduates,FG - Accounts & Business Planning,University of Cambridge,99415806,6376.62,Training Awards - Postgraduates
BEIS,UKRI - BBSRC,20/04/2022,Training Awards - Postgraduates,FG - Accounts & Business Planning,University of Cambridge,99415807,6376.62,Training Awards - Postgraduates
BEIS,UKRI - BBSRC,20/04/2022,Training Awards - Postgraduates,FG - Accounts & Business Planning,University of Cambridge,99415808,6376.62,Training Awards - Postgraduates
BEIS,UKRI - BBSRC,20/04/2022,Training Awards - Postgraduates,FG - Accounts & Business Planning,University of Cambridge,99415809,6376.62,Training Awards - Postgraduates
BEIS,UKRI - BBSRC,20/04/2022,Training Awards - Postgraduates,FG - Accounts & Business Planning,University of St Andrews,99415810,6376.62,Training Awards - Postgraduates
BEIS,UKRI - BBSRC,20/04/2022,Training Awards - Postgraduates,FG - Accounts & Business Planning,The University of Manchester,99415811,6376.62,Training Awards - Postgraduates
BEIS,UKRI - BBSRC,20/04/2022,Training Awards - Postgraduates,FG - Accounts & Business Planning,University of Exeter,99415812,6376.62,Training Awards - Postgraduates
BEIS,UKRI - BBSRC,20/04/2022,Training Awards - Postgraduates,FG - Accounts & Business Planning,University of Exeter,99415813,6376.62,Training Awards - Postgraduates
BEIS,UKRI - BBSRC,20/04/2022,Training Awards - Postgraduates,FG - Accounts & Business Planning,Keele University,99415814,6376.62,Training Awards - Postgraduates
BEIS,UKRI - BBSRC,20/04/2022,Training Awards - Postgraduates,FG - Accounts & Business Planning,University of Edinburgh,99415815,6376.62,Training Awards - Postgraduates
BEIS,UKRI - BBSRC,20/04/2022,Training Awards - Postgraduates,FG - Accounts & Business Planning,Wellcome Trust Sanger Institute,99415816,6376.62,Training Awards - Postgraduates
BEIS,UKRI - BBSRC,20/04/2022,Training Awards - Postgraduates,FG - Accounts & Business Planning,University of Glasgow,99415817,6376.62,Training Awards - Postgraduates
BEIS,UKRI - BBSRC,20/04/2022,Training Awards - Postgraduates,FG - Accounts & Business Planning,University of Sheffield,99415818,6376.62,Training Awards - Postgraduates
BEIS,UKRI - BBSRC,20/04/2022,Training Awards - Postgraduates,FG - Accounts & Business Planning,University of Oxford,99415819,6376.62,Training Awards - Postgraduates
BEIS,UKRI - BBSRC,20/04/2022,Training Awards - Postgraduates,FG - Accounts & Business Planning,University of Birmingham GRANT,99415820,6376.62,Training Awards - Postgraduates
BEIS,UKRI - BBSRC,20/04/2022,Training Awards - Postgraduates,FG - Accounts & Business Planning,The University of Manchester,99415821,6376.62,Training Awards - Postgraduates
BEIS,UKRI - BBSRC,20/04/2022,Training Awards - Postgraduates,FG - Accounts & Business Planning,University of Exeter,99415822,6376.62,Training Awards - Postgraduates
BEIS,UKRI - BBSRC,20/04/2022,Training Awards - Postgraduates,FG - Accounts & Business Planning,University of Exeter,99415823,6376.62,Training Awards - Postgraduates
BEIS,UKRI - BBSRC,20/04/2022,Training Awards - Postgraduates,FG - Accounts & Business Planning,University of Cambridge,99415824,6376.62,Training Awards - Postgraduates
BEIS,UKRI - BBSRC,20/04/2022,Training Awards - Postgraduates,FG - Accounts & Business Planning,University of Cambridge,99415825,6376.62,Training Awards - Postgraduates
BEIS,UKRI - BBSRC,20/04/2022,Training Awards - Postgraduates,FG - Accounts & Business Planning,Babraham Institute,99415826,6376.62,Training Awards - Postgraduates
BEIS,UKRI - BBSRC,20/04/2022,Training Awards - Postgraduates,FG - Accounts & Business Planning,University of Nottingham,99415827,6376.62,Training Awards - Postgraduates
BEIS,UKRI - BBSRC,20/04/2022,Training Awards - Postgraduates,FG - Accounts & Business Planning,University of Huddersfield,99415828,6376.62,Training Awards - Postgraduates
BEIS,UKRI - BBSRC,20/04/2022,Training Awards - Postgraduates,FG - Accounts & Business Planning,University of Leeds,99415829,6376.62,Training Awards - Postgraduates
BEIS,UKRI - BBSRC,20/04/2022,Training Awards - Postgraduates,FG - Accounts & Business Planning,University of Glasgow,99415830,6376.62,Training Awards - Postgraduates
BEIS,UKRI - BBSRC,20/04/2022,Training Awards - Postgraduates,FG - Accounts & Business Planning,University of Edinburgh,99415831,6376.62,Training Awards - Postgraduates
BEIS,UKRI - BBSRC,20/04/2022,Training Awards - Postgraduates,FG - Accounts & Business Planning,University of Strathclyde,99415832,6376.62,Training Awards - Postgraduates
BEIS,UKRI - BBSRC,20/04/2022,Training Awards - Postgraduates,FG - Accounts & Business Planning,University of Sheffield,99415833,5539.85,Training Awards - Postgraduates
BEIS,UKRI - BBSRC,20/04/2022,Training Awards - Postgraduates,FG - Accounts & Business Planning,University of Strathclyde,99415834,6376.62,Training Awards - Postgraduates
BEIS,UKRI - BBSRC,20/04/2022,Training Awards - Postgraduates,FG - Accounts & Business Planning,University of Edinburgh,99415835,6376.62,Training Awards - Postgraduates
BEIS,UKRI - BBSRC,20/04/2022,Training Awards - Postgraduates,FG - Accounts & Business Planning,University of Aberdeen,99415836,6376.62,Training Awards - Postgraduates
BEIS,UKRI - BBSRC,20/04/2022,Training Awards - Postgraduates,FG - Accounts & Business Planning,University of York,99415837,6376.62,Training Awards - Postgraduates
BEIS,UKRI - BBSRC,20/04/2022,Training Awards - Postgraduates,FG - Accounts & Business Planning,University of Edinburgh,99415838,6376.62,Training Awards - Postgraduates
BEIS,UKRI - BBSRC,20/04/2022,Training Awards - Postgraduates,FG - Accounts & Business Planning,Heriot Watt University,99415839,6376.62,Training Awards - Postgraduates
BEIS,UKRI - BBSRC,20/04/2022,Training Awards - Postgraduates,FG - Accounts & Business Planning,University of Edinburgh,99415840,6376.62,Training Awards - Postgraduates
BEIS,UKRI - BBSRC,20/04/2022,Training Awards - Postgraduates,FG - Accounts & Business Planning,University of Greenwich,99415841,89664.25,Training Awards - Postgraduates
BEIS,UKRI - BBSRC,20/04/2022,Training Awards - Postgraduates,FG - Accounts & Business Planning,The University of Manchester,99415842,6267.44,Training Awards - Postgraduates
BEIS,UKRI - BBSRC,20/04/2022,Training Awards - Postgraduates,FG - Accounts & Business Planning,The University of Manchester,99415843,6267.44,Training Awards - Postgraduates
BEIS,UKRI - BBSRC,20/04/2022,Training Awards - Postgraduates,FG - Accounts & Business Planning,The University of Manchester,99415844,6267.44,Training Awards - Postgraduates
BEIS,UKRI - BBSRC,20/04/2022,Training Awards - Postgraduates,FG - Accounts & Business Planning,University of Nottingham,99415845,6267.44,Training Awards - Postgraduates
BEIS,UKRI - BBSRC,20/04/2022,Training Awards - Postgraduates,FG - Accounts & Business Planning,University of Warwick,99415846,6267.44,Training Awards - Postgraduates
BEIS,UKRI - BBSRC,20/04/2022,Training Awards - Postgraduates,FG - Accounts & Business Planning,University of Nottingham,99415847,6267.44,Training Awards - Postgraduates
BEIS,UKRI - BBSRC,20/04/2022,Training Awards - Postgraduates,FG - Accounts & Business Planning,University of Durham,99415848,6267.44,Training Awards - Postgraduates
BEIS,UKRI - BBSRC,20/04/2022,Training Awards - Postgraduates,FG - Accounts & Business Planning,University of Cambridge,99415849,6267.44,Training Awards - Postgraduates
BEIS,UKRI - BBSRC,20/04/2022,Training Awards - Postgraduates,FG - Accounts & Business Planning,National Institute For Agricultural Botany (NIAB),99415850,6267.44,Training Awards - Postgraduates
BEIS,UKRI - BBSRC,20/04/2022,Training Awards - Postgraduates,FG - Accounts & Business Planning,National Institute For Agricultural Botany (NIAB),99415851,6267.44,Training Awards - Postgraduates
BEIS,UKRI - BBSRC,20/04/2022,Training Awards - Postgraduates,FG - Accounts & Business Planning,University of Exeter,99415852,5013.95,Training Awards - Postgraduates
BEIS,UKRI - BBSRC,20/04/2022,Training Awards - Postgraduates,FG - Accounts & Business Planning,University of Reading,99415853,6267.44,Training Awards - Postgraduates
BEIS,UKRI - BBSRC,20/04/2022,Training Awards - Postgraduates,FG - Accounts & Business Planning,National Institute For Agricultural Botany (NIAB),99415854,6267.44,Training Awards - Postgraduates
BEIS,UKRI - BBSRC,20/04/2022,Training Awards - Postgraduates,FG - Accounts & Business Planning,National Institute For Agricultural Botany (NIAB),99415855,6267.44,Training Awards - Postgraduates
BEIS,UKRI - BBSRC,20/04/2022,Training Awards - Postgraduates,FG - Accounts & Business Planning,National Institute For Agricultural Botany (NIAB),99415856,6267.44,Training Awards - Postgraduates
BEIS,UKRI - BBSRC,20/04/2022,Training Awards - Postgraduates,FG - Accounts & Business Planning,Quadram Institute Bioscience,99415857,6267.44,Training Awards - Postgraduates
BEIS,UKRI - BBSRC,20/04/2022,Training Awards - Postgraduates,FG - Accounts & Business Planning,University College London,99415858,6344.49,Training Awards - Postgraduates
BEIS,UKRI - BBSRC,20/04/2022,Training Awards - Postgraduates,FG - Accounts & Business Planning,Lancaster University,99415859,6267.44,Training Awards - Postgraduates
BEIS,UKRI - BBSRC,20/04/2022,Training Awards - Postgraduates,FG - Accounts & Business Planning,University of Nottingham,99415860,4874.66,Training Awards - Postgraduates
BEIS,UKRI - BBSRC,20/04/2022,Training Awards - Postgraduates,FG - Accounts & Business Planning,University of Liverpool,99415861,6267.44,Training Awards - Postgraduates
BEIS,UKRI - BBSRC,20/04/2022,Training Awards - Postgraduates,FG - Accounts & Business Planning,University of Strathclyde,99415862,6267.44,Training Awards - Postgraduates
BEIS,UKRI - BBSRC,20/04/2022,Training Awards - Postgraduates,FG - Accounts & Business Planning,Lancaster University,99415863,6267.44,Training Awards - Postgraduates
BEIS,UKRI - BBSRC,20/04/2022,Training Awards - Postgraduates,FG - Accounts & Business Planning,University of Reading,99415864,6267.44,Training Awards - Postgraduates
BEIS,UKRI - BBSRC,20/04/2022,Training Awards - Postgraduates,FG - Accounts & Business Planning,Lancaster University,99415865,6267.44,Training Awards - Postgraduates
BEIS,UKRI - BBSRC,20/04/2022,Training Awards - Postgraduates,FG - Accounts & Business Planning,Lancaster University,99415866,6267.44,Training Awards - Postgraduates
BEIS,UKRI - BBSRC,20/04/2022,Training Awards - Postgraduates,FG - Accounts & Business Planning,Lancaster University,99415867,6267.44,Training Awards - Postgraduates
BEIS,UKRI - BBSRC,20/04/2022,Training Awards - Postgraduates,FG - Accounts & Business Planning,University of Liverpool,99415868,6267.44,Training Awards - Postgraduates
BEIS,UKRI - BBSRC,20/04/2022,Training Awards - Postgraduates,FG - Accounts & Business Planning,Queen Mary University of London,99415869,6767.44,Training Awards - Postgraduates
BEIS,UKRI - BBSRC,20/04/2022,Training Awards - Postgraduates,FG - Accounts & Business Planning,King's College London,99415870,6767.44,Training Awards - Postgraduates
BEIS,UKRI - BBSRC,20/04/2022,Training Awards - Postgraduates,FG - Accounts & Business Planning,University of Birmingham GRANT,99415871,6267.44,Training Awards - Postgraduates
BEIS,UKRI - BBSRC,20/04/2022,Training Awards - Postgraduates,FG - Accounts & Business Planning,University of Strathclyde,99415872,6267.44,Training Awards - Postgraduates
BEIS,UKRI - BBSRC,20/04/2022,Training Awards - Postgraduates,FG - Accounts & Business Planning,University of Strathclyde,99415873,6267.44,Training Awards - Postgraduates
BEIS,UKRI - BBSRC,20/04/2022,Training Awards - Postgraduates,FG - Accounts & Business Planning,University of York,99415874,6267.44,Training Awards - Postgraduates
BEIS,UKRI - BBSRC,20/04/2022,Training Awards - Postgraduates,FG - Accounts & Business Planning,University of Newcastle Upon Tyne,99415875,6267.44,Training Awards - Postgraduates
